﻿Body Name,Body,Service Area Categorisation,Service Division Categorisation,Responsible Unit,Expenses Type,Detailed Expenses Type,Payment Date,Transaction Number,Payment Amount,Supplier Type,Supplier Name,Supplier Id
Portsmouth City Council,PCC,Children's and Education Services,Children Looked After,Children's Services and Education,Third Party Payments,Other establishments,04-Oct-22,6670709,"-2,135.70",SUPPLIER,THE BEEHIVE ENTERPRISE,300000020467584 
Portsmouth City Council,PCC,Housing Revenue Account,Supervision and Management,"Housing, Neighbourhood and Building Services",Premises-Related Expenditure,Rates,25-Oct-22,6675201,"1,198.00",OTHER LOCAL AUTHORITY,HAVANT BOROUGH COUNCIL,300000020457057 
Portsmouth City Council,PCC,Housing Revenue Account,Special Services,"Housing, Neighbourhood and Building Services",Premises-Related Expenditure,Rates,25-Oct-22,6675201,182,OTHER LOCAL AUTHORITY,HAVANT BOROUGH COUNCIL,300000020457057 
Portsmouth City Council,PCC,Housing Revenue Account,Supervision and Management,"Housing, Neighbourhood and Building Services",Premises-Related Expenditure,Rates,25-Oct-22,6675201,"3,174.00",OTHER LOCAL AUTHORITY,HAVANT BOROUGH COUNCIL,300000020457057 
Portsmouth City Council,PCC,Housing Revenue Account,Special Services,"Housing, Neighbourhood and Building Services",Premises-Related Expenditure,Rates,25-Oct-22,6675201,394,OTHER LOCAL AUTHORITY,HAVANT BOROUGH COUNCIL,300000020457057 
Portsmouth City Council,PCC,Housing Revenue Account,Special Services,"Housing, Neighbourhood and Building Services",Premises-Related Expenditure,Rates,25-Oct-22,6675201,254,OTHER LOCAL AUTHORITY,HAVANT BOROUGH COUNCIL,300000020457057 
Portsmouth City Council,PCC,Housing Revenue Account,"Rents, Rates, Taxes and Other Charges","Housing, Neighbourhood and Building Services",Premises-Related Expenditure,Rates,25-Oct-22,6675201,244,OTHER LOCAL AUTHORITY,HAVANT BOROUGH COUNCIL,300000020457057 
Portsmouth City Council,PCC,Housing Revenue Account,"Rents, Rates, Taxes and Other Charges","Housing, Neighbourhood and Building Services",Premises-Related Expenditure,Rates,25-Oct-22,6675201,128,OTHER LOCAL AUTHORITY,HAVANT BOROUGH COUNCIL,300000020457057 
Portsmouth City Council,PCC,Housing Services,Homelessness,"Housing, Neighbourhood and Building Services",Premises-Related Expenditure,Rents,04-Oct-22,6670663,"1,403.07",SOLETRADER,Classified as 'personal data' (under the Data Protection Act 2018),300000020482749 
Portsmouth City Council,PCC,Housing Revenue Account,"Rents, Rates, Taxes and Other Charges","Housing, Neighbourhood and Building Services",Premises-Related Expenditure,Rates,25-Oct-22,6675201,256,OTHER LOCAL AUTHORITY,HAVANT BOROUGH COUNCIL,300000020457057 
Portsmouth City Council,PCC,Housing Revenue Account,"Rents, Rates, Taxes and Other Charges","Housing, Neighbourhood and Building Services",Premises-Related Expenditure,Rates,28-Oct-22,6676098,128,OTHER LOCAL AUTHORITY,HAVANT BOROUGH COUNCIL,300000020457057 
Portsmouth City Council,PCC,Housing Revenue Account,"Rents, Rates, Taxes and Other Charges","Housing, Neighbourhood and Building Services",Premises-Related Expenditure,Rates,28-Oct-22,6676098,128,OTHER LOCAL AUTHORITY,HAVANT BOROUGH COUNCIL,300000020457057 
Portsmouth City Council,PCC,Housing Revenue Account,"Rents, Rates, Taxes and Other Charges","Housing, Neighbourhood and Building Services",Premises-Related Expenditure,Rates,28-Oct-22,6676098,128,OTHER LOCAL AUTHORITY,HAVANT BOROUGH COUNCIL,300000020457057 
Portsmouth City Council,PCC,Housing Revenue Account,"Rents, Rates, Taxes and Other Charges","Housing, Neighbourhood and Building Services",Premises-Related Expenditure,Rates,28-Oct-22,6676098,128,OTHER LOCAL AUTHORITY,HAVANT BOROUGH COUNCIL,300000020457057 
Portsmouth City Council,PCC,Housing Revenue Account,"Rents, Rates, Taxes and Other Charges","Housing, Neighbourhood and Building Services",Premises-Related Expenditure,Rates,25-Oct-22,6675201,256,OTHER LOCAL AUTHORITY,HAVANT BOROUGH COUNCIL,300000020457057 
Portsmouth City Council,PCC,Housing Revenue Account,"Rents, Rates, Taxes and Other Charges","Housing, Neighbourhood and Building Services",Premises-Related Expenditure,Rates,25-Oct-22,6675201,128,OTHER LOCAL AUTHORITY,HAVANT BOROUGH COUNCIL,300000020457057 
Portsmouth City Council,PCC,Housing Revenue Account,"Rents, Rates, Taxes and Other Charges","Housing, Neighbourhood and Building Services",Premises-Related Expenditure,Rates,25-Oct-22,6675201,128,OTHER LOCAL AUTHORITY,HAVANT BOROUGH COUNCIL,300000020457057 
Portsmouth City Council,PCC,Housing Revenue Account,"Rents, Rates, Taxes and Other Charges","Housing, Neighbourhood and Building Services",Premises-Related Expenditure,Rates,28-Oct-22,6676098,128,OTHER LOCAL AUTHORITY,HAVANT BOROUGH COUNCIL,300000020457057 
Portsmouth City Council,PCC,Housing Revenue Account,"Rents, Rates, Taxes and Other Charges","Housing, Neighbourhood and Building Services",Premises-Related Expenditure,Rates,25-Oct-22,6675201,128,OTHER LOCAL AUTHORITY,HAVANT BOROUGH COUNCIL,300000020457057 
Portsmouth City Council,PCC,Housing Revenue Account,"Rents, Rates, Taxes and Other Charges","Housing, Neighbourhood and Building Services",Premises-Related Expenditure,Rates,28-Oct-22,6676098,128,OTHER LOCAL AUTHORITY,HAVANT BOROUGH COUNCIL,300000020457057 
Portsmouth City Council,PCC,Housing Revenue Account,"Rents, Rates, Taxes and Other Charges","Housing, Neighbourhood and Building Services",Premises-Related Expenditure,Rates,25-Oct-22,6675201,128,OTHER LOCAL AUTHORITY,HAVANT BOROUGH COUNCIL,300000020457057 
Portsmouth City Council,PCC,Housing Revenue Account,"Rents, Rates, Taxes and Other Charges","Housing, Neighbourhood and Building Services",Premises-Related Expenditure,Rates,28-Oct-22,6676098,128,OTHER LOCAL AUTHORITY,HAVANT BOROUGH COUNCIL,300000020457057 
Portsmouth City Council,PCC,Housing Revenue Account,"Rents, Rates, Taxes and Other Charges","Housing, Neighbourhood and Building Services",Premises-Related Expenditure,Rates,25-Oct-22,6675201,128,OTHER LOCAL AUTHORITY,HAVANT BOROUGH COUNCIL,300000020457057 
Portsmouth City Council,PCC,Housing Revenue Account,"Rents, Rates, Taxes and Other Charges","Housing, Neighbourhood and Building Services",Premises-Related Expenditure,Rates,25-Oct-22,6675201,128,OTHER LOCAL AUTHORITY,HAVANT BOROUGH COUNCIL,300000020457057 
Portsmouth City Council,PCC,Housing Revenue Account,"Rents, Rates, Taxes and Other Charges","Housing, Neighbourhood and Building Services",Premises-Related Expenditure,Rates,25-Oct-22,6675201,128,OTHER LOCAL AUTHORITY,HAVANT BOROUGH COUNCIL,300000020457057 
Portsmouth City Council,PCC,Children's and Education Services,Special Schools,Children's Services and Education,Third Party Payments,Other establishments,25-Oct-22,6675139,"186,213.68",SUPPLIER,SOLENT ACADEMIES TRUST,300000020477417 
Portsmouth City Council,PCC,Children's and Education Services,Special Schools,Children's Services and Education,Third Party Payments,Other establishments,25-Oct-22,6675139,"14,795.92",SUPPLIER,SOLENT ACADEMIES TRUST,300000020477417 
Portsmouth City Council,PCC,Children's and Education Services,Special Schools,Children's Services and Education,Third Party Payments,Other establishments,25-Oct-22,6675139,"10,266.64",SUPPLIER,SOLENT ACADEMIES TRUST,300000020477417 
Portsmouth City Council,PCC,Children's and Education Services,Special Schools,Children's Services and Education,Third Party Payments,Other establishments,26-Oct-22,6675752,"215,333.92",SUPPLIER,SOLENT ACADEMIES TRUST,300000020477417 
Portsmouth City Council,PCC,Children's and Education Services,Special Schools,Children's Services and Education,Third Party Payments,Other establishments,26-Oct-22,6675752,"7,629.28",SUPPLIER,SOLENT ACADEMIES TRUST,300000020477417 
Portsmouth City Council,PCC,Children's and Education Services,Special Schools,Children's Services and Education,Third Party Payments,Other establishments,26-Oct-22,6675752,"4,600.00",SUPPLIER,SOLENT ACADEMIES TRUST,300000020477417 
Portsmouth City Council,PCC,Children's and Education Services,Special Schools,Children's Services and Education,Third Party Payments,Other establishments,25-Oct-22,6675141,"101,462.32",SUPPLIER,SOLENT ACADEMIES TRUST,300000020477417 
Portsmouth City Council,PCC,Children's and Education Services,Special Schools,Children's Services and Education,Third Party Payments,Other establishments,25-Oct-22,6675141,"4,330.48",SUPPLIER,SOLENT ACADEMIES TRUST,300000020477417 
Portsmouth City Council,PCC,Children's and Education Services,Special Schools,Children's Services and Education,Third Party Payments,Other establishments,25-Oct-22,6675141,"4,666.64",SUPPLIER,SOLENT ACADEMIES TRUST,300000020477417 
Portsmouth City Council,PCC,Children's and Education Services,Special Schools,Children's Services and Education,Third Party Payments,Other establishments,25-Oct-22,6675140,"115,916.80",SUPPLIER,THE DELTA EDUCATION TRUST,300000020481637 
Portsmouth City Council,PCC,Children's and Education Services,Special Schools,Children's Services and Education,Third Party Payments,Other establishments,25-Oct-22,6675140,"10,000.00",SUPPLIER,THE DELTA EDUCATION TRUST,300000020481637 
Portsmouth City Council,PCC,Children's and Education Services,Special Schools,Children's Services and Education,Third Party Payments,Other establishments,25-Oct-22,6675140,"6,666.67",SUPPLIER,THE DELTA EDUCATION TRUST,300000020481637 
Portsmouth City Council,PCC,Children's and Education Services,Management and Support Services,Children's Services and Education,Third Party Payments,Other establishments,25-Oct-22,6675140,"19,622.40",SUPPLIER,THE DELTA EDUCATION TRUST,300000020481637 
Portsmouth City Council,PCC,Children's and Education Services,Management and Support Services,Children's Services and Education,Third Party Payments,Other establishments,25-Oct-22,6675140,"4,800.00",SUPPLIER,THE DELTA EDUCATION TRUST,300000020481637 
Portsmouth City Council,PCC,Children's and Education Services,Management and Support Services,Children's Services and Education,Third Party Payments,Other establishments,25-Oct-22,6675140,"52,800.00",SUPPLIER,THE DELTA EDUCATION TRUST,300000020481637 
Portsmouth City Council,PCC,Housing Revenue Account,"Rents, Rates, Taxes and Other Charges","Housing, Neighbourhood and Building Services",Premises-Related Expenditure,Rates,25-Oct-22,6675201,127,OTHER LOCAL AUTHORITY,HAVANT BOROUGH COUNCIL,300000020457057 
Portsmouth City Council,PCC,Housing Revenue Account,Special Services,"Housing, Neighbourhood and Building Services",Premises-Related Expenditure,Energy costs,07-Oct-22,6671779,-152.63,SUPPLIER,NPOWER,300000020460621 
Portsmouth City Council,PCC,Housing Revenue Account,Special Services,"Housing, Neighbourhood and Building Services",Premises-Related Expenditure,Energy costs,07-Oct-22,6671779,-13.31,SUPPLIER,NPOWER,300000020460621 
Portsmouth City Council,PCC,Housing Revenue Account,Special Services,"Housing, Neighbourhood and Building Services",Premises-Related Expenditure,Energy costs,07-Oct-22,6671779,-301.69,SUPPLIER,NPOWER,300000020460621 
Portsmouth City Council,PCC,Housing Revenue Account,Special Services,"Housing, Neighbourhood and Building Services",Premises-Related Expenditure,Energy costs,07-Oct-22,6671779,-205.73,SUPPLIER,NPOWER,300000020460621 
Portsmouth City Council,PCC,Housing Revenue Account,Special Services,"Housing, Neighbourhood and Building Services",Premises-Related Expenditure,Energy costs,07-Oct-22,6671779,-151.58,SUPPLIER,NPOWER,300000020460621 
Portsmouth City Council,PCC,Housing Revenue Account,Special Services,"Housing, Neighbourhood and Building Services",Premises-Related Expenditure,Energy costs,07-Oct-22,6671779,-146.78,SUPPLIER,NPOWER,300000020460621 
Portsmouth City Council,PCC,Housing Revenue Account,Special Services,"Housing, Neighbourhood and Building Services",Premises-Related Expenditure,Energy costs,07-Oct-22,6671779,196.9,SUPPLIER,NPOWER,300000020460621 
Portsmouth City Council,PCC,Housing Revenue Account,Special Services,"Housing, Neighbourhood and Building Services",Premises-Related Expenditure,Energy costs,07-Oct-22,6671779,-146.74,SUPPLIER,NPOWER,300000020460621 
Portsmouth City Council,PCC,Housing Revenue Account,Special Services,"Housing, Neighbourhood and Building Services",Premises-Related Expenditure,Energy costs,07-Oct-22,6671779,-220.09,SUPPLIER,NPOWER,300000020460621 
Portsmouth City Council,PCC,Housing Revenue Account,Special Services,"Housing, Neighbourhood and Building Services",Premises-Related Expenditure,Energy costs,07-Oct-22,6671779,-212.78,SUPPLIER,NPOWER,300000020460621 
Portsmouth City Council,PCC,Housing Revenue Account,Special Services,"Housing, Neighbourhood and Building Services",Premises-Related Expenditure,Energy costs,07-Oct-22,6671779,-219.74,SUPPLIER,NPOWER,300000020460621 
Portsmouth City Council,PCC,Housing Revenue Account,Special Services,"Housing, Neighbourhood and Building Services",Premises-Related Expenditure,Energy costs,07-Oct-22,6671779,-212.63,SUPPLIER,NPOWER,300000020460621 
Portsmouth City Council,PCC,Housing Revenue Account,Special Services,"Housing, Neighbourhood and Building Services",Premises-Related Expenditure,Energy costs,07-Oct-22,6671779,-219.73,SUPPLIER,NPOWER,300000020460621 
Portsmouth City Council,PCC,Housing Revenue Account,Special Services,"Housing, Neighbourhood and Building Services",Premises-Related Expenditure,Energy costs,07-Oct-22,6671779,-219.86,SUPPLIER,NPOWER,300000020460621 
Portsmouth City Council,PCC,Housing Revenue Account,Special Services,"Housing, Neighbourhood and Building Services",Premises-Related Expenditure,Energy costs,07-Oct-22,6671779,-67.01,SUPPLIER,NPOWER,300000020460621 
Portsmouth City Council,PCC,Housing Revenue Account,Special Services,"Housing, Neighbourhood and Building Services",Premises-Related Expenditure,Energy costs,07-Oct-22,6671779,200.75,SUPPLIER,NPOWER,300000020460621 
Portsmouth City Council,PCC,Housing Revenue Account,Special Services,"Housing, Neighbourhood and Building Services",Premises-Related Expenditure,Energy costs,07-Oct-22,6671779,177.55,SUPPLIER,NPOWER,300000020460621 
Portsmouth City Council,PCC,Housing Revenue Account,Special Services,"Housing, Neighbourhood and Building Services",Premises-Related Expenditure,Energy costs,07-Oct-22,6671779,-151.62,SUPPLIER,NPOWER,300000020460621 
Portsmouth City Council,PCC,Housing Revenue Account,Special Services,"Housing, Neighbourhood and Building Services",Premises-Related Expenditure,Energy costs,07-Oct-22,6671779,179.82,SUPPLIER,NPOWER,300000020460621 
Portsmouth City Council,PCC,Housing Revenue Account,Special Services,"Housing, Neighbourhood and Building Services",Premises-Related Expenditure,Energy costs,07-Oct-22,6671779,179.26,SUPPLIER,NPOWER,300000020460621 
Portsmouth City Council,PCC,Housing Revenue Account,Special Services,"Housing, Neighbourhood and Building Services",Premises-Related Expenditure,Energy costs,07-Oct-22,6671779,185.08,SUPPLIER,NPOWER,300000020460621 
Portsmouth City Council,PCC,Housing Revenue Account,Special Services,"Housing, Neighbourhood and Building Services",Premises-Related Expenditure,Energy costs,07-Oct-22,6671779,185.25,SUPPLIER,NPOWER,300000020460621 
Portsmouth City Council,PCC,Housing Revenue Account,Special Services,"Housing, Neighbourhood and Building Services",Premises-Related Expenditure,Energy costs,07-Oct-22,6671779,167.23,SUPPLIER,NPOWER,300000020460621 
Portsmouth City Council,PCC,Housing Revenue Account,Special Services,"Housing, Neighbourhood and Building Services",Premises-Related Expenditure,Energy costs,07-Oct-22,6671779,185.38,SUPPLIER,NPOWER,300000020460621 
Portsmouth City Council,PCC,Housing Revenue Account,Special Services,"Housing, Neighbourhood and Building Services",Premises-Related Expenditure,Energy costs,07-Oct-22,6671779,179.4,SUPPLIER,NPOWER,300000020460621 
Portsmouth City Council,PCC,Housing Revenue Account,Special Services,"Housing, Neighbourhood and Building Services",Premises-Related Expenditure,Energy costs,07-Oct-22,6671779,185.38,SUPPLIER,NPOWER,300000020460621 
Portsmouth City Council,PCC,Housing Revenue Account,Special Services,"Housing, Neighbourhood and Building Services",Premises-Related Expenditure,Energy costs,07-Oct-22,6671779,225.48,SUPPLIER,NPOWER,300000020460621 
Portsmouth City Council,PCC,Housing Revenue Account,Special Services,"Housing, Neighbourhood and Building Services",Premises-Related Expenditure,Energy costs,07-Oct-22,6671779,185.25,SUPPLIER,NPOWER,300000020460621 
Portsmouth City Council,PCC,Housing Revenue Account,Special Services,"Housing, Neighbourhood and Building Services",Premises-Related Expenditure,Energy costs,07-Oct-22,6671779,171.81,SUPPLIER,NPOWER,300000020460621 
Portsmouth City Council,PCC,Housing Revenue Account,Special Services,"Housing, Neighbourhood and Building Services",Premises-Related Expenditure,Energy costs,07-Oct-22,6671779,171.81,SUPPLIER,NPOWER,300000020460621 
Portsmouth City Council,PCC,Housing Revenue Account,Special Services,"Housing, Neighbourhood and Building Services",Premises-Related Expenditure,Energy costs,07-Oct-22,6671779,177.55,SUPPLIER,NPOWER,300000020460621 
Portsmouth City Council,PCC,Housing Revenue Account,Special Services,"Housing, Neighbourhood and Building Services",Premises-Related Expenditure,Energy costs,07-Oct-22,6671779,177.52,SUPPLIER,NPOWER,300000020460621 
Portsmouth City Council,PCC,Housing Revenue Account,Special Services,"Housing, Neighbourhood and Building Services",Premises-Related Expenditure,Energy costs,07-Oct-22,6671779,171.81,SUPPLIER,NPOWER,300000020460621 
Portsmouth City Council,PCC,Housing Revenue Account,Special Services,"Housing, Neighbourhood and Building Services",Premises-Related Expenditure,Energy costs,07-Oct-22,6671779,150.37,SUPPLIER,NPOWER,300000020460621 
Portsmouth City Council,PCC,Housing Revenue Account,Special Services,"Housing, Neighbourhood and Building Services",Premises-Related Expenditure,Energy costs,07-Oct-22,6671779,143.22,SUPPLIER,NPOWER,300000020460621 
Portsmouth City Council,PCC,Housing Revenue Account,Special Services,"Housing, Neighbourhood and Building Services",Premises-Related Expenditure,Energy costs,07-Oct-22,6671779,-157.48,SUPPLIER,NPOWER,300000020460621 
Portsmouth City Council,PCC,Housing Revenue Account,Special Services,"Housing, Neighbourhood and Building Services",Premises-Related Expenditure,Energy costs,07-Oct-22,6671779,213.52,SUPPLIER,NPOWER,300000020460621 
Portsmouth City Council,PCC,Housing Revenue Account,Special Services,"Housing, Neighbourhood and Building Services",Premises-Related Expenditure,Energy costs,07-Oct-22,6671779,220.77,SUPPLIER,NPOWER,300000020460621 
Portsmouth City Council,PCC,Housing Revenue Account,Special Services,"Housing, Neighbourhood and Building Services",Premises-Related Expenditure,Energy costs,07-Oct-22,6671779,-378.83,SUPPLIER,NPOWER,300000020460621 
Portsmouth City Council,PCC,Housing Revenue Account,Special Services,"Housing, Neighbourhood and Building Services",Premises-Related Expenditure,Energy costs,07-Oct-22,6671779,-370.58,SUPPLIER,NPOWER,300000020460621 
Portsmouth City Council,PCC,Housing Revenue Account,Special Services,"Housing, Neighbourhood and Building Services",Premises-Related Expenditure,Energy costs,07-Oct-22,6671779,-156.98,SUPPLIER,NPOWER,300000020460621 
Portsmouth City Council,PCC,Housing Revenue Account,Special Services,"Housing, Neighbourhood and Building Services",Premises-Related Expenditure,Energy costs,07-Oct-22,6671779,-156.7,SUPPLIER,NPOWER,300000020460621 
Portsmouth City Council,PCC,Housing Revenue Account,Special Services,"Housing, Neighbourhood and Building Services",Premises-Related Expenditure,Energy costs,07-Oct-22,6671779,-141.82,SUPPLIER,NPOWER,300000020460621 
Portsmouth City Council,PCC,Housing Revenue Account,Special Services,"Housing, Neighbourhood and Building Services",Premises-Related Expenditure,Energy costs,07-Oct-22,6671779,-156.98,SUPPLIER,NPOWER,300000020460621 
Portsmouth City Council,PCC,Housing Revenue Account,Special Services,"Housing, Neighbourhood and Building Services",Premises-Related Expenditure,Energy costs,07-Oct-22,6671779,-146.62,SUPPLIER,NPOWER,300000020460621 
Portsmouth City Council,PCC,Housing Revenue Account,Special Services,"Housing, Neighbourhood and Building Services",Premises-Related Expenditure,Energy costs,07-Oct-22,6671779,-151.74,SUPPLIER,NPOWER,300000020460621 
Portsmouth City Council,PCC,Housing Revenue Account,Special Services,"Housing, Neighbourhood and Building Services",Premises-Related Expenditure,Energy costs,07-Oct-22,6671779,185.33,SUPPLIER,NPOWER,300000020460621 
Portsmouth City Council,PCC,Housing Revenue Account,Special Services,"Housing, Neighbourhood and Building Services",Premises-Related Expenditure,Energy costs,07-Oct-22,6671779,213.64,SUPPLIER,NPOWER,300000020460621 
Portsmouth City Council,PCC,Housing Revenue Account,"Rents, Rates, Taxes and Other Charges","Housing, Neighbourhood and Building Services",Premises-Related Expenditure,Rates,25-Oct-22,6675201,121,OTHER LOCAL AUTHORITY,HAVANT BOROUGH COUNCIL,300000020457057 
Portsmouth City Council,PCC,Housing Revenue Account,"Rents, Rates, Taxes and Other Charges","Housing, Neighbourhood and Building Services",Premises-Related Expenditure,Rates,25-Oct-22,6675201,142,OTHER LOCAL AUTHORITY,HAVANT BOROUGH COUNCIL,300000020457057 
Portsmouth City Council,PCC,Housing Revenue Account,"Rents, Rates, Taxes and Other Charges","Housing, Neighbourhood and Building Services",Premises-Related Expenditure,Rates,25-Oct-22,6675201,134,OTHER LOCAL AUTHORITY,HAVANT BOROUGH COUNCIL,300000020457057 
Portsmouth City Council,PCC,Housing Revenue Account,"Rents, Rates, Taxes and Other Charges","Housing, Neighbourhood and Building Services",Premises-Related Expenditure,Rates,25-Oct-22,6675201,128,OTHER LOCAL AUTHORITY,HAVANT BOROUGH COUNCIL,300000020457057 
Portsmouth City Council,PCC,Housing Revenue Account,"Rents, Rates, Taxes and Other Charges","Housing, Neighbourhood and Building Services",Premises-Related Expenditure,Rates,25-Oct-22,6675201,256,OTHER LOCAL AUTHORITY,HAVANT BOROUGH COUNCIL,300000020457057 
Portsmouth City Council,PCC,Housing Revenue Account,"Rents, Rates, Taxes and Other Charges","Housing, Neighbourhood and Building Services",Premises-Related Expenditure,Rates,25-Oct-22,6675201,142,OTHER LOCAL AUTHORITY,HAVANT BOROUGH COUNCIL,300000020457057 
Portsmouth City Council,PCC,Housing Revenue Account,"Rents, Rates, Taxes and Other Charges","Housing, Neighbourhood and Building Services",Premises-Related Expenditure,Rates,25-Oct-22,6675201,179,OTHER LOCAL AUTHORITY,HAVANT BOROUGH COUNCIL,300000020457057 
Portsmouth City Council,PCC,Housing Revenue Account,"Rents, Rates, Taxes and Other Charges","Housing, Neighbourhood and Building Services",Premises-Related Expenditure,Rates,25-Oct-22,6675201,132,OTHER LOCAL AUTHORITY,HAVANT BOROUGH COUNCIL,300000020457057 
Portsmouth City Council,PCC,Housing Revenue Account,"Rents, Rates, Taxes and Other Charges","Housing, Neighbourhood and Building Services",Premises-Related Expenditure,Rates,25-Oct-22,6675201,133,OTHER LOCAL AUTHORITY,HAVANT BOROUGH COUNCIL,300000020457057 
Portsmouth City Council,PCC,Housing Revenue Account,"Rents, Rates, Taxes and Other Charges","Housing, Neighbourhood and Building Services",Premises-Related Expenditure,Rates,25-Oct-22,6675201,144,OTHER LOCAL AUTHORITY,HAVANT BOROUGH COUNCIL,300000020457057 
Portsmouth City Council,PCC,Housing Revenue Account,"Rents, Rates, Taxes and Other Charges","Housing, Neighbourhood and Building Services",Premises-Related Expenditure,Rates,25-Oct-22,6675201,125,OTHER LOCAL AUTHORITY,HAVANT BOROUGH COUNCIL,300000020457057 
Portsmouth City Council,PCC,Housing Revenue Account,"Rents, Rates, Taxes and Other Charges","Housing, Neighbourhood and Building Services",Premises-Related Expenditure,Rates,25-Oct-22,6675201,125,OTHER LOCAL AUTHORITY,HAVANT BOROUGH COUNCIL,300000020457057 
Portsmouth City Council,PCC,Housing Revenue Account,"Rents, Rates, Taxes and Other Charges","Housing, Neighbourhood and Building Services",Premises-Related Expenditure,Rates,25-Oct-22,6675201,156,OTHER LOCAL AUTHORITY,HAVANT BOROUGH COUNCIL,300000020457057 
Portsmouth City Council,PCC,Adult Social Care,Social Support - Support for Carer,Adult Care,Third Party Payments,Other establishments,26-Oct-22,6675301,400.32,SUPPLIER,AGINCARE UK,300000020481869 
Portsmouth City Council,PCC,Housing Revenue Account,"Rents, Rates, Taxes and Other Charges","Housing, Neighbourhood and Building Services",Premises-Related Expenditure,Rates,25-Oct-22,6675201,161,OTHER LOCAL AUTHORITY,HAVANT BOROUGH COUNCIL,300000020457057 
Portsmouth City Council,PCC,Children's and Education Services,Safeguarding Children and Young Peoples Services,Children's Services and Education,Third Party Payments,Other establishments,07-Oct-22,6671670,-625,SUPPLIER,BUILDING FOUNDATIONS LIMITED,300000020474383 
Portsmouth City Council,PCC,Children's and Education Services,Safeguarding Children and Young Peoples Services,Children's Services and Education,Third Party Payments,Other establishments,07-Oct-22,6671670,-625,SUPPLIER,BUILDING FOUNDATIONS LIMITED,300000020474383 
Portsmouth City Council,PCC,Children's and Education Services,Safeguarding Children and Young Peoples Services,Children's Services and Education,Third Party Payments,Other establishments,07-Oct-22,6671670,-625,SUPPLIER,BUILDING FOUNDATIONS LIMITED,300000020474383 
Portsmouth City Council,PCC,Children's and Education Services,Safeguarding Children and Young Peoples Services,Children's Services and Education,Third Party Payments,Other establishments,07-Oct-22,6671670,-125,SUPPLIER,BUILDING FOUNDATIONS LIMITED,300000020474383 
Portsmouth City Council,PCC,Children's and Education Services,Safeguarding Children and Young Peoples Services,Children's Services and Education,Third Party Payments,Other establishments,07-Oct-22,6671670,-125,SUPPLIER,BUILDING FOUNDATIONS LIMITED,300000020474383 
Portsmouth City Council,PCC,Children's and Education Services,Safeguarding Children and Young Peoples Services,Children's Services and Education,Third Party Payments,Other establishments,07-Oct-22,6671670,-89.29,SUPPLIER,BUILDING FOUNDATIONS LIMITED,300000020474383 
Portsmouth City Council,PCC,Children's and Education Services,Safeguarding Children and Young Peoples Services,Children's Services and Education,Third Party Payments,Other establishments,07-Oct-22,6671670,-17.86,SUPPLIER,BUILDING FOUNDATIONS LIMITED,300000020474383 
Portsmouth City Council,PCC,Children's and Education Services,Safeguarding Children and Young Peoples Services,Children's Services and Education,Third Party Payments,Other establishments,07-Oct-22,6671670,0.01,SUPPLIER,BUILDING FOUNDATIONS LIMITED,300000020474383 
Portsmouth City Council,PCC,Children's and Education Services,Safeguarding Children and Young Peoples Services,Children's Services and Education,Third Party Payments,Other establishments,07-Oct-22,6671670,2.75,SUPPLIER,BUILDING FOUNDATIONS LIMITED,300000020474383 
Portsmouth City Council,PCC,Children's and Education Services,Safeguarding Children and Young Peoples Services,Children's Services and Education,Third Party Payments,Other establishments,07-Oct-22,6671670,515.1,SUPPLIER,BUILDING FOUNDATIONS LIMITED,300000020474383 
Portsmouth City Council,PCC,Adult Social Care,Social Support - Support for Carer,Adult Care,Third Party Payments,Other establishments,26-Oct-22,6675301,400.32,SUPPLIER,AGINCARE UK,300000020481869 
Portsmouth City Council,PCC,Adult Social Care,Social Support - Support for Carer,Adult Care,Third Party Payments,Other establishments,26-Oct-22,6675301,66.72,SUPPLIER,AGINCARE UK,300000020481869 
Portsmouth City Council,PCC,Adult Social Care,Physical Support Adults (18 - 64),Adult Care,Third Party Payments,Other establishments,26-Oct-22,6675301,116.16,SUPPLIER,AGINCARE UK,300000020481869 
Portsmouth City Council,PCC,Adult Social Care,Physical Support Adults (18 - 64),Adult Care,Third Party Payments,Other establishments,26-Oct-22,6675301,861.52,SUPPLIER,AGINCARE UK,300000020481869 
Portsmouth City Council,PCC,Adult Social Care,Social Support - Support for Carer,Adult Care,Third Party Payments,Other establishments,26-Oct-22,6675301,300.24,SUPPLIER,AGINCARE UK,300000020481869 
Portsmouth City Council,PCC,Children's and Education Services,Safeguarding Children and Young Peoples Services,Children's Services and Education,Third Party Payments,Other establishments,31-Oct-22,6676317,700,SUPPLIER,ULT TRADING COMPANY LTD,300000020476218 
Portsmouth City Council,PCC,Children's and Education Services,Safeguarding Children and Young Peoples Services,Children's Services and Education,Third Party Payments,Other establishments,03-Oct-22,6670595,413.72,SUPPLIER,COMPASS COMMUNITY LIMITED,300000020462668 
Portsmouth City Council,PCC,Children's and Education Services,Safeguarding Children and Young Peoples Services,Children's Services and Education,Third Party Payments,Other establishments,03-Oct-22,6670595,620.58,SUPPLIER,COMPASS COMMUNITY LIMITED,300000020462668 
Portsmouth City Council,PCC,Children's and Education Services,Safeguarding Children and Young Peoples Services,Children's Services and Education,Third Party Payments,Other establishments,03-Oct-22,6670595,724.01,SUPPLIER,COMPASS COMMUNITY LIMITED,300000020462668 
Portsmouth City Council,PCC,Children's and Education Services,Safeguarding Children and Young Peoples Services,Children's Services and Education,Third Party Payments,Other establishments,03-Oct-22,6670595,724.01,SUPPLIER,COMPASS COMMUNITY LIMITED,300000020462668 
Portsmouth City Council,PCC,Children's and Education Services,Safeguarding Children and Young Peoples Services,Children's Services and Education,Third Party Payments,Other establishments,03-Oct-22,6670595,724.01,SUPPLIER,COMPASS COMMUNITY LIMITED,300000020462668 
Portsmouth City Council,PCC,Children's and Education Services,Children Looked After,Children's Services and Education,Third Party Payments,Other establishments,04-Oct-22,6670682,-0.26,SUPPLIER,BLUE SKY FOSTERING,300000020464936 
Portsmouth City Council,PCC,Children's and Education Services,Children Looked After,Children's Services and Education,Third Party Payments,Other establishments,04-Oct-22,6670682,331.29,SUPPLIER,BLUE SKY FOSTERING,300000020464936 
Portsmouth City Council,PCC,Children's and Education Services,Children Looked After,Children's Services and Education,Third Party Payments,Other establishments,04-Oct-22,6670682,662.57,SUPPLIER,BLUE SKY FOSTERING,300000020464936 
Portsmouth City Council,PCC,Children's and Education Services,Children Looked After,Children's Services and Education,Third Party Payments,Other establishments,04-Oct-22,6670682,773,SUPPLIER,BLUE SKY FOSTERING,300000020464936 
Portsmouth City Council,PCC,Children's and Education Services,Children Looked After,Children's Services and Education,Third Party Payments,Other establishments,04-Oct-22,6670682,773,SUPPLIER,BLUE SKY FOSTERING,300000020464936 
Portsmouth City Council,PCC,Children's and Education Services,Children Looked After,Children's Services and Education,Third Party Payments,Other establishments,04-Oct-22,6670682,773,SUPPLIER,BLUE SKY FOSTERING,300000020464936 
Portsmouth City Council,PCC,Children's and Education Services,Children Looked After,Children's Services and Education,Third Party Payments,Other establishments,04-Oct-22,6670682,-0.26,SUPPLIER,BLUE SKY FOSTERING,300000020464936 
Portsmouth City Council,PCC,Children's and Education Services,Children Looked After,Children's Services and Education,Third Party Payments,Other establishments,04-Oct-22,6670682,331.29,SUPPLIER,BLUE SKY FOSTERING,300000020464936 
Portsmouth City Council,PCC,Children's and Education Services,Children Looked After,Children's Services and Education,Third Party Payments,Other establishments,04-Oct-22,6670682,662.57,SUPPLIER,BLUE SKY FOSTERING,300000020464936 
Portsmouth City Council,PCC,Children's and Education Services,Children Looked After,Children's Services and Education,Third Party Payments,Other establishments,04-Oct-22,6670682,773,SUPPLIER,BLUE SKY FOSTERING,300000020464936 
Portsmouth City Council,PCC,Children's and Education Services,Children Looked After,Children's Services and Education,Third Party Payments,Other establishments,04-Oct-22,6670682,773,SUPPLIER,BLUE SKY FOSTERING,300000020464936 
Portsmouth City Council,PCC,Children's and Education Services,Children Looked After,Children's Services and Education,Third Party Payments,Other establishments,04-Oct-22,6670682,773,SUPPLIER,BLUE SKY FOSTERING,300000020464936 
Portsmouth City Council,PCC,Children's and Education Services,Children Looked After,Children's Services and Education,Third Party Payments,Other establishments,04-Oct-22,6670695,-0.04,SUPPLIER,THE CHILDRENS FAMILY TRUST,300000020479545 
Portsmouth City Council,PCC,Children's and Education Services,Children Looked After,Children's Services and Education,Third Party Payments,Other establishments,04-Oct-22,6670695,323.43,SUPPLIER,THE CHILDRENS FAMILY TRUST,300000020479545 
Portsmouth City Council,PCC,Children's and Education Services,Children Looked After,Children's Services and Education,Third Party Payments,Other establishments,04-Oct-22,6670695,646.87,SUPPLIER,THE CHILDRENS FAMILY TRUST,300000020479545 
Portsmouth City Council,PCC,Children's and Education Services,Children Looked After,Children's Services and Education,Third Party Payments,Other establishments,04-Oct-22,6670695,754.68,SUPPLIER,THE CHILDRENS FAMILY TRUST,300000020479545 
Portsmouth City Council,PCC,Children's and Education Services,Children Looked After,Children's Services and Education,Third Party Payments,Other establishments,04-Oct-22,6670695,754.68,SUPPLIER,THE CHILDRENS FAMILY TRUST,300000020479545 
Portsmouth City Council,PCC,Children's and Education Services,Children Looked After,Children's Services and Education,Third Party Payments,Other establishments,04-Oct-22,6670695,754.68,SUPPLIER,THE CHILDRENS FAMILY TRUST,300000020479545 
Portsmouth City Council,PCC,Children's and Education Services,Children Looked After,Children's Services and Education,Third Party Payments,Other establishments,04-Oct-22,6670695,331.83,SUPPLIER,THE CHILDRENS FAMILY TRUST,300000020479545 
Portsmouth City Council,PCC,Children's and Education Services,Children Looked After,Children's Services and Education,Third Party Payments,Other establishments,04-Oct-22,6670695,663.66,SUPPLIER,THE CHILDRENS FAMILY TRUST,300000020479545 
Portsmouth City Council,PCC,Children's and Education Services,Children Looked After,Children's Services and Education,Third Party Payments,Other establishments,04-Oct-22,6670695,774.27,SUPPLIER,THE CHILDRENS FAMILY TRUST,300000020479545 
Portsmouth City Council,PCC,Children's and Education Services,Children Looked After,Children's Services and Education,Third Party Payments,Other establishments,04-Oct-22,6670695,774.27,SUPPLIER,THE CHILDRENS FAMILY TRUST,300000020479545 
Portsmouth City Council,PCC,Children's and Education Services,Children Looked After,Children's Services and Education,Third Party Payments,Other establishments,04-Oct-22,6670695,774.27,SUPPLIER,THE CHILDRENS FAMILY TRUST,300000020479545 
Portsmouth City Council,PCC,Children's and Education Services,Children Looked After,Children's Services and Education,Third Party Payments,Other establishments,04-Oct-22,6670695,0.04,SUPPLIER,THE CHILDRENS FAMILY TRUST,300000020479545 
Portsmouth City Council,PCC,Children's and Education Services,Children Looked After,Children's Services and Education,Third Party Payments,Other establishments,04-Oct-22,6670695,336.51,SUPPLIER,THE CHILDRENS FAMILY TRUST,300000020479545 
Portsmouth City Council,PCC,Children's and Education Services,Children Looked After,Children's Services and Education,Third Party Payments,Other establishments,04-Oct-22,6670695,673.01,SUPPLIER,THE CHILDRENS FAMILY TRUST,300000020479545 
Portsmouth City Council,PCC,Children's and Education Services,Children Looked After,Children's Services and Education,Third Party Payments,Other establishments,04-Oct-22,6670695,785.18,SUPPLIER,THE CHILDRENS FAMILY TRUST,300000020479545 
Portsmouth City Council,PCC,Children's and Education Services,Children Looked After,Children's Services and Education,Third Party Payments,Other establishments,04-Oct-22,6670695,785.18,SUPPLIER,THE CHILDRENS FAMILY TRUST,300000020479545 
Portsmouth City Council,PCC,Children's and Education Services,Children Looked After,Children's Services and Education,Third Party Payments,Other establishments,04-Oct-22,6670695,785.18,SUPPLIER,THE CHILDRENS FAMILY TRUST,300000020479545 
Portsmouth City Council,PCC,Children's and Education Services,Children Looked After,Children's Services and Education,Third Party Payments,Other establishments,04-Oct-22,6670695,-0.04,SUPPLIER,THE CHILDRENS FAMILY TRUST,300000020479545 
Portsmouth City Council,PCC,Children's and Education Services,Children Looked After,Children's Services and Education,Third Party Payments,Other establishments,04-Oct-22,6670695,331.83,SUPPLIER,THE CHILDRENS FAMILY TRUST,300000020479545 
Portsmouth City Council,PCC,Children's and Education Services,Children Looked After,Children's Services and Education,Third Party Payments,Other establishments,04-Oct-22,6670695,663.67,SUPPLIER,THE CHILDRENS FAMILY TRUST,300000020479545 
Portsmouth City Council,PCC,Children's and Education Services,Children Looked After,Children's Services and Education,Third Party Payments,Other establishments,04-Oct-22,6670695,774.28,SUPPLIER,THE CHILDRENS FAMILY TRUST,300000020479545 
Portsmouth City Council,PCC,Children's and Education Services,Children Looked After,Children's Services and Education,Third Party Payments,Other establishments,04-Oct-22,6670695,774.28,SUPPLIER,THE CHILDRENS FAMILY TRUST,300000020479545 
Portsmouth City Council,PCC,Children's and Education Services,Children Looked After,Children's Services and Education,Third Party Payments,Other establishments,04-Oct-22,6670695,774.28,SUPPLIER,THE CHILDRENS FAMILY TRUST,300000020479545 
Portsmouth City Council,PCC,Children's and Education Services,Children Looked After,Children's Services and Education,Third Party Payments,Other establishments,04-Oct-22,6670741,121.43,SUPPLIER,FOSTERING SOLUTIONS,300000009793967 
Portsmouth City Council,PCC,Children's and Education Services,Children Looked After,Children's Services and Education,Third Party Payments,Other establishments,04-Oct-22,6670741,485.72,SUPPLIER,FOSTERING SOLUTIONS,300000009793967 
Portsmouth City Council,PCC,Housing Services,Housing Strategy,"Housing, Neighbourhood and Building Services",Income,Customer and client receipts,05-Oct-22,6670773,"-1,599.00",SUPPLIER,RAPID RAMP LIMITED,300000020478499 
Portsmouth City Council,PCC,Other,Suspense and Capital Schemes,"Housing, Neighbourhood and Building Services",Supplies and Services,Services,05-Oct-22,6670773,"1,918.80",SUPPLIER,RAPID RAMP LIMITED,300000020478499 
Portsmouth City Council,PCC,Other,Suspense and Capital Schemes,"Housing, Neighbourhood and Building Services",Supplies and Services,Services,05-Oct-22,6670773,"10,660.00",SUPPLIER,RAPID RAMP LIMITED,300000020478499 
Portsmouth City Council,PCC,Adult Social Care,Physical Support Older People (85+),Adult Care,Third Party Payments,Other establishments,26-Oct-22,6675301,687.28,SUPPLIER,AGINCARE UK,300000020481869 
Portsmouth City Council,PCC,Adult Social Care,Social Support - Support for Carer,Adult Care,Third Party Payments,Other establishments,26-Oct-22,6675301,50.04,SUPPLIER,AGINCARE UK,300000020481869 
Portsmouth City Council,PCC,Adult Social Care,Social Support - Support for Carer,Adult Care,Third Party Payments,Other establishments,26-Oct-22,6675301,133.44,SUPPLIER,AGINCARE UK,300000020481869 
Portsmouth City Council,PCC,Adult Social Care,Physical Support Older People (85+),Adult Care,Third Party Payments,Other establishments,26-Oct-22,6675301,232.32,SUPPLIER,AGINCARE UK,300000020481869 
Portsmouth City Council,PCC,Other,Suspense and Capital Schemes,"Housing, Neighbourhood and Building Services",Supplies and Services,Services,04-Oct-22,6670728,"1,903.00",LIMITED COMPANY,CONCEPT DESIGN SOLUTIONS LTD,300000118164776 
Portsmouth City Council,PCC,Adult Social Care,Physical Support Older People (85+),Adult Care,Third Party Payments,Other establishments,26-Oct-22,6675301,532.4,SUPPLIER,AGINCARE UK,300000020481869 
Portsmouth City Council,PCC,Adult Social Care,Physical Support Adults (18 - 64),Adult Care,Third Party Payments,Other establishments,26-Oct-22,6675301,19.36,SUPPLIER,AGINCARE UK,300000020481869 
Portsmouth City Council,PCC,Adult Social Care,Social Support - Support for Carer,Adult Care,Third Party Payments,Other establishments,26-Oct-22,6675301,166.8,SUPPLIER,AGINCARE UK,300000020481869 
Portsmouth City Council,PCC,Adult Social Care,Assistive Equipment & Technology,Adult Care,Premises-Related Expenditure,"Repairs, alterations and maintenance of buildings",03-Oct-22,6670568,270,SOLETRADER,ALC BUILDING SERVICES,300000020461119 
Portsmouth City Council,PCC,Adult Social Care,Assistive Equipment & Technology,Adult Care,Premises-Related Expenditure,"Repairs, alterations and maintenance of buildings",03-Oct-22,6670568,340,SOLETRADER,ALC BUILDING SERVICES,300000020461119 
Portsmouth City Council,PCC,Adult Social Care,Assistive Equipment & Technology,Adult Care,Premises-Related Expenditure,"Repairs, alterations and maintenance of buildings",13-Oct-22,6673422,209,SOLETRADER,ALC BUILDING SERVICES,300000020461119 
Portsmouth City Council,PCC,Adult Social Care,Assistive Equipment & Technology,Adult Care,Premises-Related Expenditure,"Repairs, alterations and maintenance of buildings",13-Oct-22,6673422,480,SOLETRADER,ALC BUILDING SERVICES,300000020461119 
Portsmouth City Council,PCC,Adult Social Care,Learning Disability Support Adults (18 - 64),Adult Care,Third Party Payments,Other establishments,12-Oct-22,6672908,"4,877.54",SUPPLIER,ALLIED CARE ASHSTEAD HOUSE,300000020473831 
Portsmouth City Council,PCC,Adult Social Care,Social Care Activities,Adult Care,Third Party Payments,Other establishments,26-Oct-22,6675308,15.02,SUPPLIER,ALTOGETHER CARE LLP,300000120931464 
Portsmouth City Council,PCC,Children's and Education Services,Children Looked After,Children's Services and Education,Third Party Payments,Other establishments,04-Oct-22,6670737,424,CHARITY OR VOLUNTARY,FRIENDS THERAPEUTIC COMMUNITY TRUST,300000333489551 
Portsmouth City Council,PCC,Children's and Education Services,Children Looked After,Children's Services and Education,Third Party Payments,Other establishments,04-Oct-22,6670737,462,CHARITY OR VOLUNTARY,FRIENDS THERAPEUTIC COMMUNITY TRUST,300000333489551 
Portsmouth City Council,PCC,Children's and Education Services,Children Looked After,Children's Services and Education,Third Party Payments,Other establishments,04-Oct-22,6670737,636,CHARITY OR VOLUNTARY,FRIENDS THERAPEUTIC COMMUNITY TRUST,300000333489551 
Portsmouth City Council,PCC,Children's and Education Services,Children Looked After,Children's Services and Education,Third Party Payments,Other establishments,04-Oct-22,6670737,693,CHARITY OR VOLUNTARY,FRIENDS THERAPEUTIC COMMUNITY TRUST,300000333489551 
Portsmouth City Council,PCC,Children's and Education Services,Children Looked After,Children's Services and Education,Third Party Payments,Other establishments,04-Oct-22,6670737,742,CHARITY OR VOLUNTARY,FRIENDS THERAPEUTIC COMMUNITY TRUST,300000333489551 
Portsmouth City Council,PCC,Children's and Education Services,Children Looked After,Children's Services and Education,Third Party Payments,Other establishments,04-Oct-22,6670737,742,CHARITY OR VOLUNTARY,FRIENDS THERAPEUTIC COMMUNITY TRUST,300000333489551 
Portsmouth City Council,PCC,Children's and Education Services,Children Looked After,Children's Services and Education,Third Party Payments,Other establishments,04-Oct-22,6670737,742,CHARITY OR VOLUNTARY,FRIENDS THERAPEUTIC COMMUNITY TRUST,300000333489551 
Portsmouth City Council,PCC,Children's and Education Services,Children Looked After,Children's Services and Education,Third Party Payments,Other establishments,04-Oct-22,6670737,808.5,CHARITY OR VOLUNTARY,FRIENDS THERAPEUTIC COMMUNITY TRUST,300000333489551 
Portsmouth City Council,PCC,Children's and Education Services,Children Looked After,Children's Services and Education,Third Party Payments,Other establishments,04-Oct-22,6670737,808.5,CHARITY OR VOLUNTARY,FRIENDS THERAPEUTIC COMMUNITY TRUST,300000333489551 
Portsmouth City Council,PCC,Children's and Education Services,Children Looked After,Children's Services and Education,Third Party Payments,Other establishments,04-Oct-22,6670737,808.5,CHARITY OR VOLUNTARY,FRIENDS THERAPEUTIC COMMUNITY TRUST,300000333489551 
Portsmouth City Council,PCC,Children's and Education Services,Children Looked After,Children's Services and Education,Third Party Payments,Other establishments,04-Oct-22,6670737,"2,906.00",CHARITY OR VOLUNTARY,FRIENDS THERAPEUTIC COMMUNITY TRUST,300000333489551 
Portsmouth City Council,PCC,Children's and Education Services,Children Looked After,Children's Services and Education,Third Party Payments,Other establishments,04-Oct-22,6670737,"4,359.00",CHARITY OR VOLUNTARY,FRIENDS THERAPEUTIC COMMUNITY TRUST,300000333489551 
Portsmouth City Council,PCC,Children's and Education Services,Children Looked After,Children's Services and Education,Third Party Payments,Other establishments,04-Oct-22,6670737,"5,085.50",CHARITY OR VOLUNTARY,FRIENDS THERAPEUTIC COMMUNITY TRUST,300000333489551 
Portsmouth City Council,PCC,Children's and Education Services,Children Looked After,Children's Services and Education,Third Party Payments,Other establishments,04-Oct-22,6670737,"5,085.50",CHARITY OR VOLUNTARY,FRIENDS THERAPEUTIC COMMUNITY TRUST,300000333489551 
Portsmouth City Council,PCC,Children's and Education Services,Children Looked After,Children's Services and Education,Third Party Payments,Other establishments,04-Oct-22,6670737,"5,085.50",CHARITY OR VOLUNTARY,FRIENDS THERAPEUTIC COMMUNITY TRUST,300000333489551 
Portsmouth City Council,PCC,Other,Suspense and Capital Schemes,Capital - Housing General Fund,Capital Charges,REFCUS,06-Oct-22,6671592,"7,990.00",SUPPLIER,ANY MAINTENANCE LTD,300000020474016 
Portsmouth City Council,PCC,Housing Services,Private Sector Housing Renewal,"Housing, Neighbourhood and Building Services",Income,Other grants reimbursements and contributions,07-Oct-22,6671701,"-1,241.70",LIMITED COMPANY,CONCEPT DESIGN SOLUTIONS LTD,300000118164776 
Portsmouth City Council,PCC,Other,Suspense and Capital Schemes,Capital - Housing General Fund,Capital Charges,REFCUS,07-Oct-22,6671701,"1,490.04",LIMITED COMPANY,CONCEPT DESIGN SOLUTIONS LTD,300000118164776 
Portsmouth City Council,PCC,Other,Suspense and Capital Schemes,Capital - Housing General Fund,Capital Charges,REFCUS,07-Oct-22,6671701,"8,278.00",LIMITED COMPANY,CONCEPT DESIGN SOLUTIONS LTD,300000118164776 
Portsmouth City Council,PCC,Housing Services,Housing Strategy,"Housing, Neighbourhood and Building Services",Income,Customer and client receipts,07-Oct-22,6671701,-824.7,LIMITED COMPANY,CONCEPT DESIGN SOLUTIONS LTD,300000118164776 
Portsmouth City Council,PCC,Other,Suspense and Capital Schemes,"Housing, Neighbourhood and Building Services",Supplies and Services,Services,07-Oct-22,6671701,989.64,LIMITED COMPANY,CONCEPT DESIGN SOLUTIONS LTD,300000118164776 
Portsmouth City Council,PCC,Other,Suspense and Capital Schemes,"Housing, Neighbourhood and Building Services",Supplies and Services,Services,07-Oct-22,6671701,"5,498.00",LIMITED COMPANY,CONCEPT DESIGN SOLUTIONS LTD,300000118164776 
Portsmouth City Council,PCC,Other,Suspense and Capital Schemes,Capital - Housing General Fund,Capital Charges,REFCUS,07-Oct-22,6671783,"2,060.00",LIMITED COMPANY,LIFTECH SYSTEMS (SE) LIMITED,300000020461913 
Portsmouth City Council,PCC,Other,Suspense and Capital Schemes,Capital - Housing General Fund,Capital Charges,REFCUS,07-Oct-22,6671783,"3,920.00",LIMITED COMPANY,LIFTECH SYSTEMS (SE) LIMITED,300000020461913 
Portsmouth City Council,PCC,Housing Services,Private Sector Housing Renewal,"Housing, Neighbourhood and Building Services",Income,Other grants reimbursements and contributions,07-Oct-22,6671783,-567.75,LIMITED COMPANY,LIFTECH SYSTEMS (SE) LIMITED,300000020461913 
Portsmouth City Council,PCC,Other,Suspense and Capital Schemes,Capital - Housing General Fund,Capital Charges,REFCUS,07-Oct-22,6671783,681.3,LIMITED COMPANY,LIFTECH SYSTEMS (SE) LIMITED,300000020461913 
Portsmouth City Council,PCC,Other,Suspense and Capital Schemes,Capital - Housing General Fund,Capital Charges,REFCUS,07-Oct-22,6671783,"3,785.00",LIMITED COMPANY,LIFTECH SYSTEMS (SE) LIMITED,300000020461913 
Portsmouth City Council,PCC,Housing Services,Private Sector Housing Renewal,"Housing, Neighbourhood and Building Services",Supplies and Services,Grants and subscriptions,03-Oct-22,6670555,875,SUPPLIER,BOTH CREATIVE PARTNERSHIP,300000020459051 
Portsmouth City Council,PCC,Housing Services,Private Sector Housing Renewal,"Housing, Neighbourhood and Building Services",Income,Other grants reimbursements and contributions,10-Oct-22,6672402,-350,LIMITED COMPANY,LIFTECH SYSTEMS (SE) LIMITED,300000020461913 
Portsmouth City Council,PCC,Other,Suspense and Capital Schemes,Capital - Housing General Fund,Capital Charges,REFCUS,10-Oct-22,6672402,420,LIMITED COMPANY,LIFTECH SYSTEMS (SE) LIMITED,300000020461913 
Portsmouth City Council,PCC,Other,Suspense and Capital Schemes,Capital - Housing General Fund,Capital Charges,REFCUS,10-Oct-22,6672402,"1,900.00",LIMITED COMPANY,LIFTECH SYSTEMS (SE) LIMITED,300000020461913 
Portsmouth City Council,PCC,Housing Services,Private Sector Housing Renewal,"Housing, Neighbourhood and Building Services",Income,Other grants reimbursements and contributions,07-Oct-22,6671783,-350,LIMITED COMPANY,LIFTECH SYSTEMS (SE) LIMITED,300000020461913 
Portsmouth City Council,PCC,Other,Suspense and Capital Schemes,Capital - Housing General Fund,Capital Charges,REFCUS,07-Oct-22,6671783,420,LIMITED COMPANY,LIFTECH SYSTEMS (SE) LIMITED,300000020461913 
Portsmouth City Council,PCC,Other,Suspense and Capital Schemes,Capital - Housing General Fund,Capital Charges,REFCUS,07-Oct-22,6671783,"1,420.00",LIMITED COMPANY,LIFTECH SYSTEMS (SE) LIMITED,300000020461913 
Portsmouth City Council,PCC,Children's and Education Services,Children Looked After,Children's Services and Education,Third Party Payments,Other establishments,11-Oct-22,6672682,"5,130.00",SUPPLIER,FUSION FOSTERING LIMITED,300000020479881 
Portsmouth City Council,PCC,Children's and Education Services,Children Looked After,Children's Services and Education,Third Party Payments,Other establishments,11-Oct-22,6672682,"5,130.00",SUPPLIER,FUSION FOSTERING LIMITED,300000020479881 
Portsmouth City Council,PCC,Children's and Education Services,Children Looked After,Children's Services and Education,Third Party Payments,Other establishments,11-Oct-22,6672682,"5,985.00",SUPPLIER,FUSION FOSTERING LIMITED,300000020479881 
Portsmouth City Council,PCC,Children's and Education Services,Children Looked After,Children's Services and Education,Third Party Payments,Other establishments,11-Oct-22,6672682,"5,985.00",SUPPLIER,FUSION FOSTERING LIMITED,300000020479881 
Portsmouth City Council,PCC,Children's and Education Services,Safeguarding Children and Young Peoples Services,Children's Services and Education,Third Party Payments,Other establishments,28-Oct-22,6675989,-460.57,SUPPLIER,KEYWORK CENTRAL LTD T/A STREET SUPPORT,300000020482239 
Portsmouth City Council,PCC,Children's and Education Services,Safeguarding Children and Young Peoples Services,Children's Services and Education,Third Party Payments,Other establishments,07-Oct-22,6671670,-515.1,SUPPLIER,BUILDING FOUNDATIONS LIMITED,300000020474383 
Portsmouth City Council,PCC,Children's and Education Services,Safeguarding Children and Young Peoples Services,Children's Services and Education,Third Party Payments,Other establishments,07-Oct-22,6671670,10.71,SUPPLIER,BUILDING FOUNDATIONS LIMITED,300000020474383 
Portsmouth City Council,PCC,Children's and Education Services,Safeguarding Children and Young Peoples Services,Children's Services and Education,Third Party Payments,Other establishments,07-Oct-22,6671670,21.43,SUPPLIER,BUILDING FOUNDATIONS LIMITED,300000020474383 
Portsmouth City Council,PCC,Children's and Education Services,Safeguarding Children and Young Peoples Services,Children's Services and Education,Third Party Payments,Other establishments,07-Oct-22,6671670,25,SUPPLIER,BUILDING FOUNDATIONS LIMITED,300000020474383 
Portsmouth City Council,PCC,Children's and Education Services,Safeguarding Children and Young Peoples Services,Children's Services and Education,Third Party Payments,Other establishments,07-Oct-22,6671670,25,SUPPLIER,BUILDING FOUNDATIONS LIMITED,300000020474383 
Portsmouth City Council,PCC,Children's and Education Services,Safeguarding Children and Young Peoples Services,Children's Services and Education,Third Party Payments,Other establishments,07-Oct-22,6671670,25,SUPPLIER,BUILDING FOUNDATIONS LIMITED,300000020474383 
Portsmouth City Council,PCC,Children's and Education Services,Safeguarding Children and Young Peoples Services,Children's Services and Education,Third Party Payments,Other establishments,07-Oct-22,6671670,267.86,SUPPLIER,BUILDING FOUNDATIONS LIMITED,300000020474383 
Portsmouth City Council,PCC,Children's and Education Services,Safeguarding Children and Young Peoples Services,Children's Services and Education,Third Party Payments,Other establishments,07-Oct-22,6671670,535.71,SUPPLIER,BUILDING FOUNDATIONS LIMITED,300000020474383 
Portsmouth City Council,PCC,Children's and Education Services,Safeguarding Children and Young Peoples Services,Children's Services and Education,Third Party Payments,Other establishments,07-Oct-22,6671670,625,SUPPLIER,BUILDING FOUNDATIONS LIMITED,300000020474383 
Portsmouth City Council,PCC,Children's and Education Services,Safeguarding Children and Young Peoples Services,Children's Services and Education,Third Party Payments,Other establishments,07-Oct-22,6671670,625,SUPPLIER,BUILDING FOUNDATIONS LIMITED,300000020474383 
Portsmouth City Council,PCC,Children's and Education Services,Safeguarding Children and Young Peoples Services,Children's Services and Education,Third Party Payments,Other establishments,07-Oct-22,6671670,625,SUPPLIER,BUILDING FOUNDATIONS LIMITED,300000020474383 
Portsmouth City Council,PCC,Children's and Education Services,Safeguarding Children and Young Peoples Services,Children's Services and Education,Third Party Payments,Other establishments,10-Oct-22,6672042,48.21,SUPPLIER,SEVEN WAYS (SUPPORT) LIMITED,300000020473013 
Portsmouth City Council,PCC,Children's and Education Services,Safeguarding Children and Young Peoples Services,Children's Services and Education,Third Party Payments,Other establishments,10-Oct-22,6672042,289.29,SUPPLIER,SEVEN WAYS (SUPPORT) LIMITED,300000020473013 
Portsmouth City Council,PCC,Children's and Education Services,Safeguarding Children and Young Peoples Services,Children's Services and Education,Third Party Payments,Other establishments,10-Oct-22,6672042,337.5,SUPPLIER,SEVEN WAYS (SUPPORT) LIMITED,300000020473013 
Portsmouth City Council,PCC,Children's and Education Services,Safeguarding Children and Young Peoples Services,Children's Services and Education,Third Party Payments,Other establishments,10-Oct-22,6672042,337.5,SUPPLIER,SEVEN WAYS (SUPPORT) LIMITED,300000020473013 
Portsmouth City Council,PCC,Children's and Education Services,Safeguarding Children and Young Peoples Services,Children's Services and Education,Third Party Payments,Other establishments,10-Oct-22,6672042,337.5,SUPPLIER,SEVEN WAYS (SUPPORT) LIMITED,300000020473013 
Portsmouth City Council,PCC,Children's and Education Services,Children Looked After,Children's Services and Education,Third Party Payments,Other establishments,04-Oct-22,6670682,666,SUPPLIER,BLUE SKY FOSTERING,300000020464936 
Portsmouth City Council,PCC,Children's and Education Services,Children Looked After,Children's Services and Education,Third Party Payments,Other establishments,04-Oct-22,6670682,"1,332.00",SUPPLIER,BLUE SKY FOSTERING,300000020464936 
Portsmouth City Council,PCC,Children's and Education Services,Children Looked After,Children's Services and Education,Third Party Payments,Other establishments,04-Oct-22,6670682,"1,554.00",SUPPLIER,BLUE SKY FOSTERING,300000020464936 
Portsmouth City Council,PCC,Children's and Education Services,Children Looked After,Children's Services and Education,Third Party Payments,Other establishments,04-Oct-22,6670682,"1,554.00",SUPPLIER,BLUE SKY FOSTERING,300000020464936 
Portsmouth City Council,PCC,Children's and Education Services,Children Looked After,Children's Services and Education,Third Party Payments,Other establishments,04-Oct-22,6670682,"1,554.00",SUPPLIER,BLUE SKY FOSTERING,300000020464936 
Portsmouth City Council,PCC,Children's and Education Services,Safeguarding Children and Young Peoples Services,Children's Services and Education,Third Party Payments,Other establishments,07-Oct-22,6671686,-941,SUPPLIER,LILIAN DAVIS GROUP LTD,300000020467263 
Portsmouth City Council,PCC,Children's and Education Services,Safeguarding Children and Young Peoples Services,Children's Services and Education,Third Party Payments,Other establishments,07-Oct-22,6671686,-10,SUPPLIER,LILIAN DAVIS GROUP LTD,300000020467263 
Portsmouth City Council,PCC,Children's and Education Services,Safeguarding Children and Young Peoples Services,Children's Services and Education,Third Party Payments,Other establishments,07-Oct-22,6671686,-10,SUPPLIER,LILIAN DAVIS GROUP LTD,300000020467263 
Portsmouth City Council,PCC,Children's and Education Services,Safeguarding Children and Young Peoples Services,Children's Services and Education,Third Party Payments,Other establishments,07-Oct-22,6671686,-10,SUPPLIER,LILIAN DAVIS GROUP LTD,300000020467263 
Portsmouth City Council,PCC,Children's and Education Services,Safeguarding Children and Young Peoples Services,Children's Services and Education,Third Party Payments,Other establishments,07-Oct-22,6671686,-8.57,SUPPLIER,LILIAN DAVIS GROUP LTD,300000020467263 
Portsmouth City Council,PCC,Children's and Education Services,Safeguarding Children and Young Peoples Services,Children's Services and Education,Third Party Payments,Other establishments,07-Oct-22,6671686,-4.29,SUPPLIER,LILIAN DAVIS GROUP LTD,300000020467263 
Portsmouth City Council,PCC,Children's and Education Services,Safeguarding Children and Young Peoples Services,Children's Services and Education,Third Party Payments,Other establishments,07-Oct-22,6671686,0.01,SUPPLIER,LILIAN DAVIS GROUP LTD,300000020467263 
Portsmouth City Council,PCC,Children's and Education Services,Safeguarding Children and Young Peoples Services,Children's Services and Education,Third Party Payments,Other establishments,07-Oct-22,6671686,53.57,SUPPLIER,LILIAN DAVIS GROUP LTD,300000020467263 
Portsmouth City Council,PCC,Children's and Education Services,Safeguarding Children and Young Peoples Services,Children's Services and Education,Third Party Payments,Other establishments,07-Oct-22,6671686,107.14,SUPPLIER,LILIAN DAVIS GROUP LTD,300000020467263 
Portsmouth City Council,PCC,Children's and Education Services,Safeguarding Children and Young Peoples Services,Children's Services and Education,Third Party Payments,Other establishments,07-Oct-22,6671686,125,SUPPLIER,LILIAN DAVIS GROUP LTD,300000020467263 
Portsmouth City Council,PCC,Children's and Education Services,Safeguarding Children and Young Peoples Services,Children's Services and Education,Third Party Payments,Other establishments,07-Oct-22,6671686,125,SUPPLIER,LILIAN DAVIS GROUP LTD,300000020467263 
Portsmouth City Council,PCC,Children's and Education Services,Safeguarding Children and Young Peoples Services,Children's Services and Education,Third Party Payments,Other establishments,07-Oct-22,6671686,125,SUPPLIER,LILIAN DAVIS GROUP LTD,300000020467263 
Portsmouth City Council,PCC,Children's and Education Services,Safeguarding Children and Young Peoples Services,Children's Services and Education,Third Party Payments,Other establishments,07-Oct-22,6671686,165,SUPPLIER,LILIAN DAVIS GROUP LTD,300000020467263 
Portsmouth City Council,PCC,Children's and Education Services,Safeguarding Children and Young Peoples Services,Children's Services and Education,Third Party Payments,Other establishments,07-Oct-22,6671686,330,SUPPLIER,LILIAN DAVIS GROUP LTD,300000020467263 
Portsmouth City Council,PCC,Children's and Education Services,Safeguarding Children and Young Peoples Services,Children's Services and Education,Third Party Payments,Other establishments,07-Oct-22,6671686,385,SUPPLIER,LILIAN DAVIS GROUP LTD,300000020467263 
Portsmouth City Council,PCC,Children's and Education Services,Safeguarding Children and Young Peoples Services,Children's Services and Education,Third Party Payments,Other establishments,07-Oct-22,6671686,385,SUPPLIER,LILIAN DAVIS GROUP LTD,300000020467263 
Portsmouth City Council,PCC,Children's and Education Services,Safeguarding Children and Young Peoples Services,Children's Services and Education,Third Party Payments,Other establishments,07-Oct-22,6671686,385,SUPPLIER,LILIAN DAVIS GROUP LTD,300000020467263 
Portsmouth City Council,PCC,Children's and Education Services,Safeguarding Children and Young Peoples Services,Children's Services and Education,Third Party Payments,Other establishments,07-Oct-22,6671686,-872.6,SUPPLIER,LILIAN DAVIS GROUP LTD,300000020467263 
Portsmouth City Council,PCC,Children's and Education Services,Safeguarding Children and Young Peoples Services,Children's Services and Education,Third Party Payments,Other establishments,07-Oct-22,6671686,-10,SUPPLIER,LILIAN DAVIS GROUP LTD,300000020467263 
Portsmouth City Council,PCC,Children's and Education Services,Safeguarding Children and Young Peoples Services,Children's Services and Education,Third Party Payments,Other establishments,07-Oct-22,6671686,-10,SUPPLIER,LILIAN DAVIS GROUP LTD,300000020467263 
Portsmouth City Council,PCC,Children's and Education Services,Safeguarding Children and Young Peoples Services,Children's Services and Education,Third Party Payments,Other establishments,07-Oct-22,6671686,-10,SUPPLIER,LILIAN DAVIS GROUP LTD,300000020467263 
Portsmouth City Council,PCC,Children's and Education Services,Safeguarding Children and Young Peoples Services,Children's Services and Education,Third Party Payments,Other establishments,07-Oct-22,6671686,-8.57,SUPPLIER,LILIAN DAVIS GROUP LTD,300000020467263 
Portsmouth City Council,PCC,Children's and Education Services,Safeguarding Children and Young Peoples Services,Children's Services and Education,Third Party Payments,Other establishments,07-Oct-22,6671686,-4.29,SUPPLIER,LILIAN DAVIS GROUP LTD,300000020467263 
Portsmouth City Council,PCC,Children's and Education Services,Safeguarding Children and Young Peoples Services,Children's Services and Education,Third Party Payments,Other establishments,07-Oct-22,6671686,53.57,SUPPLIER,LILIAN DAVIS GROUP LTD,300000020467263 
Portsmouth City Council,PCC,Children's and Education Services,Safeguarding Children and Young Peoples Services,Children's Services and Education,Third Party Payments,Other establishments,07-Oct-22,6671686,107.14,SUPPLIER,LILIAN DAVIS GROUP LTD,300000020467263 
Portsmouth City Council,PCC,Children's and Education Services,Safeguarding Children and Young Peoples Services,Children's Services and Education,Third Party Payments,Other establishments,07-Oct-22,6671686,125,SUPPLIER,LILIAN DAVIS GROUP LTD,300000020467263 
Portsmouth City Council,PCC,Children's and Education Services,Safeguarding Children and Young Peoples Services,Children's Services and Education,Third Party Payments,Other establishments,07-Oct-22,6671686,125,SUPPLIER,LILIAN DAVIS GROUP LTD,300000020467263 
Portsmouth City Council,PCC,Children's and Education Services,Safeguarding Children and Young Peoples Services,Children's Services and Education,Third Party Payments,Other establishments,07-Oct-22,6671686,125,SUPPLIER,LILIAN DAVIS GROUP LTD,300000020467263 
Portsmouth City Council,PCC,Children's and Education Services,Safeguarding Children and Young Peoples Services,Children's Services and Education,Third Party Payments,Other establishments,07-Oct-22,6671686,166.29,SUPPLIER,LILIAN DAVIS GROUP LTD,300000020467263 
Portsmouth City Council,PCC,Children's and Education Services,Safeguarding Children and Young Peoples Services,Children's Services and Education,Third Party Payments,Other establishments,07-Oct-22,6671686,332.57,SUPPLIER,LILIAN DAVIS GROUP LTD,300000020467263 
Portsmouth City Council,PCC,Children's and Education Services,Safeguarding Children and Young Peoples Services,Children's Services and Education,Third Party Payments,Other establishments,07-Oct-22,6671686,388,SUPPLIER,LILIAN DAVIS GROUP LTD,300000020467263 
Portsmouth City Council,PCC,Children's and Education Services,Safeguarding Children and Young Peoples Services,Children's Services and Education,Third Party Payments,Other establishments,07-Oct-22,6671686,388,SUPPLIER,LILIAN DAVIS GROUP LTD,300000020467263 
Portsmouth City Council,PCC,Children's and Education Services,Safeguarding Children and Young Peoples Services,Children's Services and Education,Third Party Payments,Other establishments,07-Oct-22,6671686,388,SUPPLIER,LILIAN DAVIS GROUP LTD,300000020467263 
Portsmouth City Council,PCC,Children's and Education Services,Safeguarding Children and Young Peoples Services,Children's Services and Education,Third Party Payments,Other establishments,07-Oct-22,6671686,-872.6,SUPPLIER,LILIAN DAVIS GROUP LTD,300000020467263 
Portsmouth City Council,PCC,Children's and Education Services,Safeguarding Children and Young Peoples Services,Children's Services and Education,Third Party Payments,Other establishments,07-Oct-22,6671686,-10,SUPPLIER,LILIAN DAVIS GROUP LTD,300000020467263 
Portsmouth City Council,PCC,Children's and Education Services,Safeguarding Children and Young Peoples Services,Children's Services and Education,Third Party Payments,Other establishments,07-Oct-22,6671686,-10,SUPPLIER,LILIAN DAVIS GROUP LTD,300000020467263 
Portsmouth City Council,PCC,Children's and Education Services,Safeguarding Children and Young Peoples Services,Children's Services and Education,Third Party Payments,Other establishments,07-Oct-22,6671686,-10,SUPPLIER,LILIAN DAVIS GROUP LTD,300000020467263 
Portsmouth City Council,PCC,Children's and Education Services,Safeguarding Children and Young Peoples Services,Children's Services and Education,Third Party Payments,Other establishments,07-Oct-22,6671686,-8.57,SUPPLIER,LILIAN DAVIS GROUP LTD,300000020467263 
Portsmouth City Council,PCC,Children's and Education Services,Safeguarding Children and Young Peoples Services,Children's Services and Education,Third Party Payments,Other establishments,07-Oct-22,6671686,-4.29,SUPPLIER,LILIAN DAVIS GROUP LTD,300000020467263 
Portsmouth City Council,PCC,Children's and Education Services,Safeguarding Children and Young Peoples Services,Children's Services and Education,Third Party Payments,Other establishments,07-Oct-22,6671686,53.57,SUPPLIER,LILIAN DAVIS GROUP LTD,300000020467263 
Portsmouth City Council,PCC,Children's and Education Services,Safeguarding Children and Young Peoples Services,Children's Services and Education,Third Party Payments,Other establishments,07-Oct-22,6671686,107.14,SUPPLIER,LILIAN DAVIS GROUP LTD,300000020467263 
Portsmouth City Council,PCC,Children's and Education Services,Safeguarding Children and Young Peoples Services,Children's Services and Education,Third Party Payments,Other establishments,07-Oct-22,6671686,125,SUPPLIER,LILIAN DAVIS GROUP LTD,300000020467263 
Portsmouth City Council,PCC,Children's and Education Services,Safeguarding Children and Young Peoples Services,Children's Services and Education,Third Party Payments,Other establishments,07-Oct-22,6671686,125,SUPPLIER,LILIAN DAVIS GROUP LTD,300000020467263 
Portsmouth City Council,PCC,Children's and Education Services,Safeguarding Children and Young Peoples Services,Children's Services and Education,Third Party Payments,Other establishments,07-Oct-22,6671686,125,SUPPLIER,LILIAN DAVIS GROUP LTD,300000020467263 
Portsmouth City Council,PCC,Children's and Education Services,Safeguarding Children and Young Peoples Services,Children's Services and Education,Third Party Payments,Other establishments,07-Oct-22,6671686,166.29,SUPPLIER,LILIAN DAVIS GROUP LTD,300000020467263 
Portsmouth City Council,PCC,Children's and Education Services,Safeguarding Children and Young Peoples Services,Children's Services and Education,Third Party Payments,Other establishments,07-Oct-22,6671686,332.57,SUPPLIER,LILIAN DAVIS GROUP LTD,300000020467263 
Portsmouth City Council,PCC,Children's and Education Services,Safeguarding Children and Young Peoples Services,Children's Services and Education,Third Party Payments,Other establishments,07-Oct-22,6671686,388,SUPPLIER,LILIAN DAVIS GROUP LTD,300000020467263 
Portsmouth City Council,PCC,Children's and Education Services,Safeguarding Children and Young Peoples Services,Children's Services and Education,Third Party Payments,Other establishments,07-Oct-22,6671686,388,SUPPLIER,LILIAN DAVIS GROUP LTD,300000020467263 
Portsmouth City Council,PCC,Children's and Education Services,Safeguarding Children and Young Peoples Services,Children's Services and Education,Third Party Payments,Other establishments,07-Oct-22,6671686,388,SUPPLIER,LILIAN DAVIS GROUP LTD,300000020467263 
Portsmouth City Council,PCC,Children's and Education Services,Safeguarding Children and Young Peoples Services,Children's Services and Education,Third Party Payments,Other establishments,07-Oct-22,6671686,-892.54,SUPPLIER,LILIAN DAVIS GROUP LTD,300000020467263 
Portsmouth City Council,PCC,Children's and Education Services,Safeguarding Children and Young Peoples Services,Children's Services and Education,Third Party Payments,Other establishments,07-Oct-22,6671686,-10,SUPPLIER,LILIAN DAVIS GROUP LTD,300000020467263 
Portsmouth City Council,PCC,Children's and Education Services,Safeguarding Children and Young Peoples Services,Children's Services and Education,Third Party Payments,Other establishments,07-Oct-22,6671686,-10,SUPPLIER,LILIAN DAVIS GROUP LTD,300000020467263 
Portsmouth City Council,PCC,Children's and Education Services,Safeguarding Children and Young Peoples Services,Children's Services and Education,Third Party Payments,Other establishments,07-Oct-22,6671686,-10,SUPPLIER,LILIAN DAVIS GROUP LTD,300000020467263 
Portsmouth City Council,PCC,Children's and Education Services,Safeguarding Children and Young Peoples Services,Children's Services and Education,Third Party Payments,Other establishments,07-Oct-22,6671686,-8.57,SUPPLIER,LILIAN DAVIS GROUP LTD,300000020467263 
Portsmouth City Council,PCC,Children's and Education Services,Safeguarding Children and Young Peoples Services,Children's Services and Education,Third Party Payments,Other establishments,07-Oct-22,6671686,-4.29,SUPPLIER,LILIAN DAVIS GROUP LTD,300000020467263 
Portsmouth City Council,PCC,Children's and Education Services,Safeguarding Children and Young Peoples Services,Children's Services and Education,Third Party Payments,Other establishments,07-Oct-22,6671686,51.43,SUPPLIER,LILIAN DAVIS GROUP LTD,300000020467263 
Portsmouth City Council,PCC,Children's and Education Services,Safeguarding Children and Young Peoples Services,Children's Services and Education,Third Party Payments,Other establishments,07-Oct-22,6671686,102.86,SUPPLIER,LILIAN DAVIS GROUP LTD,300000020467263 
Portsmouth City Council,PCC,Children's and Education Services,Safeguarding Children and Young Peoples Services,Children's Services and Education,Third Party Payments,Other establishments,07-Oct-22,6671686,120,SUPPLIER,LILIAN DAVIS GROUP LTD,300000020467263 
Portsmouth City Council,PCC,Children's and Education Services,Safeguarding Children and Young Peoples Services,Children's Services and Education,Third Party Payments,Other establishments,07-Oct-22,6671686,120,SUPPLIER,LILIAN DAVIS GROUP LTD,300000020467263 
Portsmouth City Council,PCC,Children's and Education Services,Safeguarding Children and Young Peoples Services,Children's Services and Education,Third Party Payments,Other establishments,07-Oct-22,6671686,120,SUPPLIER,LILIAN DAVIS GROUP LTD,300000020467263 
Portsmouth City Council,PCC,Children's and Education Services,Safeguarding Children and Young Peoples Services,Children's Services and Education,Third Party Payments,Other establishments,07-Oct-22,6671686,188.57,SUPPLIER,LILIAN DAVIS GROUP LTD,300000020467263 
Portsmouth City Council,PCC,Children's and Education Services,Safeguarding Children and Young Peoples Services,Children's Services and Education,Third Party Payments,Other establishments,07-Oct-22,6671686,377.14,SUPPLIER,LILIAN DAVIS GROUP LTD,300000020467263 
Portsmouth City Council,PCC,Children's and Education Services,Safeguarding Children and Young Peoples Services,Children's Services and Education,Third Party Payments,Other establishments,07-Oct-22,6671686,440,SUPPLIER,LILIAN DAVIS GROUP LTD,300000020467263 
Portsmouth City Council,PCC,Children's and Education Services,Safeguarding Children and Young Peoples Services,Children's Services and Education,Third Party Payments,Other establishments,07-Oct-22,6671686,440,SUPPLIER,LILIAN DAVIS GROUP LTD,300000020467263 
Portsmouth City Council,PCC,Children's and Education Services,Safeguarding Children and Young Peoples Services,Children's Services and Education,Third Party Payments,Other establishments,07-Oct-22,6671686,440,SUPPLIER,LILIAN DAVIS GROUP LTD,300000020467263 
Portsmouth City Council,PCC,Children's and Education Services,Safeguarding Children and Young Peoples Services,Children's Services and Education,Third Party Payments,Other establishments,07-Oct-22,6671670,-515.1,SUPPLIER,BUILDING FOUNDATIONS LIMITED,300000020474383 
Portsmouth City Council,PCC,Children's and Education Services,Safeguarding Children and Young Peoples Services,Children's Services and Education,Third Party Payments,Other establishments,07-Oct-22,6671670,10.71,SUPPLIER,BUILDING FOUNDATIONS LIMITED,300000020474383 
Portsmouth City Council,PCC,Children's and Education Services,Safeguarding Children and Young Peoples Services,Children's Services and Education,Third Party Payments,Other establishments,07-Oct-22,6671670,21.43,SUPPLIER,BUILDING FOUNDATIONS LIMITED,300000020474383 
Portsmouth City Council,PCC,Children's and Education Services,Safeguarding Children and Young Peoples Services,Children's Services and Education,Third Party Payments,Other establishments,07-Oct-22,6671670,25,SUPPLIER,BUILDING FOUNDATIONS LIMITED,300000020474383 
Portsmouth City Council,PCC,Children's and Education Services,Safeguarding Children and Young Peoples Services,Children's Services and Education,Third Party Payments,Other establishments,07-Oct-22,6671670,25,SUPPLIER,BUILDING FOUNDATIONS LIMITED,300000020474383 
Portsmouth City Council,PCC,Children's and Education Services,Safeguarding Children and Young Peoples Services,Children's Services and Education,Third Party Payments,Other establishments,07-Oct-22,6671670,25,SUPPLIER,BUILDING FOUNDATIONS LIMITED,300000020474383 
Portsmouth City Council,PCC,Children's and Education Services,Safeguarding Children and Young Peoples Services,Children's Services and Education,Third Party Payments,Other establishments,07-Oct-22,6671670,267.86,SUPPLIER,BUILDING FOUNDATIONS LIMITED,300000020474383 
Portsmouth City Council,PCC,Children's and Education Services,Safeguarding Children and Young Peoples Services,Children's Services and Education,Third Party Payments,Other establishments,07-Oct-22,6671670,535.71,SUPPLIER,BUILDING FOUNDATIONS LIMITED,300000020474383 
Portsmouth City Council,PCC,Children's and Education Services,Safeguarding Children and Young Peoples Services,Children's Services and Education,Third Party Payments,Other establishments,07-Oct-22,6671670,625,SUPPLIER,BUILDING FOUNDATIONS LIMITED,300000020474383 
Portsmouth City Council,PCC,Children's and Education Services,Safeguarding Children and Young Peoples Services,Children's Services and Education,Third Party Payments,Other establishments,07-Oct-22,6671670,625,SUPPLIER,BUILDING FOUNDATIONS LIMITED,300000020474383 
Portsmouth City Council,PCC,Children's and Education Services,Safeguarding Children and Young Peoples Services,Children's Services and Education,Third Party Payments,Other establishments,07-Oct-22,6671670,625,SUPPLIER,BUILDING FOUNDATIONS LIMITED,300000020474383 
Portsmouth City Council,PCC,Children's and Education Services,Safeguarding Children and Young Peoples Services,Children's Services and Education,Third Party Payments,Other establishments,07-Oct-22,6671670,"-1,146.86",SUPPLIER,BUILDING FOUNDATIONS LIMITED,300000020474383 
Portsmouth City Council,PCC,Children's and Education Services,Safeguarding Children and Young Peoples Services,Children's Services and Education,Third Party Payments,Other establishments,07-Oct-22,6671670,-0.01,SUPPLIER,BUILDING FOUNDATIONS LIMITED,300000020474383 
Portsmouth City Council,PCC,Children's and Education Services,Safeguarding Children and Young Peoples Services,Children's Services and Education,Third Party Payments,Other establishments,07-Oct-22,6671670,21.43,SUPPLIER,BUILDING FOUNDATIONS LIMITED,300000020474383 
Portsmouth City Council,PCC,Children's and Education Services,Safeguarding Children and Young Peoples Services,Children's Services and Education,Third Party Payments,Other establishments,07-Oct-22,6671670,42.86,SUPPLIER,BUILDING FOUNDATIONS LIMITED,300000020474383 
Portsmouth City Council,PCC,Children's and Education Services,Safeguarding Children and Young Peoples Services,Children's Services and Education,Third Party Payments,Other establishments,07-Oct-22,6671670,50,SUPPLIER,BUILDING FOUNDATIONS LIMITED,300000020474383 
Portsmouth City Council,PCC,Children's and Education Services,Safeguarding Children and Young Peoples Services,Children's Services and Education,Third Party Payments,Other establishments,07-Oct-22,6671670,50,SUPPLIER,BUILDING FOUNDATIONS LIMITED,300000020474383 
Portsmouth City Council,PCC,Children's and Education Services,Safeguarding Children and Young Peoples Services,Children's Services and Education,Third Party Payments,Other establishments,07-Oct-22,6671670,50,SUPPLIER,BUILDING FOUNDATIONS LIMITED,300000020474383 
Portsmouth City Council,PCC,Children's and Education Services,Safeguarding Children and Young Peoples Services,Children's Services and Education,Third Party Payments,Other establishments,07-Oct-22,6671670,192.86,SUPPLIER,BUILDING FOUNDATIONS LIMITED,300000020474383 
Portsmouth City Council,PCC,Children's and Education Services,Safeguarding Children and Young Peoples Services,Children's Services and Education,Third Party Payments,Other establishments,07-Oct-22,6671670,385.71,SUPPLIER,BUILDING FOUNDATIONS LIMITED,300000020474383 
Portsmouth City Council,PCC,Children's and Education Services,Safeguarding Children and Young Peoples Services,Children's Services and Education,Third Party Payments,Other establishments,07-Oct-22,6671670,450,SUPPLIER,BUILDING FOUNDATIONS LIMITED,300000020474383 
Portsmouth City Council,PCC,Children's and Education Services,Safeguarding Children and Young Peoples Services,Children's Services and Education,Third Party Payments,Other establishments,07-Oct-22,6671670,450,SUPPLIER,BUILDING FOUNDATIONS LIMITED,300000020474383 
Portsmouth City Council,PCC,Children's and Education Services,Safeguarding Children and Young Peoples Services,Children's Services and Education,Third Party Payments,Other establishments,07-Oct-22,6671670,450,SUPPLIER,BUILDING FOUNDATIONS LIMITED,300000020474383 
Portsmouth City Council,PCC,Children's and Education Services,Family Support Services,Children's Services and Education,Supplies and Services,Services,10-Oct-22,6672669,269,SUPPLIER,AA GLOBAL LANGUAGE SERVICES LTD,300000020483226 
Portsmouth City Council,PCC,Children's and Education Services,Family Support Services,Children's Services and Education,Supplies and Services,Services,10-Oct-22,6672669,162,SUPPLIER,AA GLOBAL LANGUAGE SERVICES LTD,300000020483226 
Portsmouth City Council,PCC,Children's and Education Services,Family Support Services,Children's Services and Education,Supplies and Services,Services,10-Oct-22,6672669,241,SUPPLIER,AA GLOBAL LANGUAGE SERVICES LTD,300000020483226 
Portsmouth City Council,PCC,Children's and Education Services,Children Looked After,Children's Services and Education,Third Party Payments,Other establishments,03-Oct-22,6670554,"-5,078.02",SUPPLIER,SOLENT NHS TRUST,300000020460772 
Portsmouth City Council,PCC,Children's and Education Services,Children Looked After,Children's Services and Education,Third Party Payments,Other establishments,03-Oct-22,6670554,47.23,SUPPLIER,SOLENT NHS TRUST,300000020460772 
Portsmouth City Council,PCC,Children's and Education Services,Children Looked After,Children's Services and Education,Third Party Payments,Other establishments,03-Oct-22,6670554,47.23,SUPPLIER,SOLENT NHS TRUST,300000020460772 
Portsmouth City Council,PCC,Children's and Education Services,Children Looked After,Children's Services and Education,Third Party Payments,Other establishments,03-Oct-22,6670554,47.23,SUPPLIER,SOLENT NHS TRUST,300000020460772 
Portsmouth City Council,PCC,Children's and Education Services,Children Looked After,Children's Services and Education,Third Party Payments,Other establishments,03-Oct-22,6670554,47.23,SUPPLIER,SOLENT NHS TRUST,300000020460772 
Portsmouth City Council,PCC,Children's and Education Services,Children Looked After,Children's Services and Education,Third Party Payments,Other establishments,03-Oct-22,6670554,47.23,SUPPLIER,SOLENT NHS TRUST,300000020460772 
Portsmouth City Council,PCC,Children's and Education Services,Children Looked After,Children's Services and Education,Third Party Payments,Other establishments,03-Oct-22,6670554,47.23,SUPPLIER,SOLENT NHS TRUST,300000020460772 
Portsmouth City Council,PCC,Children's and Education Services,Children Looked After,Children's Services and Education,Third Party Payments,Other establishments,03-Oct-22,6670554,47.23,SUPPLIER,SOLENT NHS TRUST,300000020460772 
Portsmouth City Council,PCC,Children's and Education Services,Children Looked After,Children's Services and Education,Third Party Payments,Other establishments,03-Oct-22,6670554,47.23,SUPPLIER,SOLENT NHS TRUST,300000020460772 
Portsmouth City Council,PCC,Children's and Education Services,Children Looked After,Children's Services and Education,Third Party Payments,Other establishments,03-Oct-22,6670554,47.23,SUPPLIER,SOLENT NHS TRUST,300000020460772 
Portsmouth City Council,PCC,Children's and Education Services,Children Looked After,Children's Services and Education,Third Party Payments,Other establishments,03-Oct-22,6670554,47.23,SUPPLIER,SOLENT NHS TRUST,300000020460772 
Portsmouth City Council,PCC,Children's and Education Services,Children Looked After,Children's Services and Education,Third Party Payments,Other establishments,03-Oct-22,6670554,47.23,SUPPLIER,SOLENT NHS TRUST,300000020460772 
Portsmouth City Council,PCC,Children's and Education Services,Children Looked After,Children's Services and Education,Third Party Payments,Other establishments,03-Oct-22,6670554,47.23,SUPPLIER,SOLENT NHS TRUST,300000020460772 
Portsmouth City Council,PCC,Children's and Education Services,Children Looked After,Children's Services and Education,Third Party Payments,Other establishments,03-Oct-22,6670554,47.23,SUPPLIER,SOLENT NHS TRUST,300000020460772 
Portsmouth City Council,PCC,Children's and Education Services,Children Looked After,Children's Services and Education,Third Party Payments,Other establishments,03-Oct-22,6670554,47.23,SUPPLIER,SOLENT NHS TRUST,300000020460772 
Portsmouth City Council,PCC,Children's and Education Services,Children Looked After,Children's Services and Education,Third Party Payments,Other establishments,03-Oct-22,6670554,47.23,SUPPLIER,SOLENT NHS TRUST,300000020460772 
Portsmouth City Council,PCC,Children's and Education Services,Children Looked After,Children's Services and Education,Third Party Payments,Other establishments,03-Oct-22,6670554,47.23,SUPPLIER,SOLENT NHS TRUST,300000020460772 
Portsmouth City Council,PCC,Children's and Education Services,Children Looked After,Children's Services and Education,Third Party Payments,Other establishments,03-Oct-22,6670554,47.23,SUPPLIER,SOLENT NHS TRUST,300000020460772 
Portsmouth City Council,PCC,Children's and Education Services,Children Looked After,Children's Services and Education,Third Party Payments,Other establishments,03-Oct-22,6670554,47.23,SUPPLIER,SOLENT NHS TRUST,300000020460772 
Portsmouth City Council,PCC,Children's and Education Services,Children Looked After,Children's Services and Education,Third Party Payments,Other establishments,03-Oct-22,6670554,47.23,SUPPLIER,SOLENT NHS TRUST,300000020460772 
Portsmouth City Council,PCC,Children's and Education Services,Children Looked After,Children's Services and Education,Third Party Payments,Other establishments,03-Oct-22,6670554,47.23,SUPPLIER,SOLENT NHS TRUST,300000020460772 
Portsmouth City Council,PCC,Children's and Education Services,Children Looked After,Children's Services and Education,Third Party Payments,Other establishments,03-Oct-22,6670554,47.23,SUPPLIER,SOLENT NHS TRUST,300000020460772 
Portsmouth City Council,PCC,Children's and Education Services,Children Looked After,Children's Services and Education,Third Party Payments,Other establishments,03-Oct-22,6670554,47.23,SUPPLIER,SOLENT NHS TRUST,300000020460772 
Portsmouth City Council,PCC,Children's and Education Services,Children Looked After,Children's Services and Education,Third Party Payments,Other establishments,03-Oct-22,6670554,47.23,SUPPLIER,SOLENT NHS TRUST,300000020460772 
Portsmouth City Council,PCC,Children's and Education Services,Children Looked After,Children's Services and Education,Third Party Payments,Other establishments,03-Oct-22,6670554,47.23,SUPPLIER,SOLENT NHS TRUST,300000020460772 
Portsmouth City Council,PCC,Children's and Education Services,Children Looked After,Children's Services and Education,Third Party Payments,Other establishments,03-Oct-22,6670554,47.23,SUPPLIER,SOLENT NHS TRUST,300000020460772 
Portsmouth City Council,PCC,Children's and Education Services,Children Looked After,Children's Services and Education,Third Party Payments,Other establishments,03-Oct-22,6670554,47.23,SUPPLIER,SOLENT NHS TRUST,300000020460772 
Portsmouth City Council,PCC,Children's and Education Services,Children Looked After,Children's Services and Education,Third Party Payments,Other establishments,03-Oct-22,6670554,47.23,SUPPLIER,SOLENT NHS TRUST,300000020460772 
Portsmouth City Council,PCC,Children's and Education Services,Children Looked After,Children's Services and Education,Third Party Payments,Other establishments,03-Oct-22,6670554,47.23,SUPPLIER,SOLENT NHS TRUST,300000020460772 
Portsmouth City Council,PCC,Children's and Education Services,Children Looked After,Children's Services and Education,Third Party Payments,Other establishments,03-Oct-22,6670554,47.23,SUPPLIER,SOLENT NHS TRUST,300000020460772 
Portsmouth City Council,PCC,Children's and Education Services,Children Looked After,Children's Services and Education,Third Party Payments,Other establishments,03-Oct-22,6670554,82.2,SUPPLIER,SOLENT NHS TRUST,300000020460772 
Portsmouth City Council,PCC,Children's and Education Services,Children Looked After,Children's Services and Education,Third Party Payments,Other establishments,03-Oct-22,6670554,82.2,SUPPLIER,SOLENT NHS TRUST,300000020460772 
Portsmouth City Council,PCC,Children's and Education Services,Children Looked After,Children's Services and Education,Third Party Payments,Other establishments,03-Oct-22,6670554,82.2,SUPPLIER,SOLENT NHS TRUST,300000020460772 
Portsmouth City Council,PCC,Children's and Education Services,Children Looked After,Children's Services and Education,Third Party Payments,Other establishments,03-Oct-22,6670554,131.52,SUPPLIER,SOLENT NHS TRUST,300000020460772 
Portsmouth City Council,PCC,Children's and Education Services,Children Looked After,Children's Services and Education,Third Party Payments,Other establishments,03-Oct-22,6670554,131.52,SUPPLIER,SOLENT NHS TRUST,300000020460772 
Portsmouth City Council,PCC,Children's and Education Services,Children Looked After,Children's Services and Education,Third Party Payments,Other establishments,03-Oct-22,6670554,264.46,SUPPLIER,SOLENT NHS TRUST,300000020460772 
Portsmouth City Council,PCC,Children's and Education Services,Children Looked After,Children's Services and Education,Third Party Payments,Other establishments,03-Oct-22,6670554,264.46,SUPPLIER,SOLENT NHS TRUST,300000020460772 
Portsmouth City Council,PCC,Children's and Education Services,Children Looked After,Children's Services and Education,Third Party Payments,Other establishments,03-Oct-22,6670554,310.56,SUPPLIER,SOLENT NHS TRUST,300000020460772 
Portsmouth City Council,PCC,Children's and Education Services,Children Looked After,Children's Services and Education,Third Party Payments,Other establishments,03-Oct-22,6670554,310.56,SUPPLIER,SOLENT NHS TRUST,300000020460772 
Portsmouth City Council,PCC,Children's and Education Services,Children Looked After,Children's Services and Education,Third Party Payments,Other establishments,03-Oct-22,6670554,310.56,SUPPLIER,SOLENT NHS TRUST,300000020460772 
Portsmouth City Council,PCC,Children's and Education Services,Children Looked After,Children's Services and Education,Third Party Payments,Other establishments,03-Oct-22,6670554,310.56,SUPPLIER,SOLENT NHS TRUST,300000020460772 
Portsmouth City Council,PCC,Children's and Education Services,Children Looked After,Children's Services and Education,Third Party Payments,Other establishments,03-Oct-22,6670554,310.56,SUPPLIER,SOLENT NHS TRUST,300000020460772 
Portsmouth City Council,PCC,Children's and Education Services,Children Looked After,Children's Services and Education,Third Party Payments,Other establishments,03-Oct-22,6670554,310.56,SUPPLIER,SOLENT NHS TRUST,300000020460772 
Portsmouth City Council,PCC,Children's and Education Services,Children Looked After,Children's Services and Education,Third Party Payments,Other establishments,03-Oct-22,6670554,310.56,SUPPLIER,SOLENT NHS TRUST,300000020460772 
Portsmouth City Council,PCC,Children's and Education Services,Children Looked After,Children's Services and Education,Third Party Payments,Other establishments,03-Oct-22,6670554,310.56,SUPPLIER,SOLENT NHS TRUST,300000020460772 
Portsmouth City Council,PCC,Children's and Education Services,Children Looked After,Children's Services and Education,Third Party Payments,Other establishments,03-Oct-22,6670554,310.56,SUPPLIER,SOLENT NHS TRUST,300000020460772 
Portsmouth City Council,PCC,Children's and Education Services,Children Looked After,Children's Services and Education,Third Party Payments,Other establishments,03-Oct-22,6670554,311.69,SUPPLIER,SOLENT NHS TRUST,300000020460772 
Portsmouth City Council,PCC,Children's and Education Services,Children Looked After,Children's Services and Education,Third Party Payments,Other establishments,03-Oct-22,6670554,311.69,SUPPLIER,SOLENT NHS TRUST,300000020460772 
Portsmouth City Council,PCC,Children's and Education Services,Children Looked After,Children's Services and Education,Third Party Payments,Other establishments,03-Oct-22,6670554,311.69,SUPPLIER,SOLENT NHS TRUST,300000020460772 
Portsmouth City Council,PCC,Children's and Education Services,Children Looked After,Children's Services and Education,Third Party Payments,Other establishments,03-Oct-22,6670554,591.84,SUPPLIER,SOLENT NHS TRUST,300000020460772 
Portsmouth City Council,PCC,Children's and Education Services,Children Looked After,Children's Services and Education,Third Party Payments,Other establishments,03-Oct-22,6670554,591.84,SUPPLIER,SOLENT NHS TRUST,300000020460772 
Portsmouth City Council,PCC,Children's and Education Services,Children Looked After,Children's Services and Education,Third Party Payments,Other establishments,03-Oct-22,6670554,591.84,SUPPLIER,SOLENT NHS TRUST,300000020460772 
Portsmouth City Council,PCC,Children's and Education Services,Other Children and Family Services,Children's Services and Education,Third Party Payments,Other establishments,03-Oct-22,6670554,"-1,387.36",SUPPLIER,SOLENT NHS TRUST,300000020460772 
Portsmouth City Council,PCC,Children's and Education Services,Other Children and Family Services,Children's Services and Education,Third Party Payments,Other establishments,03-Oct-22,6670554,56.67,SUPPLIER,SOLENT NHS TRUST,300000020460772 
Portsmouth City Council,PCC,Children's and Education Services,Other Children and Family Services,Children's Services and Education,Third Party Payments,Other establishments,03-Oct-22,6670554,56.67,SUPPLIER,SOLENT NHS TRUST,300000020460772 
Portsmouth City Council,PCC,Children's and Education Services,Other Children and Family Services,Children's Services and Education,Third Party Payments,Other establishments,03-Oct-22,6670554,56.67,SUPPLIER,SOLENT NHS TRUST,300000020460772 
Portsmouth City Council,PCC,Children's and Education Services,Other Children and Family Services,Children's Services and Education,Third Party Payments,Other establishments,03-Oct-22,6670554,56.67,SUPPLIER,SOLENT NHS TRUST,300000020460772 
Portsmouth City Council,PCC,Children's and Education Services,Other Children and Family Services,Children's Services and Education,Third Party Payments,Other establishments,03-Oct-22,6670554,56.67,SUPPLIER,SOLENT NHS TRUST,300000020460772 
Portsmouth City Council,PCC,Children's and Education Services,Other Children and Family Services,Children's Services and Education,Third Party Payments,Other establishments,03-Oct-22,6670554,56.67,SUPPLIER,SOLENT NHS TRUST,300000020460772 
Portsmouth City Council,PCC,Children's and Education Services,Other Children and Family Services,Children's Services and Education,Third Party Payments,Other establishments,03-Oct-22,6670554,56.67,SUPPLIER,SOLENT NHS TRUST,300000020460772 
Portsmouth City Council,PCC,Children's and Education Services,Other Children and Family Services,Children's Services and Education,Third Party Payments,Other establishments,03-Oct-22,6670554,56.67,SUPPLIER,SOLENT NHS TRUST,300000020460772 
Portsmouth City Council,PCC,Children's and Education Services,Other Children and Family Services,Children's Services and Education,Third Party Payments,Other establishments,03-Oct-22,6670554,56.67,SUPPLIER,SOLENT NHS TRUST,300000020460772 
Portsmouth City Council,PCC,Children's and Education Services,Other Children and Family Services,Children's Services and Education,Third Party Payments,Other establishments,03-Oct-22,6670554,56.67,SUPPLIER,SOLENT NHS TRUST,300000020460772 
Portsmouth City Council,PCC,Children's and Education Services,Other Children and Family Services,Children's Services and Education,Third Party Payments,Other establishments,03-Oct-22,6670554,56.67,SUPPLIER,SOLENT NHS TRUST,300000020460772 
Portsmouth City Council,PCC,Children's and Education Services,Other Children and Family Services,Children's Services and Education,Third Party Payments,Other establishments,03-Oct-22,6670554,56.67,SUPPLIER,SOLENT NHS TRUST,300000020460772 
Portsmouth City Council,PCC,Children's and Education Services,Other Children and Family Services,Children's Services and Education,Third Party Payments,Other establishments,03-Oct-22,6670554,56.67,SUPPLIER,SOLENT NHS TRUST,300000020460772 
Portsmouth City Council,PCC,Children's and Education Services,Other Children and Family Services,Children's Services and Education,Third Party Payments,Other establishments,03-Oct-22,6670554,56.67,SUPPLIER,SOLENT NHS TRUST,300000020460772 
Portsmouth City Council,PCC,Children's and Education Services,Other Children and Family Services,Children's Services and Education,Third Party Payments,Other establishments,03-Oct-22,6670554,56.67,SUPPLIER,SOLENT NHS TRUST,300000020460772 
Portsmouth City Council,PCC,Children's and Education Services,Other Children and Family Services,Children's Services and Education,Third Party Payments,Other establishments,03-Oct-22,6670554,56.67,SUPPLIER,SOLENT NHS TRUST,300000020460772 
Portsmouth City Council,PCC,Children's and Education Services,Other Children and Family Services,Children's Services and Education,Third Party Payments,Other establishments,03-Oct-22,6670554,68.5,SUPPLIER,SOLENT NHS TRUST,300000020460772 
Portsmouth City Council,PCC,Children's and Education Services,Other Children and Family Services,Children's Services and Education,Third Party Payments,Other establishments,03-Oct-22,6670554,68.5,SUPPLIER,SOLENT NHS TRUST,300000020460772 
Portsmouth City Council,PCC,Children's and Education Services,Other Children and Family Services,Children's Services and Education,Third Party Payments,Other establishments,03-Oct-22,6670554,68.5,SUPPLIER,SOLENT NHS TRUST,300000020460772 
Portsmouth City Council,PCC,Children's and Education Services,Other Children and Family Services,Children's Services and Education,Third Party Payments,Other establishments,03-Oct-22,6670554,68.5,SUPPLIER,SOLENT NHS TRUST,300000020460772 
Portsmouth City Council,PCC,Children's and Education Services,Other Children and Family Services,Children's Services and Education,Third Party Payments,Other establishments,03-Oct-22,6670554,132.23,SUPPLIER,SOLENT NHS TRUST,300000020460772 
Portsmouth City Council,PCC,Children's and Education Services,Other Children and Family Services,Children's Services and Education,Third Party Payments,Other establishments,03-Oct-22,6670554,132.23,SUPPLIER,SOLENT NHS TRUST,300000020460772 
Portsmouth City Council,PCC,Children's and Education Services,Other Children and Family Services,Children's Services and Education,Third Party Payments,Other establishments,03-Oct-22,6670554,132.23,SUPPLIER,SOLENT NHS TRUST,300000020460772 
Portsmouth City Council,PCC,Children's and Education Services,Other Children and Family Services,Children's Services and Education,Third Party Payments,Other establishments,03-Oct-22,6670554,132.23,SUPPLIER,SOLENT NHS TRUST,300000020460772 
Portsmouth City Council,PCC,Children's and Education Services,Other Children and Family Services,Children's Services and Education,Third Party Payments,Other establishments,03-Oct-22,6670554,132.23,SUPPLIER,SOLENT NHS TRUST,300000020460772 
Portsmouth City Council,PCC,Children's and Education Services,Other Children and Family Services,Children's Services and Education,Third Party Payments,Other establishments,03-Oct-22,6670554,181.16,SUPPLIER,SOLENT NHS TRUST,300000020460772 
Portsmouth City Council,PCC,Children's and Education Services,Other Children and Family Services,Children's Services and Education,Third Party Payments,Other establishments,03-Oct-22,6670554,200.02,SUPPLIER,SOLENT NHS TRUST,300000020460772 
Portsmouth City Council,PCC,Children's and Education Services,Children Looked After,Children's Services and Education,Third Party Payments,Other establishments,11-Oct-22,6672728,353.43,SUPPLIER,CORE ASSETS GROUP,300000020461175 
Portsmouth City Council,PCC,Children's and Education Services,Children Looked After,Children's Services and Education,Third Party Payments,Other establishments,11-Oct-22,6672728,706.86,SUPPLIER,CORE ASSETS GROUP,300000020461175 
Portsmouth City Council,PCC,Children's and Education Services,Children Looked After,Children's Services and Education,Third Party Payments,Other establishments,11-Oct-22,6672728,824.67,SUPPLIER,CORE ASSETS GROUP,300000020461175 
Portsmouth City Council,PCC,Children's and Education Services,Children Looked After,Children's Services and Education,Third Party Payments,Other establishments,11-Oct-22,6672728,824.67,SUPPLIER,CORE ASSETS GROUP,300000020461175 
Portsmouth City Council,PCC,Children's and Education Services,Children Looked After,Children's Services and Education,Third Party Payments,Other establishments,11-Oct-22,6672728,824.67,SUPPLIER,CORE ASSETS GROUP,300000020461175 
Portsmouth City Council,PCC,Children's and Education Services,Children Looked After,Children's Services and Education,Third Party Payments,Other establishments,11-Oct-22,6672728,301.05,SUPPLIER,CORE ASSETS GROUP,300000020461175 
Portsmouth City Council,PCC,Children's and Education Services,Children Looked After,Children's Services and Education,Third Party Payments,Other establishments,11-Oct-22,6672728,602.1,SUPPLIER,CORE ASSETS GROUP,300000020461175 
Portsmouth City Council,PCC,Children's and Education Services,Children Looked After,Children's Services and Education,Third Party Payments,Other establishments,11-Oct-22,6672728,702.45,SUPPLIER,CORE ASSETS GROUP,300000020461175 
Portsmouth City Council,PCC,Children's and Education Services,Children Looked After,Children's Services and Education,Third Party Payments,Other establishments,11-Oct-22,6672728,702.45,SUPPLIER,CORE ASSETS GROUP,300000020461175 
Portsmouth City Council,PCC,Children's and Education Services,Children Looked After,Children's Services and Education,Third Party Payments,Other establishments,11-Oct-22,6672728,702.45,SUPPLIER,CORE ASSETS GROUP,300000020461175 
Portsmouth City Council,PCC,Children's and Education Services,Family Support Services,Children's Services and Education,Supplies and Services,Services,10-Oct-22,6672669,78,SUPPLIER,AA GLOBAL LANGUAGE SERVICES LTD,300000020483226 
Portsmouth City Council,PCC,Housing Services,Private Sector Housing Renewal,"Housing, Neighbourhood and Building Services",Income,Other grants reimbursements and contributions,07-Oct-22,6671783,"-1,406.25",LIMITED COMPANY,LIFTECH SYSTEMS (SE) LIMITED,300000020461913 
Portsmouth City Council,PCC,Other,Suspense and Capital Schemes,Capital - Housing General Fund,Capital Charges,REFCUS,07-Oct-22,6671783,"1,687.50",LIMITED COMPANY,LIFTECH SYSTEMS (SE) LIMITED,300000020461913 
Portsmouth City Council,PCC,Other,Suspense and Capital Schemes,Capital - Housing General Fund,Capital Charges,REFCUS,07-Oct-22,6671783,"1,870.00",LIMITED COMPANY,LIFTECH SYSTEMS (SE) LIMITED,300000020461913 
Portsmouth City Council,PCC,Children's and Education Services,Other Education and Community Budget,Regeneration,Premises-Related Expenditure,Energy costs,14-Oct-22,6673552,-460.24,LIMITED COMPANY,GAZPROM MARKETING AND TRADING LTD,300000250807105 
Portsmouth City Council,PCC,Costs below Net Cost of Services,Trading,Regeneration,Premises-Related Expenditure,Energy costs,14-Oct-22,6673552,"21,679.62",LIMITED COMPANY,GAZPROM MARKETING AND TRADING LTD,300000250807105 
Portsmouth City Council,PCC,Housing Revenue Account,Special Services,"Housing, Neighbourhood and Building Services",Premises-Related Expenditure,Energy costs,14-Oct-22,6673552,136.34,LIMITED COMPANY,GAZPROM MARKETING AND TRADING LTD,300000250807105 
Portsmouth City Council,PCC,Housing Revenue Account,Special Services,"Housing, Neighbourhood and Building Services",Premises-Related Expenditure,Energy costs,14-Oct-22,6673552,34.7,LIMITED COMPANY,GAZPROM MARKETING AND TRADING LTD,300000250807105 
Portsmouth City Council,PCC,Housing Revenue Account,Special Services,"Housing, Neighbourhood and Building Services",Premises-Related Expenditure,Energy costs,14-Oct-22,6673552,128.69,LIMITED COMPANY,GAZPROM MARKETING AND TRADING LTD,300000250807105 
Portsmouth City Council,PCC,Housing Revenue Account,Special Services,"Housing, Neighbourhood and Building Services",Premises-Related Expenditure,Energy costs,14-Oct-22,6673552,48.54,LIMITED COMPANY,GAZPROM MARKETING AND TRADING LTD,300000250807105 
Portsmouth City Council,PCC,Housing Revenue Account,Special Services,"Housing, Neighbourhood and Building Services",Premises-Related Expenditure,Energy costs,14-Oct-22,6673552,36.81,LIMITED COMPANY,GAZPROM MARKETING AND TRADING LTD,300000250807105 
Portsmouth City Council,PCC,Housing Revenue Account,Special Services,"Housing, Neighbourhood and Building Services",Premises-Related Expenditure,Energy costs,14-Oct-22,6673552,110.62,LIMITED COMPANY,GAZPROM MARKETING AND TRADING LTD,300000250807105 
Portsmouth City Council,PCC,Highways and Transport Services,"Airports, Harbours and Toll Facilities",Portsmouth International Port,Premises-Related Expenditure,Energy costs,14-Oct-22,6673552,23.91,LIMITED COMPANY,GAZPROM MARKETING AND TRADING LTD,300000250807105 
Portsmouth City Council,PCC,Housing Revenue Account,Special Services,"Housing, Neighbourhood and Building Services",Premises-Related Expenditure,Energy costs,14-Oct-22,6673552,12.43,LIMITED COMPANY,GAZPROM MARKETING AND TRADING LTD,300000250807105 
Portsmouth City Council,PCC,Other,Suspense and Capital Schemes,Portsmouth International Port,Premises-Related Expenditure,Energy costs,14-Oct-22,6673552,-99.89,LIMITED COMPANY,GAZPROM MARKETING AND TRADING LTD,300000250807105 
Portsmouth City Council,PCC,Other,Suspense and Capital Schemes,Portsmouth International Port,Premises-Related Expenditure,Energy costs,14-Oct-22,6673552,-121.06,LIMITED COMPANY,GAZPROM MARKETING AND TRADING LTD,300000250807105 
Portsmouth City Council,PCC,Other,Suspense and Capital Schemes,Portsmouth International Port,Premises-Related Expenditure,Energy costs,14-Oct-22,6673552,272.17,LIMITED COMPANY,GAZPROM MARKETING AND TRADING LTD,300000250807105 
Portsmouth City Council,PCC,Highways and Transport Services,"Airports, Harbours and Toll Facilities",Portsmouth International Port,Premises-Related Expenditure,Energy costs,14-Oct-22,6673552,6.22,LIMITED COMPANY,GAZPROM MARKETING AND TRADING LTD,300000250807105 
Portsmouth City Council,PCC,Housing Revenue Account,Special Services,"Housing, Neighbourhood and Building Services",Premises-Related Expenditure,Energy costs,14-Oct-22,6673552,32.42,LIMITED COMPANY,GAZPROM MARKETING AND TRADING LTD,300000250807105 
Portsmouth City Council,PCC,Housing Revenue Account,Special Services,"Housing, Neighbourhood and Building Services",Premises-Related Expenditure,Energy costs,14-Oct-22,6673552,45.28,LIMITED COMPANY,GAZPROM MARKETING AND TRADING LTD,300000250807105 
Portsmouth City Council,PCC,Housing Revenue Account,Special Services,"Housing, Neighbourhood and Building Services",Premises-Related Expenditure,Energy costs,14-Oct-22,6673552,83.43,LIMITED COMPANY,GAZPROM MARKETING AND TRADING LTD,300000250807105 
Portsmouth City Council,PCC,Other,Suspense and Capital Schemes,"Housing, Neighbourhood and Building Services",Premises-Related Expenditure,Energy costs,14-Oct-22,6673552,9.56,LIMITED COMPANY,GAZPROM MARKETING AND TRADING LTD,300000250807105 
Portsmouth City Council,PCC,Housing Revenue Account,Special Services,"Housing, Neighbourhood and Building Services",Premises-Related Expenditure,Energy costs,14-Oct-22,6673552,6.11,LIMITED COMPANY,GAZPROM MARKETING AND TRADING LTD,300000250807105 
Portsmouth City Council,PCC,Housing Revenue Account,Supervision and Management,"Housing, Neighbourhood and Building Services",Premises-Related Expenditure,Energy costs,14-Oct-22,6673552,120.37,LIMITED COMPANY,GAZPROM MARKETING AND TRADING LTD,300000250807105 
Portsmouth City Council,PCC,Children's and Education Services,Primary Schools,Children's Services and Education,Premises-Related Expenditure,Energy costs,14-Oct-22,6673552,26.99,LIMITED COMPANY,GAZPROM MARKETING AND TRADING LTD,300000250807105 
Portsmouth City Council,PCC,Housing Revenue Account,Special Services,"Housing, Neighbourhood and Building Services",Premises-Related Expenditure,Energy costs,14-Oct-22,6673552,95.74,LIMITED COMPANY,GAZPROM MARKETING AND TRADING LTD,300000250807105 
Portsmouth City Council,PCC,Children's and Education Services,Primary Schools,Children's Services and Education,Premises-Related Expenditure,Energy costs,14-Oct-22,6673552,389.98,LIMITED COMPANY,GAZPROM MARKETING AND TRADING LTD,300000250807105 
Portsmouth City Council,PCC,Children's and Education Services,Other Education and Community Budget,Regeneration,Premises-Related Expenditure,Energy costs,14-Oct-22,6673552,321.74,LIMITED COMPANY,GAZPROM MARKETING AND TRADING LTD,300000250807105 
Portsmouth City Council,PCC,Housing Services,Homelessness,"Housing, Neighbourhood and Building Services",Premises-Related Expenditure,Energy costs,14-Oct-22,6673552,65.9,LIMITED COMPANY,GAZPROM MARKETING AND TRADING LTD,300000250807105 
Portsmouth City Council,PCC,Housing Revenue Account,Special Services,"Housing, Neighbourhood and Building Services",Premises-Related Expenditure,Energy costs,14-Oct-22,6673552,212.67,LIMITED COMPANY,GAZPROM MARKETING AND TRADING LTD,300000250807105 
Portsmouth City Council,PCC,Housing Services,Homelessness,"Housing, Neighbourhood and Building Services",Premises-Related Expenditure,Energy costs,14-Oct-22,6673552,94.49,LIMITED COMPANY,GAZPROM MARKETING AND TRADING LTD,300000250807105 
Portsmouth City Council,PCC,Children's and Education Services,Primary Schools,Children's Services and Education,Premises-Related Expenditure,Energy costs,14-Oct-22,6673552,42.26,LIMITED COMPANY,GAZPROM MARKETING AND TRADING LTD,300000250807105 
Portsmouth City Council,PCC,Children's and Education Services,Other Children and Family Services,Children's Services and Education,Premises-Related Expenditure,Energy costs,14-Oct-22,6673552,132.11,LIMITED COMPANY,GAZPROM MARKETING AND TRADING LTD,300000250807105 
Portsmouth City Council,PCC,Housing Revenue Account,Special Services,"Housing, Neighbourhood and Building Services",Premises-Related Expenditure,Energy costs,14-Oct-22,6673552,134.85,LIMITED COMPANY,GAZPROM MARKETING AND TRADING LTD,300000250807105 
Portsmouth City Council,PCC,Housing Services,Homelessness,"Housing, Neighbourhood and Building Services",Premises-Related Expenditure,Energy costs,14-Oct-22,6673552,91.6,LIMITED COMPANY,GAZPROM MARKETING AND TRADING LTD,300000250807105 
Portsmouth City Council,PCC,Housing Services,Homelessness,"Housing, Neighbourhood and Building Services",Premises-Related Expenditure,Energy costs,14-Oct-22,6673552,80.86,LIMITED COMPANY,GAZPROM MARKETING AND TRADING LTD,300000250807105 
Portsmouth City Council,PCC,Housing Revenue Account,Special Services,"Housing, Neighbourhood and Building Services",Premises-Related Expenditure,Energy costs,14-Oct-22,6673552,74.64,LIMITED COMPANY,GAZPROM MARKETING AND TRADING LTD,300000250807105 
Portsmouth City Council,PCC,Children's and Education Services,Primary Schools,Children's Services and Education,Premises-Related Expenditure,Energy costs,14-Oct-22,6673552,687.63,LIMITED COMPANY,GAZPROM MARKETING AND TRADING LTD,300000250807105 
Portsmouth City Council,PCC,Adult Social Care,Physical Support Older People (85+),Adult Care,Third Party Payments,Other establishments,11-Oct-22,6672775,"1,132.60",SUPPLIER,ABICARE SERVICES LTD,300000020470310 
Portsmouth City Council,PCC,Children's and Education Services,Children Looked After,Children's Services and Education,Premises-Related Expenditure,Energy costs,14-Oct-22,6673552,114.07,LIMITED COMPANY,GAZPROM MARKETING AND TRADING LTD,300000250807105 
Portsmouth City Council,PCC,Environmental and Regulatory Services,"Cemetery, Cremation and Mortuary Services","Culture, Leisure & Regulatory Services",Premises-Related Expenditure,Energy costs,14-Oct-22,6673552,126.07,LIMITED COMPANY,GAZPROM MARKETING AND TRADING LTD,300000250807105 
Portsmouth City Council,PCC,Cultural and Related Services,Library Service,"Culture, Leisure & Regulatory Services",Premises-Related Expenditure,Energy costs,14-Oct-22,6673552,33.06,LIMITED COMPANY,GAZPROM MARKETING AND TRADING LTD,300000250807105 
Portsmouth City Council,PCC,Housing Revenue Account,Special Services,"Housing, Neighbourhood and Building Services",Premises-Related Expenditure,Energy costs,14-Oct-22,6673552,115.95,LIMITED COMPANY,GAZPROM MARKETING AND TRADING LTD,300000250807105 
Portsmouth City Council,PCC,Children's and Education Services,Primary Schools,Children's Services and Education,Premises-Related Expenditure,Energy costs,14-Oct-22,6673552,22.49,LIMITED COMPANY,GAZPROM MARKETING AND TRADING LTD,300000250807105 
Portsmouth City Council,PCC,Housing Revenue Account,Special Services,"Housing, Neighbourhood and Building Services",Premises-Related Expenditure,Energy costs,14-Oct-22,6673552,94.74,LIMITED COMPANY,GAZPROM MARKETING AND TRADING LTD,300000250807105 
Portsmouth City Council,PCC,Housing Revenue Account,Special Services,"Housing, Neighbourhood and Building Services",Premises-Related Expenditure,Energy costs,14-Oct-22,6673552,21.49,LIMITED COMPANY,GAZPROM MARKETING AND TRADING LTD,300000250807105 
Portsmouth City Council,PCC,Housing Revenue Account,Special Services,"Housing, Neighbourhood and Building Services",Premises-Related Expenditure,Energy costs,14-Oct-22,6673552,19.25,LIMITED COMPANY,GAZPROM MARKETING AND TRADING LTD,300000250807105 
Portsmouth City Council,PCC,Housing Services,Homelessness,"Housing, Neighbourhood and Building Services",Premises-Related Expenditure,Energy costs,14-Oct-22,6673552,37.65,LIMITED COMPANY,GAZPROM MARKETING AND TRADING LTD,300000250807105 
Portsmouth City Council,PCC,Children's and Education Services,Primary Schools,Children's Services and Education,Premises-Related Expenditure,Energy costs,14-Oct-22,6673552,-687.63,LIMITED COMPANY,GAZPROM MARKETING AND TRADING LTD,300000250807105 
Portsmouth City Council,PCC,Children's and Education Services,Primary Schools,Children's Services and Education,Premises-Related Expenditure,Energy costs,14-Oct-22,6673552,-552.99,LIMITED COMPANY,GAZPROM MARKETING AND TRADING LTD,300000250807105 
Portsmouth City Council,PCC,Children's and Education Services,Primary Schools,Children's Services and Education,Premises-Related Expenditure,Energy costs,14-Oct-22,6673552,-477.52,LIMITED COMPANY,GAZPROM MARKETING AND TRADING LTD,300000250807105 
Portsmouth City Council,PCC,Children's and Education Services,Primary Schools,Children's Services and Education,Premises-Related Expenditure,Energy costs,14-Oct-22,6673552,-644.82,LIMITED COMPANY,GAZPROM MARKETING AND TRADING LTD,300000250807105 
Portsmouth City Council,PCC,Children's and Education Services,Primary Schools,Children's Services and Education,Premises-Related Expenditure,Energy costs,14-Oct-22,6673552,"-1,027.38",LIMITED COMPANY,GAZPROM MARKETING AND TRADING LTD,300000250807105 
Portsmouth City Council,PCC,Children's and Education Services,Primary Schools,Children's Services and Education,Premises-Related Expenditure,Energy costs,14-Oct-22,6673552,952.66,LIMITED COMPANY,GAZPROM MARKETING AND TRADING LTD,300000250807105 
Portsmouth City Council,PCC,Housing Revenue Account,Special Services,"Housing, Neighbourhood and Building Services",Premises-Related Expenditure,Energy costs,14-Oct-22,6673552,6.22,LIMITED COMPANY,GAZPROM MARKETING AND TRADING LTD,300000250807105 
Portsmouth City Council,PCC,Housing Revenue Account,Special Services,"Housing, Neighbourhood and Building Services",Premises-Related Expenditure,Energy costs,14-Oct-22,6673552,30.48,LIMITED COMPANY,GAZPROM MARKETING AND TRADING LTD,300000250807105 
Portsmouth City Council,PCC,Housing Revenue Account,Special Services,"Housing, Neighbourhood and Building Services",Premises-Related Expenditure,Energy costs,14-Oct-22,6673552,304.17,LIMITED COMPANY,GAZPROM MARKETING AND TRADING LTD,300000250807105 
Portsmouth City Council,PCC,Housing Revenue Account,Special Services,"Housing, Neighbourhood and Building Services",Premises-Related Expenditure,Energy costs,14-Oct-22,6673552,125.08,LIMITED COMPANY,GAZPROM MARKETING AND TRADING LTD,300000250807105 
Portsmouth City Council,PCC,Children's and Education Services,Primary Schools,Children's Services and Education,Premises-Related Expenditure,Energy costs,14-Oct-22,6673552,275.71,LIMITED COMPANY,GAZPROM MARKETING AND TRADING LTD,300000250807105 
Portsmouth City Council,PCC,Children's and Education Services,Primary Schools,Children's Services and Education,Premises-Related Expenditure,Energy costs,14-Oct-22,6673552,11.98,LIMITED COMPANY,GAZPROM MARKETING AND TRADING LTD,300000250807105 
Portsmouth City Council,PCC,Adult Social Care,Physical Support Older People (85+),Adult Care,Third Party Payments,Other establishments,13-Oct-22,6673454,39.28,SUPPLIER,ADMIRAL CARE LTD,300000020477405 
Portsmouth City Council,PCC,Other,Suspense and Capital Schemes,"Housing, Neighbourhood and Building Services",Premises-Related Expenditure,Energy costs,14-Oct-22,6673552,20.16,LIMITED COMPANY,GAZPROM MARKETING AND TRADING LTD,300000250807105 
Portsmouth City Council,PCC,Housing Revenue Account,Special Services,"Housing, Neighbourhood and Building Services",Premises-Related Expenditure,Energy costs,14-Oct-22,6673552,149.88,LIMITED COMPANY,GAZPROM MARKETING AND TRADING LTD,300000250807105 
Portsmouth City Council,PCC,Cultural and Related Services,Library Service,"Culture, Leisure & Regulatory Services",Premises-Related Expenditure,Energy costs,14-Oct-22,6673552,41.93,LIMITED COMPANY,GAZPROM MARKETING AND TRADING LTD,300000250807105 
Portsmouth City Council,PCC,Children's and Education Services,Children Looked After,Children's Services and Education,Premises-Related Expenditure,Energy costs,14-Oct-22,6673552,73.36,LIMITED COMPANY,GAZPROM MARKETING AND TRADING LTD,300000250807105 
Portsmouth City Council,PCC,Costs below Net Cost of Services,Trading,Regeneration,Premises-Related Expenditure,Energy costs,14-Oct-22,6673552,6.22,LIMITED COMPANY,GAZPROM MARKETING AND TRADING LTD,300000250807105 
Portsmouth City Council,PCC,Housing Revenue Account,Special Services,"Housing, Neighbourhood and Building Services",Premises-Related Expenditure,Energy costs,14-Oct-22,6673552,227.21,LIMITED COMPANY,GAZPROM MARKETING AND TRADING LTD,300000250807105 
Portsmouth City Council,PCC,Housing Revenue Account,Special Services,"Housing, Neighbourhood and Building Services",Premises-Related Expenditure,Energy costs,14-Oct-22,6673552,59.04,LIMITED COMPANY,GAZPROM MARKETING AND TRADING LTD,300000250807105 
Portsmouth City Council,PCC,Housing Revenue Account,Special Services,"Housing, Neighbourhood and Building Services",Premises-Related Expenditure,Energy costs,14-Oct-22,6673552,253.42,LIMITED COMPANY,GAZPROM MARKETING AND TRADING LTD,300000250807105 
Portsmouth City Council,PCC,Housing Revenue Account,Special Services,"Housing, Neighbourhood and Building Services",Premises-Related Expenditure,Energy costs,14-Oct-22,6673552,75.82,LIMITED COMPANY,GAZPROM MARKETING AND TRADING LTD,300000250807105 
Portsmouth City Council,PCC,Housing Revenue Account,Special Services,"Housing, Neighbourhood and Building Services",Premises-Related Expenditure,Energy costs,14-Oct-22,6673552,105.55,LIMITED COMPANY,GAZPROM MARKETING AND TRADING LTD,300000250807105 
Portsmouth City Council,PCC,Children's and Education Services,Primary Schools,Children's Services and Education,Premises-Related Expenditure,Energy costs,14-Oct-22,6673552,-745.66,LIMITED COMPANY,GAZPROM MARKETING AND TRADING LTD,300000250807105 
Portsmouth City Council,PCC,Children's and Education Services,Primary Schools,Children's Services and Education,Premises-Related Expenditure,Energy costs,14-Oct-22,6673552,-644.4,LIMITED COMPANY,GAZPROM MARKETING AND TRADING LTD,300000250807105 
Portsmouth City Council,PCC,Children's and Education Services,Primary Schools,Children's Services and Education,Premises-Related Expenditure,Energy costs,14-Oct-22,6673552,-868.33,LIMITED COMPANY,GAZPROM MARKETING AND TRADING LTD,300000250807105 
Portsmouth City Council,PCC,Children's and Education Services,Primary Schools,Children's Services and Education,Premises-Related Expenditure,Energy costs,14-Oct-22,6673552,"-1,407.95",LIMITED COMPANY,GAZPROM MARKETING AND TRADING LTD,300000250807105 
Portsmouth City Council,PCC,Other,Suspense and Capital Schemes,"Housing, Neighbourhood and Building Services",Premises-Related Expenditure,Energy costs,14-Oct-22,6673552,304.58,LIMITED COMPANY,GAZPROM MARKETING AND TRADING LTD,300000250807105 
Portsmouth City Council,PCC,Children's and Education Services,Primary Schools,Children's Services and Education,Premises-Related Expenditure,Energy costs,14-Oct-22,6673552,402.34,LIMITED COMPANY,GAZPROM MARKETING AND TRADING LTD,300000250807105 
Portsmouth City Council,PCC,Planning Services,Business support,Regeneration,Premises-Related Expenditure,Energy costs,14-Oct-22,6673552,10.94,LIMITED COMPANY,GAZPROM MARKETING AND TRADING LTD,300000250807105 
Portsmouth City Council,PCC,Planning Services,Business support,Regeneration,Premises-Related Expenditure,Energy costs,14-Oct-22,6673552,"1,350.71",LIMITED COMPANY,GAZPROM MARKETING AND TRADING LTD,300000250807105 
Portsmouth City Council,PCC,Children's and Education Services,Primary Schools,Children's Services and Education,Premises-Related Expenditure,Energy costs,14-Oct-22,6673552,570.68,LIMITED COMPANY,GAZPROM MARKETING AND TRADING LTD,300000250807105 
Portsmouth City Council,PCC,Cultural and Related Services,Library Service,"Culture, Leisure & Regulatory Services",Premises-Related Expenditure,Energy costs,14-Oct-22,6673552,425.32,LIMITED COMPANY,GAZPROM MARKETING AND TRADING LTD,300000250807105 
Portsmouth City Council,PCC,Housing Revenue Account,Special Services,"Housing, Neighbourhood and Building Services",Premises-Related Expenditure,Energy costs,14-Oct-22,6673552,61.61,LIMITED COMPANY,GAZPROM MARKETING AND TRADING LTD,300000250807105 
Portsmouth City Council,PCC,Costs below Net Cost of Services,Trading,Regeneration,Premises-Related Expenditure,Energy costs,14-Oct-22,6673552,79.29,LIMITED COMPANY,GAZPROM MARKETING AND TRADING LTD,300000250807105 
Portsmouth City Council,PCC,Housing Revenue Account,Special Services,"Housing, Neighbourhood and Building Services",Premises-Related Expenditure,Energy costs,14-Oct-22,6673552,740.93,LIMITED COMPANY,GAZPROM MARKETING AND TRADING LTD,300000250807105 
Portsmouth City Council,PCC,Children's and Education Services,Family Support Services,Children's Services and Education,Premises-Related Expenditure,Energy costs,14-Oct-22,6673552,"1,049.42",LIMITED COMPANY,GAZPROM MARKETING AND TRADING LTD,300000250807105 
Portsmouth City Council,PCC,Children's and Education Services,Primary Schools,Children's Services and Education,Premises-Related Expenditure,Energy costs,14-Oct-22,6673552,808.95,LIMITED COMPANY,GAZPROM MARKETING AND TRADING LTD,300000250807105 
Portsmouth City Council,PCC,Children's and Education Services,Primary Schools,Children's Services and Education,Premises-Related Expenditure,Energy costs,14-Oct-22,6673552,9.4,LIMITED COMPANY,GAZPROM MARKETING AND TRADING LTD,300000250807105 
Portsmouth City Council,PCC,Cultural and Related Services,Library Service,"Culture, Leisure & Regulatory Services",Premises-Related Expenditure,Energy costs,14-Oct-22,6673552,"8,479.31",LIMITED COMPANY,GAZPROM MARKETING AND TRADING LTD,300000250807105 
Portsmouth City Council,PCC,Adult Social Care,Physical Support Older People (85+),Adult Care,Third Party Payments,Other establishments,13-Oct-22,6673454,39.28,SUPPLIER,ADMIRAL CARE LTD,300000020477405 
Portsmouth City Council,PCC,Housing Revenue Account,"Rents, Rates, Taxes and Other Charges","Housing, Neighbourhood and Building Services",Premises-Related Expenditure,Energy costs,14-Oct-22,6673552,70.34,LIMITED COMPANY,GAZPROM MARKETING AND TRADING LTD,300000250807105 
Portsmouth City Council,PCC,Housing Revenue Account,"Rents, Rates, Taxes and Other Charges","Housing, Neighbourhood and Building Services",Premises-Related Expenditure,Energy costs,14-Oct-22,6673552,61.34,LIMITED COMPANY,GAZPROM MARKETING AND TRADING LTD,300000250807105 
Portsmouth City Council,PCC,Housing Revenue Account,"Rents, Rates, Taxes and Other Charges","Housing, Neighbourhood and Building Services",Premises-Related Expenditure,Energy costs,14-Oct-22,6673552,47.59,LIMITED COMPANY,GAZPROM MARKETING AND TRADING LTD,300000250807105 
Portsmouth City Council,PCC,Housing Revenue Account,Special Services,"Housing, Neighbourhood and Building Services",Premises-Related Expenditure,CRC Allowances,14-Oct-22,6673552,13.2,LIMITED COMPANY,GAZPROM MARKETING AND TRADING LTD,300000250807105 
Portsmouth City Council,PCC,Housing Revenue Account,Special Services,"Housing, Neighbourhood and Building Services",Premises-Related Expenditure,CRC Allowances,14-Oct-22,6673552,23.01,LIMITED COMPANY,GAZPROM MARKETING AND TRADING LTD,300000250807105 
Portsmouth City Council,PCC,Housing Revenue Account,Special Services,"Housing, Neighbourhood and Building Services",Premises-Related Expenditure,Energy costs,14-Oct-22,6673552,"43,552.04",LIMITED COMPANY,GAZPROM MARKETING AND TRADING LTD,300000250807105 
Portsmouth City Council,PCC,Housing Revenue Account,Special Services,"Housing, Neighbourhood and Building Services",Premises-Related Expenditure,Energy costs,14-Oct-22,6673552,8.89,LIMITED COMPANY,GAZPROM MARKETING AND TRADING LTD,300000250807105 
Portsmouth City Council,PCC,Housing Revenue Account,Special Services,"Housing, Neighbourhood and Building Services",Premises-Related Expenditure,Energy costs,14-Oct-22,6673552,6.11,LIMITED COMPANY,GAZPROM MARKETING AND TRADING LTD,300000250807105 
Portsmouth City Council,PCC,Support Service / Transparency Costs Unallocated,AMS,Corporate Services,Premises-Related Expenditure,Energy costs,14-Oct-22,6673552,"29,402.30",LIMITED COMPANY,GAZPROM MARKETING AND TRADING LTD,300000250807105 
Portsmouth City Council,PCC,Housing Revenue Account,Special Services,"Housing, Neighbourhood and Building Services",Premises-Related Expenditure,Energy costs,14-Oct-22,6673552,200.74,LIMITED COMPANY,GAZPROM MARKETING AND TRADING LTD,300000250807105 
Portsmouth City Council,PCC,Housing Revenue Account,Special Services,"Housing, Neighbourhood and Building Services",Premises-Related Expenditure,Energy costs,14-Oct-22,6673552,78.42,LIMITED COMPANY,GAZPROM MARKETING AND TRADING LTD,300000250807105 
Portsmouth City Council,PCC,Cultural and Related Services,Recreation and Sport,"Culture, Leisure & Regulatory Services",Premises-Related Expenditure,Energy costs,14-Oct-22,6673552,809.08,LIMITED COMPANY,GAZPROM MARKETING AND TRADING LTD,300000250807105 
Portsmouth City Council,PCC,Cultural and Related Services,Open Spaces,"Culture, Leisure & Regulatory Services",Premises-Related Expenditure,Energy costs,14-Oct-22,6673552,274.4,LIMITED COMPANY,GAZPROM MARKETING AND TRADING LTD,300000250807105 
Portsmouth City Council,PCC,Children's and Education Services,Primary Schools,Children's Services and Education,Premises-Related Expenditure,Energy costs,14-Oct-22,6673552,65.05,LIMITED COMPANY,GAZPROM MARKETING AND TRADING LTD,300000250807105 
Portsmouth City Council,PCC,Housing Revenue Account,Special Services,"Housing, Neighbourhood and Building Services",Premises-Related Expenditure,Energy costs,14-Oct-22,6673552,"1,259.79",LIMITED COMPANY,GAZPROM MARKETING AND TRADING LTD,300000250807105 
Portsmouth City Council,PCC,Children's and Education Services,Primary Schools,Children's Services and Education,Premises-Related Expenditure,Energy costs,14-Oct-22,6673552,984.05,LIMITED COMPANY,GAZPROM MARKETING AND TRADING LTD,300000250807105 
Portsmouth City Council,PCC,Children's and Education Services,Primary Schools,Children's Services and Education,Premises-Related Expenditure,Energy costs,14-Oct-22,6673552,"2,231.54",LIMITED COMPANY,GAZPROM MARKETING AND TRADING LTD,300000250807105 
Portsmouth City Council,PCC,Children's and Education Services,Primary Schools,Children's Services and Education,Premises-Related Expenditure,Energy costs,14-Oct-22,6673552,813.07,LIMITED COMPANY,GAZPROM MARKETING AND TRADING LTD,300000250807105 
Portsmouth City Council,PCC,Children's and Education Services,Primary Schools,Children's Services and Education,Premises-Related Expenditure,Energy costs,14-Oct-22,6673552,60.59,LIMITED COMPANY,GAZPROM MARKETING AND TRADING LTD,300000250807105 
Portsmouth City Council,PCC,Other,Suspense and Capital Schemes,"Housing, Neighbourhood and Building Services",Premises-Related Expenditure,Energy costs,14-Oct-22,6673552,195.39,LIMITED COMPANY,GAZPROM MARKETING AND TRADING LTD,300000250807105 
Portsmouth City Council,PCC,Cultural and Related Services,Recreation and Sport,"Culture, Leisure & Regulatory Services",Premises-Related Expenditure,Energy costs,14-Oct-22,6673552,58.86,LIMITED COMPANY,GAZPROM MARKETING AND TRADING LTD,300000250807105 
Portsmouth City Council,PCC,Planning Services,Business support,Regeneration,Premises-Related Expenditure,Energy costs,14-Oct-22,6673552,26.56,LIMITED COMPANY,GAZPROM MARKETING AND TRADING LTD,300000250807105 
Portsmouth City Council,PCC,Children's and Education Services,Primary Schools,Children's Services and Education,Premises-Related Expenditure,Energy costs,14-Oct-22,6673552,200.71,LIMITED COMPANY,GAZPROM MARKETING AND TRADING LTD,300000250807105 
Portsmouth City Council,PCC,Children's and Education Services,Primary Schools,Children's Services and Education,Premises-Related Expenditure,Energy costs,14-Oct-22,6673552,512.8,LIMITED COMPANY,GAZPROM MARKETING AND TRADING LTD,300000250807105 
Portsmouth City Council,PCC,Children's and Education Services,Family Support Services,Children's Services and Education,Premises-Related Expenditure,Energy costs,14-Oct-22,6673552,361.63,LIMITED COMPANY,GAZPROM MARKETING AND TRADING LTD,300000250807105 
Portsmouth City Council,PCC,Housing Revenue Account,Special Services,"Housing, Neighbourhood and Building Services",Premises-Related Expenditure,Energy costs,14-Oct-22,6673552,358.67,LIMITED COMPANY,GAZPROM MARKETING AND TRADING LTD,300000250807105 
Portsmouth City Council,PCC,Housing Revenue Account,Special Services,"Housing, Neighbourhood and Building Services",Premises-Related Expenditure,Energy costs,14-Oct-22,6673552,38.04,LIMITED COMPANY,GAZPROM MARKETING AND TRADING LTD,300000250807105 
Portsmouth City Council,PCC,Adult Social Care,Physical Support Older People (85+),Adult Care,Third Party Payments,Other establishments,13-Oct-22,6673454,49.1,SUPPLIER,ADMIRAL CARE LTD,300000020477405 
Portsmouth City Council,PCC,Central Services,"Registration of Births, Deaths and Marriages","Culture, Leisure & Regulatory Services",Premises-Related Expenditure,Energy costs,14-Oct-22,6673552,66.72,LIMITED COMPANY,GAZPROM MARKETING AND TRADING LTD,300000250807105 
Portsmouth City Council,PCC,Other,Suspense and Capital Schemes,Capital - Housing General Fund,Capital Charges,Capital Expenditure (WIP),14-Oct-22,6673552,16.11,LIMITED COMPANY,GAZPROM MARKETING AND TRADING LTD,300000250807105 
Portsmouth City Council,PCC,Children's and Education Services,Primary Schools,Children's Services and Education,Premises-Related Expenditure,Energy costs,14-Oct-22,6673552,23.22,LIMITED COMPANY,GAZPROM MARKETING AND TRADING LTD,300000250807105 
Portsmouth City Council,PCC,Planning Services,Business support,Regeneration,Premises-Related Expenditure,Energy costs,14-Oct-22,6673552,348.87,LIMITED COMPANY,GAZPROM MARKETING AND TRADING LTD,300000250807105 
Portsmouth City Council,PCC,Children's and Education Services,Children Looked After,Children's Services and Education,Premises-Related Expenditure,Energy costs,14-Oct-22,6673552,529.66,LIMITED COMPANY,GAZPROM MARKETING AND TRADING LTD,300000250807105 
Portsmouth City Council,PCC,Housing Revenue Account,Supervision and Management,"Housing, Neighbourhood and Building Services",Premises-Related Expenditure,Energy costs,14-Oct-22,6673552,43.07,LIMITED COMPANY,GAZPROM MARKETING AND TRADING LTD,300000250807105 
Portsmouth City Council,PCC,Housing Revenue Account,Special Services,"Housing, Neighbourhood and Building Services",Premises-Related Expenditure,CRC Allowances,14-Oct-22,6673552,66.99,LIMITED COMPANY,GAZPROM MARKETING AND TRADING LTD,300000250807105 
Portsmouth City Council,PCC,Housing Revenue Account,Special Services,"Housing, Neighbourhood and Building Services",Premises-Related Expenditure,Energy costs,14-Oct-22,6673552,27.24,LIMITED COMPANY,GAZPROM MARKETING AND TRADING LTD,300000250807105 
Portsmouth City Council,PCC,Planning Services,Business support,Regeneration,Premises-Related Expenditure,Energy costs,14-Oct-22,6673552,157.26,LIMITED COMPANY,GAZPROM MARKETING AND TRADING LTD,300000250807105 
Portsmouth City Council,PCC,Housing Revenue Account,Special Services,"Housing, Neighbourhood and Building Services",Premises-Related Expenditure,Energy costs,14-Oct-22,6673552,479.29,LIMITED COMPANY,GAZPROM MARKETING AND TRADING LTD,300000250807105 
Portsmouth City Council,PCC,Housing Revenue Account,Special Services,"Housing, Neighbourhood and Building Services",Premises-Related Expenditure,Energy costs,14-Oct-22,6673552,"2,074.69",LIMITED COMPANY,GAZPROM MARKETING AND TRADING LTD,300000250807105 
Portsmouth City Council,PCC,Cultural and Related Services,Culture and Heritage,"Culture, Leisure & Regulatory Services",Premises-Related Expenditure,Energy costs,14-Oct-22,6673552,"1,220.55",LIMITED COMPANY,GAZPROM MARKETING AND TRADING LTD,300000250807105 
Portsmouth City Council,PCC,Children's and Education Services,Primary Schools,Children's Services and Education,Premises-Related Expenditure,Energy costs,14-Oct-22,6673552,74.66,LIMITED COMPANY,GAZPROM MARKETING AND TRADING LTD,300000250807105 
Portsmouth City Council,PCC,Cultural and Related Services,Culture and Heritage,"Culture, Leisure & Regulatory Services",Premises-Related Expenditure,Energy costs,14-Oct-22,6673552,172.31,LIMITED COMPANY,GAZPROM MARKETING AND TRADING LTD,300000250807105 
Portsmouth City Council,PCC,Housing Revenue Account,Special Services,"Housing, Neighbourhood and Building Services",Premises-Related Expenditure,Energy costs,14-Oct-22,6673552,"1,620.24",LIMITED COMPANY,GAZPROM MARKETING AND TRADING LTD,300000250807105 
Portsmouth City Council,PCC,Housing Revenue Account,Special Services,"Housing, Neighbourhood and Building Services",Premises-Related Expenditure,Energy costs,14-Oct-22,6673552,380.7,LIMITED COMPANY,GAZPROM MARKETING AND TRADING LTD,300000250807105 
Portsmouth City Council,PCC,Housing Revenue Account,Special Services,"Housing, Neighbourhood and Building Services",Premises-Related Expenditure,Energy costs,14-Oct-22,6673552,"2,469.61",LIMITED COMPANY,GAZPROM MARKETING AND TRADING LTD,300000250807105 
Portsmouth City Council,PCC,Housing Revenue Account,Supervision and Management,"Housing, Neighbourhood and Building Services",Premises-Related Expenditure,Energy costs,14-Oct-22,6673552,70.24,LIMITED COMPANY,GAZPROM MARKETING AND TRADING LTD,300000250807105 
Portsmouth City Council,PCC,Highways and Transport Services,"Airports, Harbours and Toll Facilities",Portsmouth International Port,Premises-Related Expenditure,Energy costs,14-Oct-22,6673552,30.8,LIMITED COMPANY,GAZPROM MARKETING AND TRADING LTD,300000250807105 
Portsmouth City Council,PCC,Housing Revenue Account,Special Services,"Housing, Neighbourhood and Building Services",Premises-Related Expenditure,Energy costs,14-Oct-22,6673552,826.51,LIMITED COMPANY,GAZPROM MARKETING AND TRADING LTD,300000250807105 
Portsmouth City Council,PCC,Housing Revenue Account,Special Services,"Housing, Neighbourhood and Building Services",Premises-Related Expenditure,Energy costs,14-Oct-22,6673552,472.79,LIMITED COMPANY,GAZPROM MARKETING AND TRADING LTD,300000250807105 
Portsmouth City Council,PCC,Housing Revenue Account,Special Services,"Housing, Neighbourhood and Building Services",Premises-Related Expenditure,Energy costs,14-Oct-22,6673552,19.75,LIMITED COMPANY,GAZPROM MARKETING AND TRADING LTD,300000250807105 
Portsmouth City Council,PCC,Children's and Education Services,Children Looked After,Children's Services and Education,Premises-Related Expenditure,Energy costs,14-Oct-22,6673552,273.18,LIMITED COMPANY,GAZPROM MARKETING AND TRADING LTD,300000250807105 
Portsmouth City Council,PCC,Cultural and Related Services,Culture and Heritage,"Culture, Leisure & Regulatory Services",Premises-Related Expenditure,Energy costs,14-Oct-22,6673552,2.91,LIMITED COMPANY,GAZPROM MARKETING AND TRADING LTD,300000250807105 
Portsmouth City Council,PCC,Children's and Education Services,Primary Schools,Children's Services and Education,Premises-Related Expenditure,Energy costs,14-Oct-22,6673552,-123.02,LIMITED COMPANY,GAZPROM MARKETING AND TRADING LTD,300000250807105 
Portsmouth City Council,PCC,Housing Revenue Account,Special Services,"Housing, Neighbourhood and Building Services",Premises-Related Expenditure,Energy costs,14-Oct-22,6673552,32.28,LIMITED COMPANY,GAZPROM MARKETING AND TRADING LTD,300000250807105 
Portsmouth City Council,PCC,Highways and Transport Services,"Airports, Harbours and Toll Facilities",Portsmouth International Port,Premises-Related Expenditure,Energy costs,14-Oct-22,6673552,6.11,LIMITED COMPANY,GAZPROM MARKETING AND TRADING LTD,300000250807105 
Portsmouth City Council,PCC,Housing Revenue Account,Special Services,"Housing, Neighbourhood and Building Services",Premises-Related Expenditure,Energy costs,14-Oct-22,6673552,191.28,LIMITED COMPANY,GAZPROM MARKETING AND TRADING LTD,300000250807105 
Portsmouth City Council,PCC,Housing Revenue Account,Special Services,"Housing, Neighbourhood and Building Services",Premises-Related Expenditure,Energy costs,14-Oct-22,6673552,34.41,LIMITED COMPANY,GAZPROM MARKETING AND TRADING LTD,300000250807105 
Portsmouth City Council,PCC,Housing Revenue Account,Special Services,"Housing, Neighbourhood and Building Services",Premises-Related Expenditure,Energy costs,14-Oct-22,6673552,92.82,LIMITED COMPANY,GAZPROM MARKETING AND TRADING LTD,300000250807105 
Portsmouth City Council,PCC,Housing Revenue Account,"Rents, Rates, Taxes and Other Charges","Housing, Neighbourhood and Building Services",Premises-Related Expenditure,Energy costs,14-Oct-22,6673552,14.1,LIMITED COMPANY,GAZPROM MARKETING AND TRADING LTD,300000250807105 
Portsmouth City Council,PCC,Adult Social Care,Physical Support Older People (85+),Adult Care,Third Party Payments,Other establishments,13-Oct-22,6673454,49.1,SUPPLIER,ADMIRAL CARE LTD,300000020477405 
Portsmouth City Council,PCC,Housing Revenue Account,Supervision and Management,"Housing, Neighbourhood and Building Services",Premises-Related Expenditure,Energy costs,14-Oct-22,6673552,10.21,LIMITED COMPANY,GAZPROM MARKETING AND TRADING LTD,300000250807105 
Portsmouth City Council,PCC,Adult Social Care,Physical Support Older People (85+),Adult Care,Third Party Payments,Other establishments,13-Oct-22,6673454,58.92,SUPPLIER,ADMIRAL CARE LTD,300000020477405 
Portsmouth City Council,PCC,Adult Social Care,Physical Support Older People (85+),Adult Care,Third Party Payments,Other establishments,13-Oct-22,6673454,58.92,SUPPLIER,ADMIRAL CARE LTD,300000020477405 
Portsmouth City Council,PCC,Adult Social Care,Information and Early Intervention,Adult Care,Third Party Payments,Other establishments,13-Oct-22,6673454,91.96,SUPPLIER,ADMIRAL CARE LTD,300000020477405 
Portsmouth City Council,PCC,Housing Revenue Account,Supervision and Management,"Housing, Neighbourhood and Building Services",Premises-Related Expenditure,Energy costs,14-Oct-22,6673552,109.79,LIMITED COMPANY,GAZPROM MARKETING AND TRADING LTD,300000250807105 
Portsmouth City Council,PCC,Children's and Education Services,Primary Schools,Children's Services and Education,Premises-Related Expenditure,Energy costs,14-Oct-22,6673552,216.34,LIMITED COMPANY,GAZPROM MARKETING AND TRADING LTD,300000250807105 
Portsmouth City Council,PCC,Housing Revenue Account,Special Services,"Housing, Neighbourhood and Building Services",Premises-Related Expenditure,Energy costs,14-Oct-22,6673552,593.66,LIMITED COMPANY,GAZPROM MARKETING AND TRADING LTD,300000250807105 
Portsmouth City Council,PCC,Children's and Education Services,Other Education and Community Budget,Children's Services and Education,Premises-Related Expenditure,Energy costs,14-Oct-22,6673552,9.61,LIMITED COMPANY,GAZPROM MARKETING AND TRADING LTD,300000250807105 
Portsmouth City Council,PCC,Housing Revenue Account,Special Services,"Housing, Neighbourhood and Building Services",Premises-Related Expenditure,Energy costs,14-Oct-22,6673552,35.7,LIMITED COMPANY,GAZPROM MARKETING AND TRADING LTD,300000250807105 
Portsmouth City Council,PCC,Housing Revenue Account,Special Services,"Housing, Neighbourhood and Building Services",Premises-Related Expenditure,Energy costs,14-Oct-22,6673552,6.22,LIMITED COMPANY,GAZPROM MARKETING AND TRADING LTD,300000250807105 
Portsmouth City Council,PCC,Housing Revenue Account,Special Services,"Housing, Neighbourhood and Building Services",Premises-Related Expenditure,Energy costs,14-Oct-22,6673552,6.11,LIMITED COMPANY,GAZPROM MARKETING AND TRADING LTD,300000250807105 
Portsmouth City Council,PCC,Adult Social Care,Physical Support Older People (85+),Adult Care,Third Party Payments,Other establishments,13-Oct-22,6673454,92.2,SUPPLIER,ADMIRAL CARE LTD,300000020477405 
Portsmouth City Council,PCC,Other,Suspense and Capital Schemes,Portsmouth International Port,Premises-Related Expenditure,Energy costs,14-Oct-22,6673552,685.35,LIMITED COMPANY,GAZPROM MARKETING AND TRADING LTD,300000250807105 
Portsmouth City Council,PCC,Housing Revenue Account,Special Services,"Housing, Neighbourhood and Building Services",Premises-Related Expenditure,Energy costs,14-Oct-22,6673552,206.1,LIMITED COMPANY,GAZPROM MARKETING AND TRADING LTD,300000250807105 
Portsmouth City Council,PCC,Housing Revenue Account,Special Services,"Housing, Neighbourhood and Building Services",Premises-Related Expenditure,Energy costs,14-Oct-22,6673552,35.29,LIMITED COMPANY,GAZPROM MARKETING AND TRADING LTD,300000250807105 
Portsmouth City Council,PCC,Children's and Education Services,Primary Schools,Children's Services and Education,Premises-Related Expenditure,Energy costs,14-Oct-22,6673552,63.71,LIMITED COMPANY,GAZPROM MARKETING AND TRADING LTD,300000250807105 
Portsmouth City Council,PCC,Housing Revenue Account,Special Services,"Housing, Neighbourhood and Building Services",Premises-Related Expenditure,Energy costs,14-Oct-22,6673552,"1,044.69",LIMITED COMPANY,GAZPROM MARKETING AND TRADING LTD,300000250807105 
Portsmouth City Council,PCC,Housing Revenue Account,Special Services,"Housing, Neighbourhood and Building Services",Premises-Related Expenditure,Energy costs,14-Oct-22,6673552,21.47,LIMITED COMPANY,GAZPROM MARKETING AND TRADING LTD,300000250807105 
Portsmouth City Council,PCC,Housing Revenue Account,Special Services,"Housing, Neighbourhood and Building Services",Premises-Related Expenditure,Energy costs,14-Oct-22,6673552,"1,886.07",LIMITED COMPANY,GAZPROM MARKETING AND TRADING LTD,300000250807105 
Portsmouth City Council,PCC,Housing Revenue Account,Special Services,"Housing, Neighbourhood and Building Services",Premises-Related Expenditure,Energy costs,14-Oct-22,6673552,323.67,LIMITED COMPANY,GAZPROM MARKETING AND TRADING LTD,300000250807105 
Portsmouth City Council,PCC,Children's and Education Services,Primary Schools,Children's Services and Education,Premises-Related Expenditure,Energy costs,14-Oct-22,6673552,244.14,LIMITED COMPANY,GAZPROM MARKETING AND TRADING LTD,300000250807105 
Portsmouth City Council,PCC,Housing Revenue Account,Special Services,"Housing, Neighbourhood and Building Services",Premises-Related Expenditure,Energy costs,14-Oct-22,6673552,12.36,LIMITED COMPANY,GAZPROM MARKETING AND TRADING LTD,300000250807105 
Portsmouth City Council,PCC,Housing Revenue Account,Special Services,"Housing, Neighbourhood and Building Services",Premises-Related Expenditure,Energy costs,14-Oct-22,6673552,62.58,LIMITED COMPANY,GAZPROM MARKETING AND TRADING LTD,300000250807105 
Portsmouth City Council,PCC,Housing Revenue Account,Special Services,"Housing, Neighbourhood and Building Services",Premises-Related Expenditure,Energy costs,14-Oct-22,6673552,8.36,LIMITED COMPANY,GAZPROM MARKETING AND TRADING LTD,300000250807105 
Portsmouth City Council,PCC,Housing Revenue Account,Special Services,"Housing, Neighbourhood and Building Services",Premises-Related Expenditure,Energy costs,14-Oct-22,6673552,9.9,LIMITED COMPANY,GAZPROM MARKETING AND TRADING LTD,300000250807105 
Portsmouth City Council,PCC,Children's and Education Services,Primary Schools,Children's Services and Education,Premises-Related Expenditure,Energy costs,14-Oct-22,6673552,540.04,LIMITED COMPANY,GAZPROM MARKETING AND TRADING LTD,300000250807105 
Portsmouth City Council,PCC,Housing Revenue Account,Special Services,"Housing, Neighbourhood and Building Services",Premises-Related Expenditure,Energy costs,14-Oct-22,6673552,47.37,LIMITED COMPANY,GAZPROM MARKETING AND TRADING LTD,300000250807105 
Portsmouth City Council,PCC,Children's and Education Services,Primary Schools,Children's Services and Education,Premises-Related Expenditure,Energy costs,14-Oct-22,6673552,313.59,LIMITED COMPANY,GAZPROM MARKETING AND TRADING LTD,300000250807105 
Portsmouth City Council,PCC,Housing Revenue Account,Supervision and Management,"Housing, Neighbourhood and Building Services",Premises-Related Expenditure,Energy costs,14-Oct-22,6673552,409.34,LIMITED COMPANY,GAZPROM MARKETING AND TRADING LTD,300000250807105 
Portsmouth City Council,PCC,Housing Revenue Account,Supervision and Management,"Housing, Neighbourhood and Building Services",Premises-Related Expenditure,Energy costs,14-Oct-22,6673552,493.02,LIMITED COMPANY,GAZPROM MARKETING AND TRADING LTD,300000250807105 
Portsmouth City Council,PCC,Housing Revenue Account,Special Services,"Housing, Neighbourhood and Building Services",Premises-Related Expenditure,Energy costs,14-Oct-22,6673552,6.22,LIMITED COMPANY,GAZPROM MARKETING AND TRADING LTD,300000250807105 
Portsmouth City Council,PCC,Housing Revenue Account,Special Services,"Housing, Neighbourhood and Building Services",Premises-Related Expenditure,Energy costs,14-Oct-22,6673552,242.02,LIMITED COMPANY,GAZPROM MARKETING AND TRADING LTD,300000250807105 
Portsmouth City Council,PCC,Children's and Education Services,Secondary Schools,Children's Services and Education,Premises-Related Expenditure,Energy costs,14-Oct-22,6673552,431.34,LIMITED COMPANY,GAZPROM MARKETING AND TRADING LTD,300000250807105 
Portsmouth City Council,PCC,Adult Social Care,Social Support - Support for Carer,Adult Care,Third Party Payments,Other establishments,13-Oct-22,6673454,133.44,SUPPLIER,ADMIRAL CARE LTD,300000020477405 
Portsmouth City Council,PCC,Housing Revenue Account,Supervision and Management,"Housing, Neighbourhood and Building Services",Premises-Related Expenditure,Energy costs,14-Oct-22,6673552,"3,334.88",LIMITED COMPANY,GAZPROM MARKETING AND TRADING LTD,300000250807105 
Portsmouth City Council,PCC,Children's and Education Services,Children Looked After,Children's Services and Education,Premises-Related Expenditure,Energy costs,14-Oct-22,6673552,814.83,LIMITED COMPANY,GAZPROM MARKETING AND TRADING LTD,300000250807105 
Portsmouth City Council,PCC,Children's and Education Services,Primary Schools,Children's Services and Education,Premises-Related Expenditure,Energy costs,17-Oct-22,6673675,"16,393.47",LIMITED COMPANY,GAZPROM MARKETING AND TRADING LTD,300000250807105 
Portsmouth City Council,PCC,Environmental and Regulatory Services,"Cemetery, Cremation and Mortuary Services","Culture, Leisure & Regulatory Services",Premises-Related Expenditure,Energy costs,14-Oct-22,6673552,143.32,LIMITED COMPANY,GAZPROM MARKETING AND TRADING LTD,300000250807105 
Portsmouth City Council,PCC,Costs below Net Cost of Services,Trading,Regeneration,Premises-Related Expenditure,Energy costs,14-Oct-22,6673552,506.05,LIMITED COMPANY,GAZPROM MARKETING AND TRADING LTD,300000250807105 
Portsmouth City Council,PCC,Support Service / Transparency Costs Unallocated,AMS,"Housing, Neighbourhood and Building Services",Premises-Related Expenditure,Energy costs,14-Oct-22,6673552,46.31,LIMITED COMPANY,GAZPROM MARKETING AND TRADING LTD,300000250807105 
Portsmouth City Council,PCC,Support Service / Transparency Costs Unallocated,AMS,"Housing, Neighbourhood and Building Services",Premises-Related Expenditure,Energy costs,14-Oct-22,6673552,65.38,LIMITED COMPANY,GAZPROM MARKETING AND TRADING LTD,300000250807105 
Portsmouth City Council,PCC,Housing Revenue Account,Special Services,"Housing, Neighbourhood and Building Services",Premises-Related Expenditure,Energy costs,14-Oct-22,6673552,"1,134.24",LIMITED COMPANY,GAZPROM MARKETING AND TRADING LTD,300000250807105 
Portsmouth City Council,PCC,Housing Revenue Account,Special Services,"Housing, Neighbourhood and Building Services",Premises-Related Expenditure,Energy costs,14-Oct-22,6673552,203.29,LIMITED COMPANY,GAZPROM MARKETING AND TRADING LTD,300000250807105 
Portsmouth City Council,PCC,Children's and Education Services,Other Education and Community Budget,Regeneration,Premises-Related Expenditure,Energy costs,14-Oct-22,6673552,151.85,LIMITED COMPANY,GAZPROM MARKETING AND TRADING LTD,300000250807105 
Portsmouth City Council,PCC,Children's and Education Services,Other Education and Community Budget,Regeneration,Premises-Related Expenditure,Energy costs,14-Oct-22,6673552,-357.32,LIMITED COMPANY,GAZPROM MARKETING AND TRADING LTD,300000250807105 
Portsmouth City Council,PCC,Children's and Education Services,Other Education and Community Budget,Regeneration,Premises-Related Expenditure,Energy costs,14-Oct-22,6673552,-316.09,LIMITED COMPANY,GAZPROM MARKETING AND TRADING LTD,300000250807105 
Portsmouth City Council,PCC,Adult Social Care,Physical Support Older People (85+),Adult Care,Third Party Payments,Other establishments,26-Oct-22,6675308,46.56,SUPPLIER,ALTOGETHER CARE LLP,300000120931464 
Portsmouth City Council,PCC,Adult Social Care,Physical Support Adults (18 - 64),Adult Care,Third Party Payments,Other establishments,26-Oct-22,6675308,60.08,SUPPLIER,ALTOGETHER CARE LLP,300000120931464 
Portsmouth City Council,PCC,Adult Social Care,Social Care Activities,Adult Care,Third Party Payments,Other establishments,26-Oct-22,6675308,79.98,SUPPLIER,ALTOGETHER CARE LLP,300000120931464 
Portsmouth City Council,PCC,Adult Social Care,Social Care Activities,Adult Care,Third Party Payments,Other establishments,26-Oct-22,6675308,151.32,SUPPLIER,ALTOGETHER CARE LLP,300000120931464 
Portsmouth City Council,PCC,Adult Social Care,Physical Support Older People (85+),Adult Care,Third Party Payments,Other establishments,26-Oct-22,6675308,197.88,SUPPLIER,ALTOGETHER CARE LLP,300000120931464 
Portsmouth City Council,PCC,Adult Social Care,Social Care Activities,Adult Care,Third Party Payments,Other establishments,26-Oct-22,6675308,240.32,SUPPLIER,ALTOGETHER CARE LLP,300000120931464 
Portsmouth City Council,PCC,Children's and Education Services,Children Looked After,Children's Services and Education,Supplies and Services,Services,11-Oct-22,6672758,"1,661.20",SUPPLIER,AA GLOBAL LANGUAGE SERVICES LTD,300000020483226 
Portsmouth City Council,PCC,Children's and Education Services,Children Looked After,Children's Services and Education,Supplies and Services,Services,11-Oct-22,6672758,"-4,420.30",SUPPLIER,AA GLOBAL LANGUAGE SERVICES LTD,300000020483226 
Portsmouth City Council,PCC,Children's and Education Services,Children Looked After,Children's Services and Education,Supplies and Services,Services,11-Oct-22,6672758,"5,000.00",SUPPLIER,AA GLOBAL LANGUAGE SERVICES LTD,300000020483226 
Portsmouth City Council,PCC,Children's and Education Services,Safeguarding Children and Young Peoples Services,Children's Services and Education,Third Party Payments,Other establishments,07-Oct-22,6671686,-872.6,SUPPLIER,LILIAN DAVIS GROUP LTD,300000020467263 
Portsmouth City Council,PCC,Children's and Education Services,Safeguarding Children and Young Peoples Services,Children's Services and Education,Third Party Payments,Other establishments,07-Oct-22,6671686,-10,SUPPLIER,LILIAN DAVIS GROUP LTD,300000020467263 
Portsmouth City Council,PCC,Children's and Education Services,Safeguarding Children and Young Peoples Services,Children's Services and Education,Third Party Payments,Other establishments,07-Oct-22,6671686,-10,SUPPLIER,LILIAN DAVIS GROUP LTD,300000020467263 
Portsmouth City Council,PCC,Children's and Education Services,Safeguarding Children and Young Peoples Services,Children's Services and Education,Third Party Payments,Other establishments,07-Oct-22,6671686,-10,SUPPLIER,LILIAN DAVIS GROUP LTD,300000020467263 
Portsmouth City Council,PCC,Children's and Education Services,Safeguarding Children and Young Peoples Services,Children's Services and Education,Third Party Payments,Other establishments,07-Oct-22,6671686,-8.57,SUPPLIER,LILIAN DAVIS GROUP LTD,300000020467263 
Portsmouth City Council,PCC,Children's and Education Services,Safeguarding Children and Young Peoples Services,Children's Services and Education,Third Party Payments,Other establishments,07-Oct-22,6671686,-4.29,SUPPLIER,LILIAN DAVIS GROUP LTD,300000020467263 
Portsmouth City Council,PCC,Children's and Education Services,Safeguarding Children and Young Peoples Services,Children's Services and Education,Third Party Payments,Other establishments,07-Oct-22,6671686,0.01,SUPPLIER,LILIAN DAVIS GROUP LTD,300000020467263 
Portsmouth City Council,PCC,Children's and Education Services,Safeguarding Children and Young Peoples Services,Children's Services and Education,Third Party Payments,Other establishments,07-Oct-22,6671686,32.14,SUPPLIER,LILIAN DAVIS GROUP LTD,300000020467263 
Portsmouth City Council,PCC,Children's and Education Services,Safeguarding Children and Young Peoples Services,Children's Services and Education,Third Party Payments,Other establishments,07-Oct-22,6671686,64.29,SUPPLIER,LILIAN DAVIS GROUP LTD,300000020467263 
Portsmouth City Council,PCC,Children's and Education Services,Safeguarding Children and Young Peoples Services,Children's Services and Education,Third Party Payments,Other establishments,07-Oct-22,6671686,75,SUPPLIER,LILIAN DAVIS GROUP LTD,300000020467263 
Portsmouth City Council,PCC,Children's and Education Services,Safeguarding Children and Young Peoples Services,Children's Services and Education,Third Party Payments,Other establishments,07-Oct-22,6671686,75,SUPPLIER,LILIAN DAVIS GROUP LTD,300000020467263 
Portsmouth City Council,PCC,Children's and Education Services,Safeguarding Children and Young Peoples Services,Children's Services and Education,Third Party Payments,Other establishments,07-Oct-22,6671686,75,SUPPLIER,LILIAN DAVIS GROUP LTD,300000020467263 
Portsmouth City Council,PCC,Children's and Education Services,Safeguarding Children and Young Peoples Services,Children's Services and Education,Third Party Payments,Other establishments,07-Oct-22,6671686,188.57,SUPPLIER,LILIAN DAVIS GROUP LTD,300000020467263 
Portsmouth City Council,PCC,Children's and Education Services,Safeguarding Children and Young Peoples Services,Children's Services and Education,Third Party Payments,Other establishments,07-Oct-22,6671686,377.14,SUPPLIER,LILIAN DAVIS GROUP LTD,300000020467263 
Portsmouth City Council,PCC,Children's and Education Services,Safeguarding Children and Young Peoples Services,Children's Services and Education,Third Party Payments,Other establishments,07-Oct-22,6671686,440,SUPPLIER,LILIAN DAVIS GROUP LTD,300000020467263 
Portsmouth City Council,PCC,Children's and Education Services,Safeguarding Children and Young Peoples Services,Children's Services and Education,Third Party Payments,Other establishments,07-Oct-22,6671686,440,SUPPLIER,LILIAN DAVIS GROUP LTD,300000020467263 
Portsmouth City Council,PCC,Children's and Education Services,Safeguarding Children and Young Peoples Services,Children's Services and Education,Third Party Payments,Other establishments,07-Oct-22,6671686,440,SUPPLIER,LILIAN DAVIS GROUP LTD,300000020467263 
Portsmouth City Council,PCC,Children's and Education Services,Children Looked After,Children's Services and Education,Third Party Payments,Other establishments,12-Oct-22,6673282,0.06,SUPPLIER,FOSTERING SOLUTIONS,300000009793967 
Portsmouth City Council,PCC,Children's and Education Services,Children Looked After,Children's Services and Education,Third Party Payments,Other establishments,12-Oct-22,6673282,322.02,SUPPLIER,FOSTERING SOLUTIONS,300000009793967 
Portsmouth City Council,PCC,Children's and Education Services,Children Looked After,Children's Services and Education,Third Party Payments,Other establishments,12-Oct-22,6673282,644.03,SUPPLIER,FOSTERING SOLUTIONS,300000009793967 
Portsmouth City Council,PCC,Children's and Education Services,Children Looked After,Children's Services and Education,Third Party Payments,Other establishments,12-Oct-22,6673282,751.37,SUPPLIER,FOSTERING SOLUTIONS,300000009793967 
Portsmouth City Council,PCC,Children's and Education Services,Children Looked After,Children's Services and Education,Third Party Payments,Other establishments,12-Oct-22,6673282,751.37,SUPPLIER,FOSTERING SOLUTIONS,300000009793967 
Portsmouth City Council,PCC,Children's and Education Services,Children Looked After,Children's Services and Education,Third Party Payments,Other establishments,12-Oct-22,6673282,751.37,SUPPLIER,FOSTERING SOLUTIONS,300000009793967 
Portsmouth City Council,PCC,Children's and Education Services,Children Looked After,Children's Services and Education,Third Party Payments,Other establishments,12-Oct-22,6673282,364.29,SUPPLIER,FOSTERING SOLUTIONS,300000009793967 
Portsmouth City Council,PCC,Children's and Education Services,Family Support Services,Children's Services and Education,Third Party Payments,Other establishments,13-Oct-22,6673489,-52.04,SUPPLIER,TOPS DAY NURSERY LIMITED,300000020463687 
Portsmouth City Council,PCC,Children's and Education Services,Family Support Services,Children's Services and Education,Third Party Payments,Other establishments,13-Oct-22,6673489,18.98,SUPPLIER,TOPS DAY NURSERY LIMITED,300000020463687 
Portsmouth City Council,PCC,Children's and Education Services,Family Support Services,Children's Services and Education,Third Party Payments,Other establishments,13-Oct-22,6673489,113.9,SUPPLIER,TOPS DAY NURSERY LIMITED,300000020463687 
Portsmouth City Council,PCC,Children's and Education Services,Family Support Services,Children's Services and Education,Third Party Payments,Other establishments,13-Oct-22,6673489,132.88,SUPPLIER,TOPS DAY NURSERY LIMITED,300000020463687 
Portsmouth City Council,PCC,Children's and Education Services,Family Support Services,Children's Services and Education,Third Party Payments,Other establishments,13-Oct-22,6673489,132.88,SUPPLIER,TOPS DAY NURSERY LIMITED,300000020463687 
Portsmouth City Council,PCC,Children's and Education Services,Family Support Services,Children's Services and Education,Third Party Payments,Other establishments,13-Oct-22,6673489,132.88,SUPPLIER,TOPS DAY NURSERY LIMITED,300000020463687 
Portsmouth City Council,PCC,Children's and Education Services,Family Support Services,Children's Services and Education,Third Party Payments,Other establishments,13-Oct-22,6673489,132.88,SUPPLIER,TOPS DAY NURSERY LIMITED,300000020463687 
Portsmouth City Council,PCC,Children's and Education Services,Children Looked After,Children's Services and Education,Third Party Payments,Other establishments,13-Oct-22,6673496,596.86,SUPPLIER,FAIR WAYS COMMUNITY BENEFIT SOCEITY T/A FAIRWAYS CARE (UK) LTD,300000020459125 
Portsmouth City Council,PCC,Children's and Education Services,Children Looked After,Children's Services and Education,Third Party Payments,Other establishments,13-Oct-22,6673496,"3,581.14",SUPPLIER,FAIR WAYS COMMUNITY BENEFIT SOCEITY T/A FAIRWAYS CARE (UK) LTD,300000020459125 
Portsmouth City Council,PCC,Children's and Education Services,Children Looked After,Children's Services and Education,Third Party Payments,Other establishments,13-Oct-22,6673496,"4,178.00",SUPPLIER,FAIR WAYS COMMUNITY BENEFIT SOCEITY T/A FAIRWAYS CARE (UK) LTD,300000020459125 
Portsmouth City Council,PCC,Children's and Education Services,Children Looked After,Children's Services and Education,Third Party Payments,Other establishments,17-Oct-22,6673614,0.01,SUPPLIER,FAIR WAYS COMMUNITY BENEFIT SOCEITY T/A FAIRWAYS CARE (UK) LTD,300000020459125 
Portsmouth City Council,PCC,Children's and Education Services,Children Looked After,Children's Services and Education,Third Party Payments,Other establishments,17-Oct-22,6673614,"1,193.71",SUPPLIER,FAIR WAYS COMMUNITY BENEFIT SOCEITY T/A FAIRWAYS CARE (UK) LTD,300000020459125 
Portsmouth City Council,PCC,Children's and Education Services,Children Looked After,Children's Services and Education,Third Party Payments,Other establishments,17-Oct-22,6673614,"1,193.71",SUPPLIER,FAIR WAYS COMMUNITY BENEFIT SOCEITY T/A FAIRWAYS CARE (UK) LTD,300000020459125 
Portsmouth City Council,PCC,Children's and Education Services,Children Looked After,Children's Services and Education,Third Party Payments,Other establishments,17-Oct-22,6673614,-138.4,SUPPLIER,FAIR WAYS COMMUNITY BENEFIT SOCEITY T/A FAIRWAYS CARE (UK) LTD,300000020459125 
Portsmouth City Council,PCC,Highways and Transport Services,"Environment, Safety and Routine Maintenance",Regeneration,Premises-Related Expenditure,Energy costs,14-Oct-22,6673517,-181.43,PUBLIC LIMITED COMPANY,SCOTTISH AND SOUTHERN ENERGY PLC,300000020481543 
Portsmouth City Council,PCC,Highways and Transport Services,"Environment, Safety and Routine Maintenance",Regeneration,Premises-Related Expenditure,Energy costs,14-Oct-22,6673517,-189.94,PUBLIC LIMITED COMPANY,SCOTTISH AND SOUTHERN ENERGY PLC,300000020481543 
Portsmouth City Council,PCC,Highways and Transport Services,"Environment, Safety and Routine Maintenance",Regeneration,Premises-Related Expenditure,Energy costs,14-Oct-22,6673517,-231.48,PUBLIC LIMITED COMPANY,SCOTTISH AND SOUTHERN ENERGY PLC,300000020481543 
Portsmouth City Council,PCC,Highways and Transport Services,"Environment, Safety and Routine Maintenance",Regeneration,Premises-Related Expenditure,Energy costs,14-Oct-22,6673517,-190.09,PUBLIC LIMITED COMPANY,SCOTTISH AND SOUTHERN ENERGY PLC,300000020481543 
Portsmouth City Council,PCC,Highways and Transport Services,"Environment, Safety and Routine Maintenance",Regeneration,Premises-Related Expenditure,Energy costs,14-Oct-22,6673517,-178.24,PUBLIC LIMITED COMPANY,SCOTTISH AND SOUTHERN ENERGY PLC,300000020481543 
Portsmouth City Council,PCC,Highways and Transport Services,"Environment, Safety and Routine Maintenance",Regeneration,Premises-Related Expenditure,Energy costs,14-Oct-22,6673517,-187.63,PUBLIC LIMITED COMPANY,SCOTTISH AND SOUTHERN ENERGY PLC,300000020481543 
Portsmouth City Council,PCC,Highways and Transport Services,"Environment, Safety and Routine Maintenance",Regeneration,Premises-Related Expenditure,Energy costs,14-Oct-22,6673517,31.54,PUBLIC LIMITED COMPANY,SCOTTISH AND SOUTHERN ENERGY PLC,300000020481543 
Portsmouth City Council,PCC,Highways and Transport Services,"Environment, Safety and Routine Maintenance",Regeneration,Premises-Related Expenditure,Energy costs,14-Oct-22,6673517,37.11,PUBLIC LIMITED COMPANY,SCOTTISH AND SOUTHERN ENERGY PLC,300000020481543 
Portsmouth City Council,PCC,Highways and Transport Services,"Environment, Safety and Routine Maintenance",Regeneration,Premises-Related Expenditure,Energy costs,14-Oct-22,6673517,38.22,PUBLIC LIMITED COMPANY,SCOTTISH AND SOUTHERN ENERGY PLC,300000020481543 
Portsmouth City Council,PCC,Highways and Transport Services,"Environment, Safety and Routine Maintenance",Regeneration,Premises-Related Expenditure,Energy costs,14-Oct-22,6673517,38.37,PUBLIC LIMITED COMPANY,SCOTTISH AND SOUTHERN ENERGY PLC,300000020481543 
Portsmouth City Council,PCC,Highways and Transport Services,"Environment, Safety and Routine Maintenance",Regeneration,Premises-Related Expenditure,Energy costs,14-Oct-22,6673517,38.08,PUBLIC LIMITED COMPANY,SCOTTISH AND SOUTHERN ENERGY PLC,300000020481543 
Portsmouth City Council,PCC,Highways and Transport Services,"Environment, Safety and Routine Maintenance",Regeneration,Premises-Related Expenditure,Energy costs,14-Oct-22,6673517,38.08,PUBLIC LIMITED COMPANY,SCOTTISH AND SOUTHERN ENERGY PLC,300000020481543 
Portsmouth City Council,PCC,Highways and Transport Services,"Environment, Safety and Routine Maintenance",Regeneration,Premises-Related Expenditure,Energy costs,14-Oct-22,6673517,60.53,PUBLIC LIMITED COMPANY,SCOTTISH AND SOUTHERN ENERGY PLC,300000020481543 
Portsmouth City Council,PCC,Highways and Transport Services,"Environment, Safety and Routine Maintenance",Regeneration,Premises-Related Expenditure,Energy costs,14-Oct-22,6673517,90.72,PUBLIC LIMITED COMPANY,SCOTTISH AND SOUTHERN ENERGY PLC,300000020481543 
Portsmouth City Council,PCC,Highways and Transport Services,"Environment, Safety and Routine Maintenance",Regeneration,Premises-Related Expenditure,Energy costs,14-Oct-22,6673517,249.94,PUBLIC LIMITED COMPANY,SCOTTISH AND SOUTHERN ENERGY PLC,300000020481543 
Portsmouth City Council,PCC,Highways and Transport Services,"Environment, Safety and Routine Maintenance",Regeneration,Premises-Related Expenditure,Energy costs,14-Oct-22,6673517,-240.71,PUBLIC LIMITED COMPANY,SCOTTISH AND SOUTHERN ENERGY PLC,300000020481543 
Portsmouth City Council,PCC,Highways and Transport Services,"Environment, Safety and Routine Maintenance",Regeneration,Premises-Related Expenditure,Energy costs,14-Oct-22,6673517,-73.56,PUBLIC LIMITED COMPANY,SCOTTISH AND SOUTHERN ENERGY PLC,300000020481543 
Portsmouth City Council,PCC,Highways and Transport Services,"Environment, Safety and Routine Maintenance",Regeneration,Premises-Related Expenditure,Energy costs,14-Oct-22,6673517,-71.39,PUBLIC LIMITED COMPANY,SCOTTISH AND SOUTHERN ENERGY PLC,300000020481543 
Portsmouth City Council,PCC,Highways and Transport Services,"Environment, Safety and Routine Maintenance",Regeneration,Premises-Related Expenditure,Energy costs,14-Oct-22,6673517,-167.73,PUBLIC LIMITED COMPANY,SCOTTISH AND SOUTHERN ENERGY PLC,300000020481543 
Portsmouth City Council,PCC,Highways and Transport Services,"Environment, Safety and Routine Maintenance",Regeneration,Premises-Related Expenditure,Energy costs,14-Oct-22,6673517,-164.42,PUBLIC LIMITED COMPANY,SCOTTISH AND SOUTHERN ENERGY PLC,300000020481543 
Portsmouth City Council,PCC,Highways and Transport Services,"Environment, Safety and Routine Maintenance",Regeneration,Premises-Related Expenditure,Energy costs,14-Oct-22,6673517,-72.25,PUBLIC LIMITED COMPANY,SCOTTISH AND SOUTHERN ENERGY PLC,300000020481543 
Portsmouth City Council,PCC,Highways and Transport Services,"Environment, Safety and Routine Maintenance",Regeneration,Premises-Related Expenditure,Energy costs,14-Oct-22,6673517,-65.63,PUBLIC LIMITED COMPANY,SCOTTISH AND SOUTHERN ENERGY PLC,300000020481543 
Portsmouth City Council,PCC,Highways and Transport Services,"Environment, Safety and Routine Maintenance",Regeneration,Premises-Related Expenditure,Energy costs,14-Oct-22,6673517,-253.64,PUBLIC LIMITED COMPANY,SCOTTISH AND SOUTHERN ENERGY PLC,300000020481543 
Portsmouth City Council,PCC,Highways and Transport Services,"Environment, Safety and Routine Maintenance",Regeneration,Premises-Related Expenditure,Energy costs,14-Oct-22,6673517,74.59,PUBLIC LIMITED COMPANY,SCOTTISH AND SOUTHERN ENERGY PLC,300000020481543 
Portsmouth City Council,PCC,Highways and Transport Services,"Environment, Safety and Routine Maintenance",Regeneration,Premises-Related Expenditure,Energy costs,14-Oct-22,6673517,43.9,PUBLIC LIMITED COMPANY,SCOTTISH AND SOUTHERN ENERGY PLC,300000020481543 
Portsmouth City Council,PCC,Highways and Transport Services,"Environment, Safety and Routine Maintenance",Regeneration,Premises-Related Expenditure,Energy costs,14-Oct-22,6673517,49.02,PUBLIC LIMITED COMPANY,SCOTTISH AND SOUTHERN ENERGY PLC,300000020481543 
Portsmouth City Council,PCC,Highways and Transport Services,"Environment, Safety and Routine Maintenance",Regeneration,Premises-Related Expenditure,Energy costs,14-Oct-22,6673517,51.49,PUBLIC LIMITED COMPANY,SCOTTISH AND SOUTHERN ENERGY PLC,300000020481543 
Portsmouth City Council,PCC,Highways and Transport Services,"Environment, Safety and Routine Maintenance",Regeneration,Premises-Related Expenditure,Energy costs,14-Oct-22,6673517,51.78,PUBLIC LIMITED COMPANY,SCOTTISH AND SOUTHERN ENERGY PLC,300000020481543 
Portsmouth City Council,PCC,Highways and Transport Services,"Environment, Safety and Routine Maintenance",Regeneration,Premises-Related Expenditure,Energy costs,14-Oct-22,6673517,51.49,PUBLIC LIMITED COMPANY,SCOTTISH AND SOUTHERN ENERGY PLC,300000020481543 
Portsmouth City Council,PCC,Highways and Transport Services,"Environment, Safety and Routine Maintenance",Regeneration,Premises-Related Expenditure,Energy costs,14-Oct-22,6673517,49.76,PUBLIC LIMITED COMPANY,SCOTTISH AND SOUTHERN ENERGY PLC,300000020481543 
Portsmouth City Council,PCC,Highways and Transport Services,"Environment, Safety and Routine Maintenance",Regeneration,Premises-Related Expenditure,Energy costs,14-Oct-22,6673517,75.29,PUBLIC LIMITED COMPANY,SCOTTISH AND SOUTHERN ENERGY PLC,300000020481543 
Portsmouth City Council,PCC,Highways and Transport Services,"Environment, Safety and Routine Maintenance",Regeneration,Premises-Related Expenditure,Energy costs,14-Oct-22,6673517,50.63,PUBLIC LIMITED COMPANY,SCOTTISH AND SOUTHERN ENERGY PLC,300000020481543 
Portsmouth City Council,PCC,Highways and Transport Services,"Environment, Safety and Routine Maintenance",Regeneration,Premises-Related Expenditure,Energy costs,14-Oct-22,6673517,-294.02,PUBLIC LIMITED COMPANY,SCOTTISH AND SOUTHERN ENERGY PLC,300000020481543 
Portsmouth City Council,PCC,Highways and Transport Services,"Environment, Safety and Routine Maintenance",Regeneration,Premises-Related Expenditure,Energy costs,14-Oct-22,6673517,-191.1,PUBLIC LIMITED COMPANY,SCOTTISH AND SOUTHERN ENERGY PLC,300000020481543 
Portsmouth City Council,PCC,Highways and Transport Services,"Environment, Safety and Routine Maintenance",Regeneration,Premises-Related Expenditure,Energy costs,14-Oct-22,6673517,-91.73,PUBLIC LIMITED COMPANY,SCOTTISH AND SOUTHERN ENERGY PLC,300000020481543 
Portsmouth City Council,PCC,Highways and Transport Services,"Environment, Safety and Routine Maintenance",Regeneration,Premises-Related Expenditure,Energy costs,14-Oct-22,6673517,34.19,PUBLIC LIMITED COMPANY,SCOTTISH AND SOUTHERN ENERGY PLC,300000020481543 
Portsmouth City Council,PCC,Highways and Transport Services,"Environment, Safety and Routine Maintenance",Regeneration,Premises-Related Expenditure,Energy costs,14-Oct-22,6673517,34.19,PUBLIC LIMITED COMPANY,SCOTTISH AND SOUTHERN ENERGY PLC,300000020481543 
Portsmouth City Council,PCC,Highways and Transport Services,"Environment, Safety and Routine Maintenance",Regeneration,Premises-Related Expenditure,Energy costs,14-Oct-22,6673517,54.47,PUBLIC LIMITED COMPANY,SCOTTISH AND SOUTHERN ENERGY PLC,300000020481543 
Portsmouth City Council,PCC,Highways and Transport Services,"Environment, Safety and Routine Maintenance",Regeneration,Premises-Related Expenditure,Energy costs,14-Oct-22,6673517,48.61,PUBLIC LIMITED COMPANY,SCOTTISH AND SOUTHERN ENERGY PLC,300000020481543 
Portsmouth City Council,PCC,Environmental and Regulatory Services,Regulatory Services,"Culture, Leisure & Regulatory Services",Premises-Related Expenditure,Energy costs,14-Oct-22,6673517,73.89,PUBLIC LIMITED COMPANY,SCOTTISH AND SOUTHERN ENERGY PLC,300000020481543 
Portsmouth City Council,PCC,Housing Revenue Account,Special Services,"Housing, Neighbourhood and Building Services",Premises-Related Expenditure,Energy costs,14-Oct-22,6673517,280.68,PUBLIC LIMITED COMPANY,SCOTTISH AND SOUTHERN ENERGY PLC,300000020481543 
Portsmouth City Council,PCC,Housing Revenue Account,Special Services,"Housing, Neighbourhood and Building Services",Premises-Related Expenditure,Energy costs,14-Oct-22,6673517,128.18,PUBLIC LIMITED COMPANY,SCOTTISH AND SOUTHERN ENERGY PLC,300000020481543 
Portsmouth City Council,PCC,Cultural and Related Services,Culture and Heritage,"Culture, Leisure & Regulatory Services",Premises-Related Expenditure,Energy costs,14-Oct-22,6673517,"3,147.14",PUBLIC LIMITED COMPANY,SCOTTISH AND SOUTHERN ENERGY PLC,300000020481543 
Portsmouth City Council,PCC,Other,Suspense and Capital Schemes,Portsmouth International Port,Premises-Related Expenditure,Energy costs,14-Oct-22,6673517,205.95,PUBLIC LIMITED COMPANY,SCOTTISH AND SOUTHERN ENERGY PLC,300000020481543 
Portsmouth City Council,PCC,Housing Revenue Account,Special Services,"Housing, Neighbourhood and Building Services",Premises-Related Expenditure,Energy costs,14-Oct-22,6673517,"-2,762.54",PUBLIC LIMITED COMPANY,SCOTTISH AND SOUTHERN ENERGY PLC,300000020481543 
Portsmouth City Council,PCC,Housing Revenue Account,Special Services,"Housing, Neighbourhood and Building Services",Premises-Related Expenditure,Energy costs,14-Oct-22,6673517,"2,007.55",PUBLIC LIMITED COMPANY,SCOTTISH AND SOUTHERN ENERGY PLC,300000020481543 
Portsmouth City Council,PCC,Environmental and Regulatory Services,Regulatory Services,"Housing, Neighbourhood and Building Services",Premises-Related Expenditure,Energy costs,14-Oct-22,6673517,490.1,PUBLIC LIMITED COMPANY,SCOTTISH AND SOUTHERN ENERGY PLC,300000020481543 
Portsmouth City Council,PCC,Housing Revenue Account,Special Services,"Housing, Neighbourhood and Building Services",Premises-Related Expenditure,Energy costs,14-Oct-22,6673517,777.49,PUBLIC LIMITED COMPANY,SCOTTISH AND SOUTHERN ENERGY PLC,300000020481543 
Portsmouth City Council,PCC,Environmental and Regulatory Services,Regulatory Services,"Culture, Leisure & Regulatory Services",Premises-Related Expenditure,Energy costs,14-Oct-22,6673517,774.12,PUBLIC LIMITED COMPANY,SCOTTISH AND SOUTHERN ENERGY PLC,300000020481543 
Portsmouth City Council,PCC,Housing Revenue Account,Special Services,"Housing, Neighbourhood and Building Services",Premises-Related Expenditure,Energy costs,14-Oct-22,6673517,690.67,PUBLIC LIMITED COMPANY,SCOTTISH AND SOUTHERN ENERGY PLC,300000020481543 
Portsmouth City Council,PCC,Costs below Net Cost of Services,Trading,Regeneration,Premises-Related Expenditure,Energy costs,14-Oct-22,6673517,34.19,PUBLIC LIMITED COMPANY,SCOTTISH AND SOUTHERN ENERGY PLC,300000020481543 
Portsmouth City Council,PCC,Environmental and Regulatory Services,Regulatory Services,"Culture, Leisure & Regulatory Services",Premises-Related Expenditure,Energy costs,14-Oct-22,6673517,908.77,PUBLIC LIMITED COMPANY,SCOTTISH AND SOUTHERN ENERGY PLC,300000020481543 
Portsmouth City Council,PCC,Housing Services,Homelessness,"Housing, Neighbourhood and Building Services",Premises-Related Expenditure,Energy costs,14-Oct-22,6673517,99.51,PUBLIC LIMITED COMPANY,SCOTTISH AND SOUTHERN ENERGY PLC,300000020481543 
Portsmouth City Council,PCC,Cultural and Related Services,Open Spaces,"Culture, Leisure & Regulatory Services",Premises-Related Expenditure,Energy costs,14-Oct-22,6673517,29.11,PUBLIC LIMITED COMPANY,SCOTTISH AND SOUTHERN ENERGY PLC,300000020481543 
Portsmouth City Council,PCC,Costs below Net Cost of Services,Trading,Regeneration,Premises-Related Expenditure,Energy costs,14-Oct-22,6673517,16.2,PUBLIC LIMITED COMPANY,SCOTTISH AND SOUTHERN ENERGY PLC,300000020481543 
Portsmouth City Council,PCC,Children's and Education Services,Primary Schools,Children's Services and Education,Premises-Related Expenditure,Energy costs,14-Oct-22,6673517,511.82,PUBLIC LIMITED COMPANY,SCOTTISH AND SOUTHERN ENERGY PLC,300000020481543 
Portsmouth City Council,PCC,Costs below Net Cost of Services,Trading,Regeneration,Premises-Related Expenditure,Energy costs,14-Oct-22,6673517,49.48,PUBLIC LIMITED COMPANY,SCOTTISH AND SOUTHERN ENERGY PLC,300000020481543 
Portsmouth City Council,PCC,Highways and Transport Services,Public Transport,Regeneration,Premises-Related Expenditure,"Repairs, alterations and maintenance of buildings",14-Oct-22,6673517,101.88,PUBLIC LIMITED COMPANY,SCOTTISH AND SOUTHERN ENERGY PLC,300000020481543 
Portsmouth City Council,PCC,Environmental and Regulatory Services,"Cemetery, Cremation and Mortuary Services","Culture, Leisure & Regulatory Services",Premises-Related Expenditure,Energy costs,14-Oct-22,6673517,53.64,PUBLIC LIMITED COMPANY,SCOTTISH AND SOUTHERN ENERGY PLC,300000020481543 
Portsmouth City Council,PCC,Planning Services,Business support,Regeneration,Premises-Related Expenditure,Energy costs,14-Oct-22,6673517,77.78,PUBLIC LIMITED COMPANY,SCOTTISH AND SOUTHERN ENERGY PLC,300000020481543 
Portsmouth City Council,PCC,Planning Services,Business support,Regeneration,Premises-Related Expenditure,Energy costs,14-Oct-22,6673517,787.75,PUBLIC LIMITED COMPANY,SCOTTISH AND SOUTHERN ENERGY PLC,300000020481543 
Portsmouth City Council,PCC,Planning Services,Economic Development,Regeneration,Premises-Related Expenditure,Energy costs,14-Oct-22,6673517,75.68,PUBLIC LIMITED COMPANY,SCOTTISH AND SOUTHERN ENERGY PLC,300000020481543 
Portsmouth City Council,PCC,Cultural and Related Services,Library Service,"Culture, Leisure & Regulatory Services",Premises-Related Expenditure,Energy costs,14-Oct-22,6673517,52.2,PUBLIC LIMITED COMPANY,SCOTTISH AND SOUTHERN ENERGY PLC,300000020481543 
Portsmouth City Council,PCC,Planning Services,Economic Development,Regeneration,Premises-Related Expenditure,Energy costs,14-Oct-22,6673517,75.83,PUBLIC LIMITED COMPANY,SCOTTISH AND SOUTHERN ENERGY PLC,300000020481543 
Portsmouth City Council,PCC,Housing Revenue Account,Special Services,"Housing, Neighbourhood and Building Services",Premises-Related Expenditure,Energy costs,14-Oct-22,6673517,724.04,PUBLIC LIMITED COMPANY,SCOTTISH AND SOUTHERN ENERGY PLC,300000020481543 
Portsmouth City Council,PCC,Costs below Net Cost of Services,Trading,Regeneration,Premises-Related Expenditure,Energy costs,14-Oct-22,6673517,73.19,PUBLIC LIMITED COMPANY,SCOTTISH AND SOUTHERN ENERGY PLC,300000020481543 
Portsmouth City Council,PCC,Costs below Net Cost of Services,Trading,Regeneration,Premises-Related Expenditure,Energy costs,14-Oct-22,6673517,193.53,PUBLIC LIMITED COMPANY,SCOTTISH AND SOUTHERN ENERGY PLC,300000020481543 
Portsmouth City Council,PCC,Costs below Net Cost of Services,Trading,Regeneration,Premises-Related Expenditure,Energy costs,14-Oct-22,6673517,59.43,PUBLIC LIMITED COMPANY,SCOTTISH AND SOUTHERN ENERGY PLC,300000020481543 
Portsmouth City Council,PCC,Housing Revenue Account,Special Services,"Housing, Neighbourhood and Building Services",Premises-Related Expenditure,Energy costs,14-Oct-22,6673517,273.16,PUBLIC LIMITED COMPANY,SCOTTISH AND SOUTHERN ENERGY PLC,300000020481543 
Portsmouth City Council,PCC,Highways and Transport Services,Structural Maintenance,Regeneration,Premises-Related Expenditure,Energy costs,14-Oct-22,6673517,-37.21,PUBLIC LIMITED COMPANY,SCOTTISH AND SOUTHERN ENERGY PLC,300000020481543 
Portsmouth City Council,PCC,Highways and Transport Services,Structural Maintenance,Regeneration,Premises-Related Expenditure,Energy costs,14-Oct-22,6673517,34.19,PUBLIC LIMITED COMPANY,SCOTTISH AND SOUTHERN ENERGY PLC,300000020481543 
Portsmouth City Council,PCC,Highways and Transport Services,Structural Maintenance,Regeneration,Premises-Related Expenditure,Energy costs,14-Oct-22,6673517,-35.63,PUBLIC LIMITED COMPANY,SCOTTISH AND SOUTHERN ENERGY PLC,300000020481543 
Portsmouth City Council,PCC,Highways and Transport Services,Structural Maintenance,Regeneration,Premises-Related Expenditure,Energy costs,14-Oct-22,6673517,34.33,PUBLIC LIMITED COMPANY,SCOTTISH AND SOUTHERN ENERGY PLC,300000020481543 
Portsmouth City Council,PCC,Housing Revenue Account,Special Services,"Housing, Neighbourhood and Building Services",Premises-Related Expenditure,Energy costs,14-Oct-22,6673517,40.96,PUBLIC LIMITED COMPANY,SCOTTISH AND SOUTHERN ENERGY PLC,300000020481543 
Portsmouth City Council,PCC,Highways and Transport Services,Structural Maintenance,Regeneration,Premises-Related Expenditure,Energy costs,14-Oct-22,6673517,-35.77,PUBLIC LIMITED COMPANY,SCOTTISH AND SOUTHERN ENERGY PLC,300000020481543 
Portsmouth City Council,PCC,Highways and Transport Services,Structural Maintenance,Regeneration,Premises-Related Expenditure,Energy costs,14-Oct-22,6673517,38.66,PUBLIC LIMITED COMPANY,SCOTTISH AND SOUTHERN ENERGY PLC,300000020481543 
Portsmouth City Council,PCC,Highways and Transport Services,Structural Maintenance,Regeneration,Premises-Related Expenditure,Energy costs,14-Oct-22,6673517,-43.56,PUBLIC LIMITED COMPANY,SCOTTISH AND SOUTHERN ENERGY PLC,300000020481543 
Portsmouth City Council,PCC,Highways and Transport Services,Structural Maintenance,Regeneration,Premises-Related Expenditure,Energy costs,14-Oct-22,6673517,34.47,PUBLIC LIMITED COMPANY,SCOTTISH AND SOUTHERN ENERGY PLC,300000020481543 
Portsmouth City Council,PCC,Highways and Transport Services,Structural Maintenance,Regeneration,Premises-Related Expenditure,Energy costs,14-Oct-22,6673517,-35.63,PUBLIC LIMITED COMPANY,SCOTTISH AND SOUTHERN ENERGY PLC,300000020481543 
Portsmouth City Council,PCC,Highways and Transport Services,Structural Maintenance,Regeneration,Premises-Related Expenditure,Energy costs,14-Oct-22,6673517,84.95,PUBLIC LIMITED COMPANY,SCOTTISH AND SOUTHERN ENERGY PLC,300000020481543 
Portsmouth City Council,PCC,Planning Services,Business support,Regeneration,Premises-Related Expenditure,Energy costs,14-Oct-22,6673517,222.39,PUBLIC LIMITED COMPANY,SCOTTISH AND SOUTHERN ENERGY PLC,300000020481543 
Portsmouth City Council,PCC,Cultural and Related Services,Open Spaces,"Culture, Leisure & Regulatory Services",Premises-Related Expenditure,Energy costs,14-Oct-22,6673517,40.96,PUBLIC LIMITED COMPANY,SCOTTISH AND SOUTHERN ENERGY PLC,300000020481543 
Portsmouth City Council,PCC,Cultural and Related Services,Open Spaces,"Culture, Leisure & Regulatory Services",Premises-Related Expenditure,Energy costs,14-Oct-22,6673517,54.66,PUBLIC LIMITED COMPANY,SCOTTISH AND SOUTHERN ENERGY PLC,300000020481543 
Portsmouth City Council,PCC,Highways and Transport Services,Structural Maintenance,Regeneration,Premises-Related Expenditure,Energy costs,14-Oct-22,6673517,-35.05,PUBLIC LIMITED COMPANY,SCOTTISH AND SOUTHERN ENERGY PLC,300000020481543 
Portsmouth City Council,PCC,Highways and Transport Services,Structural Maintenance,Regeneration,Premises-Related Expenditure,Energy costs,14-Oct-22,6673517,34.47,PUBLIC LIMITED COMPANY,SCOTTISH AND SOUTHERN ENERGY PLC,300000020481543 
Portsmouth City Council,PCC,Highways and Transport Services,Structural Maintenance,Regeneration,Premises-Related Expenditure,Energy costs,14-Oct-22,6673517,-34.47,PUBLIC LIMITED COMPANY,SCOTTISH AND SOUTHERN ENERGY PLC,300000020481543 
Portsmouth City Council,PCC,Highways and Transport Services,Structural Maintenance,Regeneration,Premises-Related Expenditure,Energy costs,14-Oct-22,6673517,75.43,PUBLIC LIMITED COMPANY,SCOTTISH AND SOUTHERN ENERGY PLC,300000020481543 
Portsmouth City Council,PCC,Highways and Transport Services,Structural Maintenance,Regeneration,Premises-Related Expenditure,Energy costs,14-Oct-22,6673517,-63.89,PUBLIC LIMITED COMPANY,SCOTTISH AND SOUTHERN ENERGY PLC,300000020481543 
Portsmouth City Council,PCC,Highways and Transport Services,Structural Maintenance,Regeneration,Premises-Related Expenditure,Energy costs,14-Oct-22,6673517,39.38,PUBLIC LIMITED COMPANY,SCOTTISH AND SOUTHERN ENERGY PLC,300000020481543 
Portsmouth City Council,PCC,Cultural and Related Services,Open Spaces,"Culture, Leisure & Regulatory Services",Premises-Related Expenditure,Energy costs,14-Oct-22,6673517,108.89,PUBLIC LIMITED COMPANY,SCOTTISH AND SOUTHERN ENERGY PLC,300000020481543 
Portsmouth City Council,PCC,Housing Revenue Account,Special Services,"Housing, Neighbourhood and Building Services",Premises-Related Expenditure,Energy costs,14-Oct-22,6673517,369.78,PUBLIC LIMITED COMPANY,SCOTTISH AND SOUTHERN ENERGY PLC,300000020481543 
Portsmouth City Council,PCC,Environmental and Regulatory Services,Regulatory Services,"Culture, Leisure & Regulatory Services",Premises-Related Expenditure,Energy costs,14-Oct-22,6673517,187.35,PUBLIC LIMITED COMPANY,SCOTTISH AND SOUTHERN ENERGY PLC,300000020481543 
Portsmouth City Council,PCC,Housing Revenue Account,Special Services,"Housing, Neighbourhood and Building Services",Premises-Related Expenditure,Energy costs,14-Oct-22,6673517,101.6,PUBLIC LIMITED COMPANY,SCOTTISH AND SOUTHERN ENERGY PLC,300000020481543 
Portsmouth City Council,PCC,Costs below Net Cost of Services,Trading,Regeneration,Premises-Related Expenditure,Energy costs,14-Oct-22,6673517,75.91,PUBLIC LIMITED COMPANY,SCOTTISH AND SOUTHERN ENERGY PLC,300000020481543 
Portsmouth City Council,PCC,Housing Revenue Account,"Rents, Rates, Taxes and Other Charges","Housing, Neighbourhood and Building Services",Premises-Related Expenditure,Energy costs,14-Oct-22,6673517,35.34,PUBLIC LIMITED COMPANY,SCOTTISH AND SOUTHERN ENERGY PLC,300000020481543 
Portsmouth City Council,PCC,Housing Revenue Account,"Rents, Rates, Taxes and Other Charges","Housing, Neighbourhood and Building Services",Premises-Related Expenditure,Energy costs,14-Oct-22,6673517,72.84,PUBLIC LIMITED COMPANY,SCOTTISH AND SOUTHERN ENERGY PLC,300000020481543 
Portsmouth City Council,PCC,Housing Revenue Account,Special Services,"Housing, Neighbourhood and Building Services",Premises-Related Expenditure,Energy costs,14-Oct-22,6673517,20.8,PUBLIC LIMITED COMPANY,SCOTTISH AND SOUTHERN ENERGY PLC,300000020481543 
Portsmouth City Council,PCC,Housing Revenue Account,Special Services,"Housing, Neighbourhood and Building Services",Premises-Related Expenditure,Energy costs,14-Oct-22,6673517,25.65,PUBLIC LIMITED COMPANY,SCOTTISH AND SOUTHERN ENERGY PLC,300000020481543 
Portsmouth City Council,PCC,Housing Revenue Account,Special Services,"Housing, Neighbourhood and Building Services",Premises-Related Expenditure,Energy costs,14-Oct-22,6673517,26.55,PUBLIC LIMITED COMPANY,SCOTTISH AND SOUTHERN ENERGY PLC,300000020481543 
Portsmouth City Council,PCC,Housing Revenue Account,Special Services,"Housing, Neighbourhood and Building Services",Premises-Related Expenditure,Energy costs,14-Oct-22,6673517,9.42,PUBLIC LIMITED COMPANY,SCOTTISH AND SOUTHERN ENERGY PLC,300000020481543 
Portsmouth City Council,PCC,Housing Revenue Account,"Rents, Rates, Taxes and Other Charges","Housing, Neighbourhood and Building Services",Premises-Related Expenditure,Energy costs,14-Oct-22,6673517,-34.47,PUBLIC LIMITED COMPANY,SCOTTISH AND SOUTHERN ENERGY PLC,300000020481543 
Portsmouth City Council,PCC,Housing Revenue Account,"Rents, Rates, Taxes and Other Charges","Housing, Neighbourhood and Building Services",Premises-Related Expenditure,Energy costs,14-Oct-22,6673517,34.19,PUBLIC LIMITED COMPANY,SCOTTISH AND SOUTHERN ENERGY PLC,300000020481543 
Portsmouth City Council,PCC,Housing Revenue Account,"Rents, Rates, Taxes and Other Charges","Housing, Neighbourhood and Building Services",Premises-Related Expenditure,Energy costs,14-Oct-22,6673517,34.62,PUBLIC LIMITED COMPANY,SCOTTISH AND SOUTHERN ENERGY PLC,300000020481543 
Portsmouth City Council,PCC,Housing Revenue Account,"Rents, Rates, Taxes and Other Charges","Housing, Neighbourhood and Building Services",Premises-Related Expenditure,Energy costs,14-Oct-22,6673517,154.03,PUBLIC LIMITED COMPANY,SCOTTISH AND SOUTHERN ENERGY PLC,300000020481543 
Portsmouth City Council,PCC,Housing Revenue Account,Special Services,"Housing, Neighbourhood and Building Services",Premises-Related Expenditure,Energy costs,14-Oct-22,6673517,82.7,PUBLIC LIMITED COMPANY,SCOTTISH AND SOUTHERN ENERGY PLC,300000020481543 
Portsmouth City Council,PCC,Highways and Transport Services,Structural Maintenance,Regeneration,Premises-Related Expenditure,Energy costs,14-Oct-22,6673517,-215.04,PUBLIC LIMITED COMPANY,SCOTTISH AND SOUTHERN ENERGY PLC,300000020481543 
Portsmouth City Council,PCC,Highways and Transport Services,Structural Maintenance,Regeneration,Premises-Related Expenditure,Energy costs,14-Oct-22,6673517,34.47,PUBLIC LIMITED COMPANY,SCOTTISH AND SOUTHERN ENERGY PLC,300000020481543 
Portsmouth City Council,PCC,Children's and Education Services,Children Looked After,Children's Services and Education,Premises-Related Expenditure,Energy costs,14-Oct-22,6673517,31.04,PUBLIC LIMITED COMPANY,SCOTTISH AND SOUTHERN ENERGY PLC,300000020481543 
Portsmouth City Council,PCC,Cultural and Related Services,Open Spaces,"Culture, Leisure & Regulatory Services",Premises-Related Expenditure,Energy costs,14-Oct-22,6673517,12.68,PUBLIC LIMITED COMPANY,SCOTTISH AND SOUTHERN ENERGY PLC,300000020481543 
Portsmouth City Council,PCC,Costs below Net Cost of Services,Trading,Regeneration,Premises-Related Expenditure,Energy costs,14-Oct-22,6673517,44.92,PUBLIC LIMITED COMPANY,SCOTTISH AND SOUTHERN ENERGY PLC,300000020481543 
Portsmouth City Council,PCC,Environmental and Regulatory Services,Regulatory Services,"Housing, Neighbourhood and Building Services",Premises-Related Expenditure,Energy costs,14-Oct-22,6673517,197.17,PUBLIC LIMITED COMPANY,SCOTTISH AND SOUTHERN ENERGY PLC,300000020481543 
Portsmouth City Council,PCC,Housing Revenue Account,Special Services,"Housing, Neighbourhood and Building Services",Premises-Related Expenditure,Energy costs,14-Oct-22,6673517,39.28,PUBLIC LIMITED COMPANY,SCOTTISH AND SOUTHERN ENERGY PLC,300000020481543 
Portsmouth City Council,PCC,Other,Suspense and Capital Schemes,"Housing, Neighbourhood and Building Services",Premises-Related Expenditure,Energy costs,14-Oct-22,6673517,183.74,PUBLIC LIMITED COMPANY,SCOTTISH AND SOUTHERN ENERGY PLC,300000020481543 
Portsmouth City Council,PCC,Other,Suspense and Capital Schemes,"Housing, Neighbourhood and Building Services",Premises-Related Expenditure,Energy costs,14-Oct-22,6673517,127.8,PUBLIC LIMITED COMPANY,SCOTTISH AND SOUTHERN ENERGY PLC,300000020481543 
Portsmouth City Council,PCC,Other,Suspense and Capital Schemes,"Housing, Neighbourhood and Building Services",Premises-Related Expenditure,Energy costs,14-Oct-22,6673517,345.45,PUBLIC LIMITED COMPANY,SCOTTISH AND SOUTHERN ENERGY PLC,300000020481543 
Portsmouth City Council,PCC,Highways and Transport Services,"Environment, Safety and Routine Maintenance",Regeneration,Premises-Related Expenditure,Energy costs,14-Oct-22,6673517,612.42,PUBLIC LIMITED COMPANY,SCOTTISH AND SOUTHERN ENERGY PLC,300000020481543 
Portsmouth City Council,PCC,Housing Revenue Account,Special Services,"Housing, Neighbourhood and Building Services",Premises-Related Expenditure,Energy costs,14-Oct-22,6673517,992.7,PUBLIC LIMITED COMPANY,SCOTTISH AND SOUTHERN ENERGY PLC,300000020481543 
Portsmouth City Council,PCC,Housing Revenue Account,Special Services,"Housing, Neighbourhood and Building Services",Premises-Related Expenditure,Energy costs,14-Oct-22,6673517,163.27,PUBLIC LIMITED COMPANY,SCOTTISH AND SOUTHERN ENERGY PLC,300000020481543 
Portsmouth City Council,PCC,Highways and Transport Services,"Environment, Safety and Routine Maintenance",Regeneration,Premises-Related Expenditure,Energy costs,14-Oct-22,6673517,50.05,PUBLIC LIMITED COMPANY,SCOTTISH AND SOUTHERN ENERGY PLC,300000020481543 
Portsmouth City Council,PCC,Housing Revenue Account,Special Services,"Housing, Neighbourhood and Building Services",Premises-Related Expenditure,Energy costs,14-Oct-22,6673517,-580.52,PUBLIC LIMITED COMPANY,SCOTTISH AND SOUTHERN ENERGY PLC,300000020481543 
Portsmouth City Council,PCC,Housing Revenue Account,Special Services,"Housing, Neighbourhood and Building Services",Premises-Related Expenditure,Energy costs,14-Oct-22,6673517,372.81,PUBLIC LIMITED COMPANY,SCOTTISH AND SOUTHERN ENERGY PLC,300000020481543 
Portsmouth City Council,PCC,Cultural and Related Services,Library Service,"Culture, Leisure & Regulatory Services",Premises-Related Expenditure,Energy costs,14-Oct-22,6673517,579.6,PUBLIC LIMITED COMPANY,SCOTTISH AND SOUTHERN ENERGY PLC,300000020481543 
Portsmouth City Council,PCC,Cultural and Related Services,Open Spaces,"Culture, Leisure & Regulatory Services",Premises-Related Expenditure,Energy costs,14-Oct-22,6673517,257.13,PUBLIC LIMITED COMPANY,SCOTTISH AND SOUTHERN ENERGY PLC,300000020481543 
Portsmouth City Council,PCC,Cultural and Related Services,Recreation and Sport,"Culture, Leisure & Regulatory Services",Premises-Related Expenditure,Energy costs,14-Oct-22,6673517,-572.12,PUBLIC LIMITED COMPANY,SCOTTISH AND SOUTHERN ENERGY PLC,300000020481543 
Portsmouth City Council,PCC,Cultural and Related Services,Recreation and Sport,"Culture, Leisure & Regulatory Services",Premises-Related Expenditure,Energy costs,14-Oct-22,6673517,-352.08,PUBLIC LIMITED COMPANY,SCOTTISH AND SOUTHERN ENERGY PLC,300000020481543 
Portsmouth City Council,PCC,Cultural and Related Services,Recreation and Sport,"Culture, Leisure & Regulatory Services",Premises-Related Expenditure,Energy costs,14-Oct-22,6673517,351.99,PUBLIC LIMITED COMPANY,SCOTTISH AND SOUTHERN ENERGY PLC,300000020481543 
Portsmouth City Council,PCC,Highways and Transport Services,"Environment, Safety and Routine Maintenance",Regeneration,Premises-Related Expenditure,Energy costs,14-Oct-22,6673517,66.63,PUBLIC LIMITED COMPANY,SCOTTISH AND SOUTHERN ENERGY PLC,300000020481543 
Portsmouth City Council,PCC,Highways and Transport Services,"Environment, Safety and Routine Maintenance",Regeneration,Premises-Related Expenditure,Energy costs,14-Oct-22,6673517,68.65,PUBLIC LIMITED COMPANY,SCOTTISH AND SOUTHERN ENERGY PLC,300000020481543 
Portsmouth City Council,PCC,Highways and Transport Services,"Environment, Safety and Routine Maintenance",Regeneration,Premises-Related Expenditure,Energy costs,14-Oct-22,6673517,70.96,PUBLIC LIMITED COMPANY,SCOTTISH AND SOUTHERN ENERGY PLC,300000020481543 
Portsmouth City Council,PCC,Highways and Transport Services,"Environment, Safety and Routine Maintenance",Regeneration,Premises-Related Expenditure,Energy costs,14-Oct-22,6673517,64.76,PUBLIC LIMITED COMPANY,SCOTTISH AND SOUTHERN ENERGY PLC,300000020481543 
Portsmouth City Council,PCC,Highways and Transport Services,"Environment, Safety and Routine Maintenance",Regeneration,Premises-Related Expenditure,Energy costs,14-Oct-22,6673517,64.18,PUBLIC LIMITED COMPANY,SCOTTISH AND SOUTHERN ENERGY PLC,300000020481543 
Portsmouth City Council,PCC,Highways and Transport Services,"Environment, Safety and Routine Maintenance",Regeneration,Premises-Related Expenditure,Energy costs,14-Oct-22,6673517,-358.78,PUBLIC LIMITED COMPANY,SCOTTISH AND SOUTHERN ENERGY PLC,300000020481543 
Portsmouth City Council,PCC,Adult Social Care,Mental Health Support Older People (65 - 74),Adult Care,Third Party Payments,Other establishments,13-Oct-22,6673454,154.88,SUPPLIER,ADMIRAL CARE LTD,300000020477405 
Portsmouth City Council,PCC,Adult Social Care,Physical Support Older People (85+),Adult Care,Third Party Payments,Other establishments,13-Oct-22,6673454,154.88,SUPPLIER,ADMIRAL CARE LTD,300000020477405 
Portsmouth City Council,PCC,Adult Social Care,Mental Health Support Older People (65 - 74),Adult Care,Third Party Payments,Other establishments,13-Oct-22,6673454,174.24,SUPPLIER,ADMIRAL CARE LTD,300000020477405 
Portsmouth City Council,PCC,Adult Social Care,Physical Support Older People (85+),Adult Care,Third Party Payments,Other establishments,13-Oct-22,6673454,184.4,SUPPLIER,ADMIRAL CARE LTD,300000020477405 
Portsmouth City Council,PCC,Adult Social Care,Mental Health Support Older People (65 - 74),Adult Care,Third Party Payments,Other establishments,13-Oct-22,6673454,184.4,SUPPLIER,ADMIRAL CARE LTD,300000020477405 
Portsmouth City Council,PCC,Adult Social Care,Social Support - Support for Carer,Adult Care,Third Party Payments,Other establishments,13-Oct-22,6673454,266.88,SUPPLIER,ADMIRAL CARE LTD,300000020477405 
Portsmouth City Council,PCC,Adult Social Care,Physical Support Older People (85+),Adult Care,Third Party Payments,Other establishments,13-Oct-22,6673454,271.04,SUPPLIER,ADMIRAL CARE LTD,300000020477405 
Portsmouth City Council,PCC,Adult Social Care,Physical Support Older People (85+),Adult Care,Third Party Payments,Other establishments,13-Oct-22,6673454,271.04,SUPPLIER,ADMIRAL CARE LTD,300000020477405 
Portsmouth City Council,PCC,Adult Social Care,Physical Support Older People (85+),Adult Care,Third Party Payments,Other establishments,13-Oct-22,6673454,276.6,SUPPLIER,ADMIRAL CARE LTD,300000020477405 
Portsmouth City Council,PCC,Adult Social Care,Mental Health Support Older People (65 - 74),Adult Care,Third Party Payments,Other establishments,13-Oct-22,6673454,280.72,SUPPLIER,ADMIRAL CARE LTD,300000020477405 
Portsmouth City Council,PCC,Adult Social Care,Mental Health Support Older People (65 - 74),Adult Care,Third Party Payments,Other establishments,13-Oct-22,6673454,280.72,SUPPLIER,ADMIRAL CARE LTD,300000020477405 
Portsmouth City Council,PCC,Adult Social Care,Physical Support Older People (85+),Adult Care,Third Party Payments,Other establishments,13-Oct-22,6673454,319.44,SUPPLIER,ADMIRAL CARE LTD,300000020477405 
Portsmouth City Council,PCC,Adult Social Care,Physical Support Older People (85+),Adult Care,Third Party Payments,Other establishments,13-Oct-22,6673454,319.44,SUPPLIER,ADMIRAL CARE LTD,300000020477405 
Portsmouth City Council,PCC,Adult Social Care,Mental Health Support Older People (65 - 74),Adult Care,Third Party Payments,Other establishments,13-Oct-22,6673454,348.48,SUPPLIER,ADMIRAL CARE LTD,300000020477405 
Portsmouth City Council,PCC,Adult Social Care,Social Support - Support for Carer,Adult Care,Third Party Payments,Other establishments,13-Oct-22,6673454,400.32,SUPPLIER,ADMIRAL CARE LTD,300000020477405 
Portsmouth City Council,PCC,Adult Social Care,Social Support - Support for Carer,Adult Care,Third Party Payments,Other establishments,13-Oct-22,6673454,400.32,SUPPLIER,ADMIRAL CARE LTD,300000020477405 
Portsmouth City Council,PCC,Adult Social Care,Physical Support Older People (85+),Adult Care,Third Party Payments,Other establishments,13-Oct-22,6673454,454.96,SUPPLIER,ADMIRAL CARE LTD,300000020477405 
Portsmouth City Council,PCC,Adult Social Care,Mental Health Support Older People (65 - 74),Adult Care,Third Party Payments,Other establishments,13-Oct-22,6673454,542.08,SUPPLIER,ADMIRAL CARE LTD,300000020477405 
Portsmouth City Council,PCC,Adult Social Care,Physical Support Older People (85+),Adult Care,Third Party Payments,Other establishments,13-Oct-22,6673454,553.2,SUPPLIER,ADMIRAL CARE LTD,300000020477405 
Portsmouth City Council,PCC,Adult Social Care,Physical Support Older People (85+),Adult Care,Third Party Payments,Other establishments,13-Oct-22,6673454,561.44,SUPPLIER,ADMIRAL CARE LTD,300000020477405 
Portsmouth City Council,PCC,Adult Social Care,Physical Support Older People (85+),Adult Care,Third Party Payments,Other establishments,13-Oct-22,6673454,561.44,SUPPLIER,ADMIRAL CARE LTD,300000020477405 
Portsmouth City Council,PCC,Adult Social Care,Mental Health Support Older People (65 - 74),Adult Care,Third Party Payments,Other establishments,13-Oct-22,6673454,619.52,SUPPLIER,ADMIRAL CARE LTD,300000020477405 
Portsmouth City Council,PCC,Adult Social Care,Physical Support Older People (85+),Adult Care,Third Party Payments,Other establishments,13-Oct-22,6673454,677.6,SUPPLIER,ADMIRAL CARE LTD,300000020477405 
Portsmouth City Council,PCC,Adult Social Care,Physical Support Older People (85+),Adult Care,Third Party Payments,Other establishments,13-Oct-22,6673454,691.5,SUPPLIER,ADMIRAL CARE LTD,300000020477405 
Portsmouth City Council,PCC,Adult Social Care,Social Care Activities,Adult Care,Third Party Payments,Other establishments,13-Oct-22,6673454,721.16,SUPPLIER,ADMIRAL CARE LTD,300000020477405 
Portsmouth City Council,PCC,Adult Social Care,Social Care Activities,Adult Care,Third Party Payments,Other establishments,13-Oct-22,6673454,721.16,SUPPLIER,ADMIRAL CARE LTD,300000020477405 
Portsmouth City Council,PCC,Adult Social Care,Physical Support Older People (85+),Adult Care,Third Party Payments,Other establishments,13-Oct-22,6673454,813.12,SUPPLIER,ADMIRAL CARE LTD,300000020477405 
Portsmouth City Council,PCC,Adult Social Care,Physical Support Older People (85+),Adult Care,Third Party Payments,Other establishments,13-Oct-22,6673454,813.12,SUPPLIER,ADMIRAL CARE LTD,300000020477405 
Portsmouth City Council,PCC,Adult Social Care,Physical Support Older People (85+),Adult Care,Third Party Payments,Other establishments,13-Oct-22,6673454,813.12,SUPPLIER,ADMIRAL CARE LTD,300000020477405 
